Workbook

Sheet Outil de simulation
B2: Définir le cycle d'exploitation prévisionnel de la structure | AA2: Données complémentaires
B3: Prévisions Année 1 | C3: CA | D3: Marge estimée | E3: Rotation des stocks | F3: Délais de paiements (en J) | G3: Stock Initial | H3: Rabais | AA3: VB | AB3: Montant du rabais | AC3: Marge calculée sur CA | AD3: Marge brute sur VB | AE3: Coût des ventes | AF3: Rotation des stocks ( en J) | AG3: Achats | AH3: Achats Jours TTC | AI3: BPS en J | AJ3: BPS en € | AK3: BPS en % du CA | AL3: Stock moyen | AM3: Stock Final | AN3: écart de stocks
B4: Librairie | C4: 120000 | D4: 0.33 | E4: 2.48 | F4: 70 | G4: 30000 | H4: 0.012 | AA4: =C4+AB4 -> 121457.4899 | AB4: =C4*H4/(100%-H4) -> 1457.489879 | AC4: =D4*(100%-H4) -> 0.32604 | AD4: =D4-H4 -> 0.318 | AE4: =AA4-(AA4*D4) -> 81376.51822 | AF4: =365/E4 -> 147.1774194 | AG4: =(AE4)+AM4-G4 -> 87002.74259 | AH4: =AG4*1.055/365 -> 251.4736806 | AI4: =AF4-F4 -> 77.17741935 | AJ4: =AI4*AH4 -> 19408.08971 | AK4: =AJ4/C4 -> 0.1617340809 | AL4: =AE4/E4 -> 32813.11218 | AM4: =AL4*2-G4 -> 35626.22437 | AN4: =AM4-G4 -> 5626.22437
B5: Papeterie | C5: 40000 | D5: 0.4 | E5: 2.3 | F5: 30 | G5: 10325 | H5: 0
B6: Jeux | C6: 0 | D6: 0.425 | E6: 2 | F6: 30 | G6: 0 | H6: 0 | AA6: Données complémentaires autres produits
B7: Carterie | C7: 0 | D7: 0.5 | E7: 1 | F7: 30 | G7: 0 | H7: 0 | AA7: Papeterie
B8: Restauration | C8: 0 | D8: 0.7 | E8: 24 | F8: 10 | G8: 0 | H8: 0 | AA8: Stock Final | AB8: Stock Moyen | AC8: écart de stocks | AD8: Coût des ventes | AE8: Rotation des stocks (en J) | AF8: Achats | AG8: Achats jours TTC | AH8: BPS en J | AI8: BPS en € | AJ8: BPS en % du CA
AA9: =AB9*2-G5 -> 10544.56522 | AB9: =IF(E5=0,"",AD9/E5) -> 10434.78261 | AC9: =AA9-G5 -> 219.5652174 | AD9: =C5-(C5*D5) -> 24000 | AE9: =365/E5 -> 158.6956522 | AF9: =AD9+AA9-G5 -> 24219.56522 | AG9: =AF9*1.2/365 -> 79.62596784 | AH9: =AE9-F5 -> 128.6956522 | AI9: =AH9*AG9 -> 10247.51586 | AJ9: =AI9/C5 -> 0.2561878965
B11: Total général | AA11: Jeux
B12: CA | C12: Coût des ventes | D12: Stock Moyen | E12: Rotation | F12: Rotation en J | G12: BPS en J | H12: BPS en € | I12: BPS en % du CA | AA12: Stock Final | AB12: Stock Moyen | AC12: écart de stocks | AD12: Coût des ventes | AE12: Rotation des stocks (en J) | AF12: Achats | AG12: Achats jours TTC | AH12: BPS en J | AI12: BPS en € | AJ12: BPS en % du CA
B13: =C5+C4+C6+C7+C8 -> 160000 | C13: =AD9+AE4+AD13+AD17+AD21 -> 105376.5182 | D13: =AB9+AL4+AB13+AB17+AB21 -> 43247.89479 | E13: =C13/D13 -> 2.436569889 | F13: =365/E13 -> 149.8007513 | G13: =H13/(B13/365) -> 67.6518502 | H13: =AI9+AJ4+AI13+AI17+AI21 -> 29655.60557 | I13: =H13/B13 -> 0.1853475348 | AA13: =AB13*2-G6 -> 0 | AB13: =AD13/E6 -> 0 | AC13: =AA13-G6 -> 0 | AD13: =C6-(C6*D6) -> 0 | AE13: =365/E6 -> 182.5 | AF13: =AD13+AA13-G6 -> 0 | AG13: =AF13*1.2/365 -> 0 | AH13: =AE13-F6 -> 152.5 | AI13: =AH13*AG13 -> 0 | AJ13: =AI13/C6 -> 
C15: Carterie | AA15: Carterie
AA16: Stock Final | AB16: Stock Moyen | AC16: écart de stocks | AD16: Coût des ventes | AE16: Rotation des stocks (en J) | AF16: Achats | AG16: Achats jours TTC | AH16: BPS en J | AI16: BPS en € | AJ16: BPS en % du CA
B17: Tableaux de répartition et projection | AA17: =AB17*2-G7 -> 0 | AB17: =AD17/E7 -> 0 | AC17: =AA17-G7 -> 0 | AD17: =C7-(C7*D7) -> 0 | AE17: =365/E7 -> 365 | AF17: =AD17+AA17-G7 -> 0 | AG17: =AF17*1.2/365 -> 0 | AH17: =AE17-F7 -> 335 | AI17: =AH17*AG17 -> 0 | AJ17: =AI17/C7 -> 
B19: Année 1 | C19: Librairie | H19: Autres produits 20% | R19: Restauration / Café | T19: Total | AA19: Restauration / Café
AA20: Stock Final | AB20: Stock Moyen | AC20: écart de stocks | AD20: Coût des ventes | AE20: Rotation des stocks (en J) | AF20: Achats | AG20: Achats jours TTC | AH20: BPS en J | AI20: BPS en € | AJ20: BPS en % du CA
C21: Comptant | D21: % VB | E21: Facturation | F21: % | G21: Total Librairie | H21: % | I21: % sur VB | J21: Papeterie | K21: % | L21: Jeux | M21: % | N21: Carterie | O21: % | P21: Total Autres produits | Q21: % | R21: Total restauration | S21: % | U21: % | V21: % VB | AA21: =AB21*2-G8 -> 0 | AB21: =AD21/E8 -> 0 | AC21: =AA21-G8 -> 0 | AD21: =C8-(C8*D8) -> 0 | AE21: =365/E8 -> 15.20833333 | AF21: =AD21+AA21-G8 -> 0 | AG21: =AF21*1.2/365 -> 0 | AH21: =AE21-F8 -> 5.208333333 | AI21: =AH21*AG21 -> 0 | AJ21: =AI21/C8 -> 
B22: Ventes brutes | C22: =G22-E22 -> 121457.4899 | D22: 1 | E22: =E24+E23 -> 0 | F22: 1 | G22: =G24+G23 -> 121457.4899 | I22: 1 | J22: =J24+J23 -> 40000 | K22: 1 | L22: =L23+L24 -> 0 | M22: 1 | N22: =N23+N24 -> 0 | O22: 1 | P22: =J22+L22+N22 -> 40000 | R22: =R23+R24 -> 0 | S22: 1 | T22: =G22+P22+R22 -> 161457.4899 | V22: 1
B23: réduction | C23: =G23-E23 -> 1457.489879 | D23: 0.0053 | E23: =E24*F23/F24 -> 0 | F23: 0.09 | G23: =G24*I23/I24 -> 1457.489879 | I23: ='Outil de simulation'!H4 -> 0.012 | J23: =J24*K23/K24 -> 0 | K23: =H5 -> 0 | L23: =L24*M23/M24 -> 0 | M23: =H6 -> 0 | N23: =N24*O23/O24 -> 0 | O23: =H7 -> 0 | P23: =N23+L23+J23 -> 0 | Q23: =P23/P24 -> 0 | R23: =R24*S23/S24 -> 0 | S23: =H8 -> 0 | T23: =G23+P23+R23 -> 1457.489879 | V23: =T23/T22 -> 0.009027081244
B24: CA | C24: =G24-E24 -> 120000 | D24: =D22-D23 -> 0.9947 | E24: 0 | F24: =F22-F23 -> 0.91 | G24: ='Outil de simulation'!C4 -> 120000 | H24: 1 | I24: =I22-I23 -> 0.988 | J24: =C5 -> 40000 | K24: =K22-K23 -> 1 | L24: =C6 -> 0 | M24: =M22-M23 -> 1 | N24: =C7 -> 0 | O24: =O22-O23 -> 1 | P24: =J24+L24+N24 -> 40000 | R24: =C8 -> 0 | S24: =S22-S23 -> 1 | T24: =G24+P24+R24 -> 160000 | U24: 1
C25: Vous pouvez définir ici le montant du CA que vous souhaitez réaliser avec les collectivités. Ne modifiez que la donnée en rouge (facturation librairie). La réduction de 15 % correspond au paiement de la Sofia et de la remise classique collectivités (9 % + 6 %). Pour les autres parties, autres produits (TVA 20 %) et restauration (TVA multiple), vous pouvez avez déjà défini d'éventuels rabais. Toutefois il faut prêter attention au rabais résultant de la facturation qui risquent d'être supérieurs au rabais définis en H4
B26: Stock Initial | G26: ='Outil de simulation'!G4 -> 30000 | J26: =G5 -> 10325 | L26: =G6 -> 0 | N26: =G7 -> 0 | P26: =J26+L26+N26 -> 10325 | R26: =G8 -> 0 | T26: =G26+P26+R26 -> 40325
B27: Achats | G27: =AG4 -> 87002.74259 | J27: =J24-(J24*K32)+J28-J26 -> 24219.56522 | L27: =L30-L26+L28 -> 0 | N27: =N30-N26+N28 -> 0 | P27: =J27+L27+N27 -> 24219.56522 | R27: =R30-R26+R28 -> 0 | T27: =G27+P27+R27 -> 111222.3078
B28: Stock Final | G28: ='Outil de simulation'!AM4 -> 35626.22437 | J28: =AA9 -> 10544.56522 | L28: =AA13 -> 0 | N28: =AA17 -> 0 | P28: =J28+L28+N28 -> 10544.56522 | R28: =AA21 -> 0 | T28: =G28+P28+R28 -> 46170.78959
B30: Coût des ventes | G30: ='Outil de simulation'!AE4 -> 81376.51822 | J30: =AD9 -> 24000 | L30: =AD13 -> 0 | N30: =AD17 -> 0 | P30: =J30+L30+N30 -> 24000 | R30: =AD21 -> 0 | T30: =G30+P30+R30 -> 105376.5182
B31: Marge brute | G31: =G22*I31 -> 38623.48178 | H31: =G31/G24 -> 0.3218623482 | I31: ='Outil de simulation'!AD4 -> 0.318 | J31: =J32-J23 -> 16000 | K31: 0.4 | L31: 0 | M31: 0.425 | N31: 0 | O31: 0.5 | P31: =N31+L31+J31 -> 16000 | Q31: =P31/P24 -> 0.4 | R31: =R32-R23 -> 0 | S31: =R31/R24 ->  | T31: =T24-T30 -> 54623.48178 | U31: =T31/T24 -> 0.3413967611 | V31: =T31/T22 -> 0.3383149448
B32: Marge commerciale | G32: =G23+G31 -> 40080.97166 | I32: ='Outil de simulation'!D4 -> 0.33 | J32: =J22*K32 -> 16000 | K32: =D5 -> 0.4 | L32: =L22*M32 -> 0 | M32: =D6 -> 0.425 | N32: =N22*O32 -> 0 | O32: =D7 -> 0.5 | P32: =J32+L32+N32 -> 16000 | Q32: =P32/P24 -> 0.4 | R32: =R22*S32 -> 0 | S32: =D8 -> 0.7 | T32: =T31+T23 -> 56080.97166 | V32: =T32/T22 -> 0.3473420261
B34: Stock Moyen | G34: ='Outil de simulation'!AL4 -> 32813.11218 | J34: =AB9 -> 10434.78261 | L34: =AB13 -> 0 | N34: =AB17 -> 0 | P34: =N34+L34+J34 -> 10434.78261 | R34: =AB21 -> 0 | T34: =G34+P34+R34 -> 43247.89479
B35: Rotation | G35: =G30/G34 -> 2.48 | J35: =IF(J34=0,"",J30/J34) -> 2.3 | L35: =L30/L34 ->  | N35: =N30/N34 ->  | P35: =P30/P34 -> 2.3 | R35: =R30/R34 ->  | T35: =T30/T34 -> 2.436569889
B36: Rotation en jours | G36: =365/G35 -> 147.1774194 | J36: =IF(J35=0,"",365/J35) -> 158.6956522 | L36: =365/L35 ->  | N36: =365/N35 ->  | P36: =365/P35 -> 158.6956522 | R36: =365/R35 ->  | T36: =365/T35 -> 149.8007513
B39: Prévisions Année 2 | C39: CA | D39: Rabais | E39: Stock final | F39: Marge commerciale
B40: Librairie | C40: 0.15 | D40: 0.012 | E40: 0 | F40: 0.34
B41: Facturation | C41: 0
B42: Papeterie | C42: 0.1 | D42: 0 | E42: 0 | F42: 0.4
B43: Jeux | C43: 0 | D43: 0 | E43: 0 | F43: 0
B44: Carterie | C44: 0 | D44: 0 | E44: 0 | F44: 0
B45: Restauration/café | C45: 0 | D45: 0 | E45: 0 | F45: 0
B48: Année 2 | C48: Librairie | J48: Autres produits 20% | R48: Restauration / Café | T48: Total
C50: Comptant | D50: % VB | E50: Facturation | F50: % | G50: Total | H50: % | I50: % sur VB | J50: Papeterie | K50: % | L50: Jeux | M50: % | N50: Carterie | O50: % | P50: Total Autres produits | Q50: % | R50: Total restauration | S50: % | U50: % | V50: % VB
B51: Ventes brutes | C51: =G51-E51 -> 139676.1134 | D51: 1 | E51: =E53+E52 -> 0 | F51: 1 | G51: =G53+G52 -> 139676.1134 | I51: 1 | J51: =J53+J52 -> 44000 | K51: 1 | L51: =L52+L53 -> 0 | M51: 1 | N51: =N52+N53 -> 0 | O51: 1 | P51: =N51+L51+J51 -> 44000 | R51: =R52+R53 -> 0 | S51: 1 | T51: =G51+P51+R51 -> 183676.1134 | V51: 1
B52: réduction | C52: =G52-E52 -> 1676.11336 | D52: =C52/C51 -> 0.012 | E52: =E53*F52/F53 -> 0 | F52: 0.09 | G52: =G53*I52/I53 -> 1676.11336 | I52: =D40 -> 0.012 | J52: =J53*K52/K53 -> 0 | K52: =D42 -> 0 | L52: =L53*M52/M53 -> 0 | M52: =D43 -> 0 | N52: =N53*O52/O53 -> 0 | O52: =D44 -> 0 | P52: =N52+L52+J52 -> 0 | Q52: =P52/P53 -> 0 | R52: =R53*S52/S53 -> 0 | S52: =D45 -> 0 | T52: =G52+P52+R52 -> 1676.11336 | V52: =T52/T51 -> 0.009125374713
B53: CA | C53: =G53-E53 -> 138000 | E53: =E24+(E24*C41) -> 0 | F53: =F51-F52 -> 0.91 | G53: =G24+(G24*C40) -> 138000 | H53: 1 | I53: =I51-I52 -> 0.988 | J53: =J24+(J24*C42) -> 44000 | K53: =K51-K52 -> 1 | L53: =L24+(L24*C43) -> 0 | M53: =M51-M52 -> 1 | N53: =N24+(N24*C43) -> 0 | O53: =O51-O52 -> 1 | P53: =N53+L53+J53 -> 44000 | R53: =R24+(R24*C45) -> 0 | S53: =S51-S52 -> 1 | T53: =G53+P53+R53 -> 182000 | U53: 1
C54: Notes libres: marges + 1% en librairie, papet identique, stock identique. JE suis d'avis de garder une marge de manœuvre avec le stock et donc de ne pas partir aveec un stock au maxi.
B55: Stock Initial | G55: =G28 -> 35626.22437 | J55: =J28 -> 10544.56522 | L55: =L28 -> 0 | N55: =N28 -> 0 | P55: =N55+L55+J55 -> 10544.56522 | R55: =R28 -> 0 | T55: =G55+P55+R55 -> 46170.78959
B56: Achats | G56: =G59+G57-G55 -> 92186.23482 | J56: =J59+J57-J55 -> 26400 | L56: =L59+L57-L55 -> 0 | N56: =N59+N57-N55 -> 0 | P56: =P59+P57-P55 -> 26400 | R56: =R59+R57-R55 -> 0 | T56: =G56+P56+R56 -> 118586.2348
B57: Stock Final | G57: =G55+E40 -> 35626.22437 | J57: =J55+E42 -> 10544.56522 | L57: =L55+E43 -> 0 | N57: =N55+E44 -> 0 | P57: =N57+L57+J57 -> 10544.56522 | R57: =R55+E45 -> 0 | T57: =G57+P57+R57 -> 46170.78959
B59: Coût des ventes | G59: =G51-(G51*I61) -> 92186.23482 | J59: =J51-(J51*K61) -> 26400 | L59: =L51-(L51*M61) -> 0 | N59: =N51-(N51*O61) -> 0 | P59: =N59+L59+J59 -> 26400 | R59: =R51-(R51*S61) -> 0 | T59: =G59+P59+R59 -> 118586.2348
B60: Marge brute | G60: =G51*I60 -> 45813.76518 | H60: =G60/G53 -> 0.3319838057 | I60: =I61-I52 -> 0.328 | J60: =J61-J52 -> 17600 | L60: =L61-L52 -> 0 | N60: =N61-N52 -> 0 | P60: =P61-P52 -> 17600 | Q60: =P60/P53 -> 0.4 | R60: =R61-R52 -> 0 | T60: =G60+P60+R60 -> 63413.76518 | U60: =T60/T53 -> 0.3484272812 | V60: =T60/T51 -> 0.3452477517
B61: Marge commerciale | G61: =G51*I61 -> 47489.87854 | I61: =F40 -> 0.34 | J61: =J53*K61 -> 17600 | K61: =F42 -> 0.4 | L61: =L53*M61 -> 0 | M61: =F43 -> 0 | N61: =N53*O61 -> 0 | O61: 0.52 | P61: =P53-P59 -> 17600 | Q61: =P61/P53 -> 0.4 | R61: =R53*S61 -> 0 | S61: =F45 -> 0 | T61: =G61+P61+R61 -> 65089.87854 | V61: =T61/T51 -> 0.3543731264
B63: Stock Moyen | G63: =(G55+G57)/2 -> 35626.22437 | J63: =(J55+J57)/2 -> 10544.56522 | L63: =(L55+L57)/2 -> 0 | N63: =(N55+N57)/2 -> 0 | P63: =N63+L63+J63 -> 10544.56522 | R63: =(R55+R57)/2 -> 0 | T63: =G63+P63+R63 -> 46170.78959
B64: Rotation | G64: =G59/G63 -> 2.587594853 | J64: =J59/J63 -> 2.503659417 | L64: =L59/L63 ->  | N64: =N59/N63 ->  | P64: =P59/P63 -> 2.503659417 | R64: =R59/R63 ->  | T64: =T59/T63 -> 2.568425532
B65: Rotation en jours | G65: =365/G64 -> 141.057631 | J65: =365/J64 -> 145.7866024 | L65: =365/L64 ->  | N65: =365/N64 ->  | P65: =365/P64 -> 145.7866024 | R65: =365/R64 ->  | T65: =365/T64 -> 142.1104079
B68: Prévision Année 3 | C68: CA | D68: Rabais | E68: Stock final | F68: Marge commerciale
B69: Librairie | C69: 0.1 | D69: 0.014 | E69: 0 | F69: 0.35
B70: Facturation (montant) | C70: 0
B71: Papeterie | C71: 0.1 | D71: 0 | E71: 0 | F71: 0.41
B72: Jeux | C72: 0 | D72: 0 | E72: 0 | F72: 0
B73: Carterie | C73: 0 | D73: 0 | E73: 0 | F73: 0
B74: Restauration/Café | C74: 0 | D74: 0 | E74: 0 | F74: 0
B77: Année 3 | C77: Librairie | J77: Autres produits 20% | R77: Restauration / Café | T77: Total
C79: Comptant | D79: % VB | E79: Facturation | F79: % | G79: TOTAL | H79: % | I79: % sur VB | J79: Papeterie | K79: % | L79: Jeux | M79: % | N79: Carterie | O79: % | P79: Total Autres produits | Q79: % | R79: Total restauration | S79: % | U79: % | V79: % VB
B80: Ventes brutes | C80: =G80-E80 -> 155825.2786 | D80: 1 | E80: =E82+E81 -> 0 | F80: 1 | G80: =G82+G81 -> 155825.2786 | I80: 1 | J80: =J82+J81 -> 48400 | K80: 1 | L80: =L81+L82 -> 0 | M80: 1 | N80: =N81+N82 -> 0 | O80: 1 | P80: =N80+L80+J80 -> 48400 | R80: =R81+R82 -> 0 | S80: 1 | T80: =G80+P80+R80 -> 204225.2786 | V80: 1
B81: réduction | C81: =G81-E81 -> 2181.5539 | D81: =C81/C80 -> 0.014 | E81: =E82*F81/F82 -> 0 | F81: 0.09 | G81: =G82*I81/I82 -> 2181.5539 | I81: =D69 -> 0.014 | J81: =J82*K81/K82 -> 0 | K81: =D71 -> 0 | L81: =L82*M81/M82 -> 0 | M81: =D72 -> 0 | N81: =N82*O81/O82 -> 0 | O81: =D73 -> 0 | P81: =N81+L81+J81 -> 0 | Q81: =P81/P82 -> 0 | R81: =R82*S81/S82 -> 0 | S81: =D74 -> 0 | T81: =G81+P81+R81 -> 2181.5539 | V81: =T81/T80 -> 0.01068209536
B82: CA | C82: =G82-E82 -> 153643.7247 | E82: =E53+(E53*C70) -> 0 | F82: =F80-F81 -> 0.91 | G82: =G51+(G51*C69) -> 153643.7247 | H82: 1 | I82: =I80-I81 -> 0.986 | J82: =J51+(J51*C71) -> 48400 | K82: =K80-K81 -> 1 | L82: =L53+(L53*C72) -> 0 | M82: =M80-M81 -> 1 | N82: =N53+(N53*C73) -> 0 | O82: =O80-O81 -> 1 | P82: =N82+L82+J82 -> 48400 | R82: =R53+(R53*C74) -> 0 | S82: =S80-S81 -> 1 | T82: =G82+P82+R82 -> 202043.7247 | U82: 1
C83: Notes libres: idem . Il faut noter que les remises facturations sont à 9%. LA SOFIA devra être inclus pour les 6% dans les autres charges
B84: Stock Initial | G84: =G57 -> 35626.22437 | J84: =J57 -> 10544.56522 | L84: =L57 -> 0 | N84: =N57 -> 0 | P84: =N84+L84+J84 -> 10544.56522 | R84: =R57 -> 0 | T84: =G84+P84+R84 -> 46170.78959
B85: Achats | G85: =G88+G86-G84 -> 101286.4311 | J85: =J88+J86-J84 -> 28556 | L85: =L88+L86-L84 -> 0 | N85: =N88+N86-N84 -> 0 | P85: =P88+P86-P84 -> 28556 | R85: =R88+R86-R84 -> 0 | T85: =G85+P85+R85 -> 129842.4311
B86: Stock Final | G86: =G84+E69 -> 35626.22437 | J86: =J84+E71 -> 10544.56522 | L86: =L84+E72 -> 0 | N86: =N84+E73 -> 0 | P86: =N86+L86+J86 -> 10544.56522 | R86: =R84+E74 -> 0 | T86: =G86+P86+R86 -> 46170.78959
B88: Coût des ventes | G88: =G80-(G80*I90) -> 101286.4311 | J88: =J80-(J80*K90) -> 28556 | L88: =L80-(L80*M90) -> 0 | N88: =N80-(N80*O90) -> 0 | P88: =N88+L88+J88 -> 28556 | R88: =R80-(R80*S90) -> 0 | T88: =G88+P88+R88 -> 129842.4311
B89: Marge brute | G89: =G80*I89 -> 52357.29361 | H89: =G89/G82 -> 0.3407707911 | I89: =I90-I81 -> 0.336 | J89: =J90-J81 -> 19844 | L89: =L90-L81 -> 0 | N89: =N90-N81 -> 0 | P89: =P90-P81 -> 19844 | Q89: =P89/P82 -> 0.41 | R89: =R90-R81 -> 0 | T89: =G89+P89+R89 -> 72201.29361 | U89: =T89/T82 -> 0.357354794 | V89: =T89/T80 -> 0.353537496
B90: Marge commerciale | G90: =G80*I90 -> 54538.84751 | I90: =F69 -> 0.35 | J90: =J80*K90 -> 19844 | K90: =F71 -> 0.41 | L90: =L80*M90 -> 0 | M90: =F72 -> 0 | N90: =N80*O90 -> 0 | O90: =F73 -> 0 | P90: =P82-P88 -> 19844 | Q90: =P90/P82 -> 0.41 | R90: =R80*S90 -> 0 | S90: =F74 -> 0 | T90: =G90+P90+R90 -> 74382.84751 | V90: =T90/T80 -> 0.3642195913
B92: Stock Moyen | G92: =(G84+G86)/2 -> 35626.22437 | J92: =(J84+J86)/2 -> 10544.56522 | L92: =(L84+L86)/2 -> 0 | N92: =(N84+N86)/2 -> 0 | P92: =N92+L92+J92 -> 10544.56522 | R92: =(R84+R86)/2 -> 0 | T92: =G92+P92+R92 -> 46170.78959
B93: Rotation | G93: =G88/G92 -> 2.84303018 | J93: =J88/J92 -> 2.708124936 | L93: =L88/L92 ->  | N93: =N88/N92 ->  | P93: =365/P92 -> 0.03461498815 | R93: =R88/R92 ->  | T93: =T88/T92 -> 2.812220286
B94: Rotation en jours | G94: =365/G93 -> 128.3841454 | J94: =365/J93 -> 134.7796016 | L94: =365/L93 ->  | N94: =365/N93 ->  | P94: =365/P93 -> 10544.56522 | R94: =365/R93 ->  | T94: =365/T93 -> 129.790686
B97: Saisonnalité de la librairie ou saisonnalité prévisionnelle
C99: Janvier | D99: Février | E99: Mars | F99: Avril | G99: Mai | H99: Juin | I99: Juillet | J99: Août | K99: Septembre | L99: Octobre | M99: Novembre | N99: Décembre | O99: Total
B100: Ventes librairie | C100: 0.07 | D100: 0.07 | E100: 0.05 | F100: 0.06 | G100: 0.05 | H100: 0.08 | I100: 0.07 | J100: 0.05 | K100: 0.14 | L100: 0.09 | M100: 0.11 | N100: 0.16 | O100: =SUM(C100:N100) -> 1
B101: Achats librairie | C101: 0.07 | D101: 0.07 | E101: 0.06 | F101: 0.07 | G101: 0.07 | H101: 0.08 | I101: 0.05 | J101: 0.04 | K101: 0.09 | L101: 0.12 | M101: 0.15 | N101: 0.13 | O101: =SUM(C101:N101) -> 1
B102: Ventes facturation | C102: 0.1 | D102: 0.1 | E102: 0.1 | F102: 0.1 | G102: 0.1 | H102: 0.1 | I102: 0 | J102: 0 | K102: 0.1 | L102: 0.1 | M102: 0.1 | N102: 0.1 | O102: =SUM(C102:N102) -> 1
B103: Ventes autres à 20% | C103: 0.07 | D103: 0.07 | E103: 0.05 | F103: 0.06 | G103: 0.05 | H103: 0.08 | I103: 0.07 | J103: 0.05 | K103: 0.14 | L103: 0.09 | M103: 0.11 | N103: 0.16 | O103: =SUM(C103:N103) -> 1
B104: Achats autres à 20% | C104: 0 | D104: 0 | E104: 0.3 | F104: 0 | G104: 0 | H104: 0.4 | I104: 0 | J104: 0 | K104: 0.3 | L104: 0 | M104: 0 | N104: 0 | O104: =SUM(C104:N104) -> 1
B105: Ventes restaurant café | C105: =(100/12)% -> 0.08333333333 | D105: 0.08333333333 | E105: 0.08333333333 | F105: 0.08333333333 | G105: 0.08333333333 | H105: 0.08333333333 | I105: 0.08333333333 | J105: 0.08333333333 | K105: 0.08333333333 | L105: 0.08333333333 | M105: 0.08333333333 | N105: 0.08333333333 | O105: =SUM(C105:N105) -> 1
B106: Achats restaurant café | C106: 0.08333333333 | D106: 0.08333333333 | E106: 0.08333333333 | F106: 0.08333333333 | G106: 0.08333333333 | H106: 0.08333333333 | I106: 0.08333333333 | J106: 0.08333333333 | K106: 0.08333333333 | L106: 0.08333333333 | M106: 0.08333333333 | N106: 0.08333333333 | O106: 1
B110: Mois de démarrage ou de reprise
B111: Mois | C111: 9
B115: Simulation trésorerie
C116: =AB147 -> Septembre | D116: =AB148 -> Octobre | E116: =AB149 -> Novembre | F116: =AB150 -> Décembre | G116: =AB151 -> Janvier | H116: =AB152 -> Février | I116: =AB153 -> Mars | J116: =AB154 -> Avril | K116: =AB155 -> Mai | L116: =AB156 -> Juin | M116: =AB157 -> Juillet | N116: =AB158 -> Août | O116: Total
B117: Ventes librairie | C117: =LOOKUP(AW149,Vente_librairie) -> 0.14 | D117: 0.09 | E117: 0.11 | F117: 0.16 | G117: 0.07 | H117: 0.07 | I117: 0.05 | J117: 0.06 | K117: 0.05 | L117: 0.08 | M117: 0.07 | N117: 0.05 | O117: =SUM(C117:N117) -> 1
B118: Achats librairie | C118: =LOOKUP(AW149,Achat_Librairie) -> 0.09 | D118: 0.12 | E118: 0.15 | F118: 0.13 | G118: 0.07 | H118: 0.07 | I118: 0.06 | J118: 0.07 | K118: 0.07 | L118: 0.08 | M118: 0.05 | N118: 0.04 | O118: =SUM(C118:N118) -> 1
B119: Ventes facturation | C119: =LOOKUP(AW149,AM146:AN158) -> 0.1 | D119: =LOOKUP(AX149,AM146:AN158) -> 0.1 | E119: =LOOKUP(AY149,AM146:AN158) -> 0.1 | F119: =LOOKUP(AZ149,AM146:AN158) -> 0.1 | G119: =LOOKUP(BA149,AM146:AN158) -> 0.1 | H119: =LOOKUP(BB149,AM146:AN158) -> 0.1 | I119: =LOOKUP(BC149,AM146:AN158) -> 0.1 | J119: =LOOKUP(BD149,AM146:AN158) -> 0.1 | K119: =LOOKUP(BE149,AM146:AN158) -> 0.1 | L119: =LOOKUP(BF149,AM146:AN158) -> 0.1 | M119: =LOOKUP(BG149,AM146:AN158) -> 0 | N119: =LOOKUP(BH149,AM146:AN158) -> 0 | O119: =SUM(C119:N119) -> 1
B120: Ventes autres 19.6% | C120: =LOOKUP(AW149,AP146:AQ158) -> 0.14 | D120: =LOOKUP(AX149,AP146:AQ158) -> 0.09 | E120: =LOOKUP(AY149,AP146:AQ158) -> 0.11 | F120: =LOOKUP(AZ149,AP146:AQ158) -> 0.16 | G120: =LOOKUP(BA149,AP146:AQ158) -> 0.07 | H120: =LOOKUP(BB149,AP146:AQ158) -> 0.07 | I120: =LOOKUP(BC149,AP146:AQ158) -> 0.05 | J120: =LOOKUP(BD149,AP146:AQ158) -> 0.06 | K120: =LOOKUP(BE149,AP146:AQ158) -> 0.05 | L120: =LOOKUP(BF149,AP146:AQ158) -> 0.08 | M120: =LOOKUP(BG149,AP146:AQ158) -> 0.07 | N120: =LOOKUP(BH149,AP146:AQ158) -> 0.05 | O120: =SUM(C120:N120) -> 1
B121: Achats autres 19.6% | C121: =LOOKUP(AW149,Achats_Papeterie) -> 0.3 | D121: 0 | E121: 0 | F121: 0 | G121: 0 | H121: 0 | I121: 0.3 | J121: 0 | K121: 0 | L121: 0.4 | M121: 0 | N121: 0 | O121: =SUM(C121:N121) -> 1
B122: Ventes restaurant café | C122: =LOOKUP(AW149,AG160:AH172) -> 0.08333333333 | D122: =LOOKUP(AX149,AG160:AH172) -> 0.08333333333 | E122: =LOOKUP(AY149,AG160:AH172) -> 0.08333333333 | F122: =LOOKUP(AZ149,AG160:AH172) -> 0.08333333333 | G122: =LOOKUP(BA149,AG160:AH172) -> 0.08333333333 | H122: =LOOKUP(BB149,AG160:AH172) -> 0.08333333333 | I122: =LOOKUP(BC149,AG160:AH172) -> 0.08333333333 | J122: =LOOKUP(BD149,AG160:AH172) -> 0.08333333333 | K122: =LOOKUP(BE149,AG160:AH172) -> 0.08333333333 | L122: =LOOKUP(BF149,AG160:AH172) -> 0.08333333333 | M122: =LOOKUP(BG149,AG160:AH172) -> 0.08333333333 | N122: =LOOKUP(BH149,AG160:AH172) -> 0.08333333333 | O122: =SUM(C122:N122) -> 1
B123: Achats restaurant café | C123: =LOOKUP(AW149,AJ160:AK172) -> 0.08333333333 | D123: =LOOKUP(AX149,AJ160:AK172) -> 0.08333333333 | E123: =LOOKUP(AY149,AJ160:AK172) -> 0.08333333333 | F123: =LOOKUP(AZ149,AJ160:AK172) -> 0.08333333333 | G123: =LOOKUP(BA149,AJ160:AK172) -> 0.08333333333 | H123: =LOOKUP(BB149,AJ160:AK172) -> 0.08333333333 | I123: =LOOKUP(BC149,AJ160:AK172) -> 0.08333333333 | J123: =LOOKUP(BD149,AJ160:AK172) -> 0.08333333333 | K123: =LOOKUP(BE149,AJ160:AK172) -> 0.08333333333 | L123: =LOOKUP(BF149,AJ160:AK172) -> 0.08333333333 | M123: =LOOKUP(BG149,AJ160:AK172) -> 0.08333333333 | N123: =LOOKUP(BH149,AJ160:AK172) -> 0.08333333333 | O123: 1
AA146: MOIS | AD146: SAISON | AG146: Ventes librairie | AJ146: Achats Librairie | AM146: Ventes facturations | AP146: Ventes autres | AS146: Achats Papeterie | AW146: 1 | AX146: =AW146+1 -> 2 | AY146: 3 | AZ146: 4 | BA146: 5 | BB146: 6 | BC146: 7 | BD146: 8 | BE146: 9 | BF146: 10 | BG146: 11 | BH146: 12
AA147: =C111 -> 9 | AB147: =LOOKUP(AA147,SAISON) -> Septembre | AD147: 1 | AE147: Janvier | AG147: 1 | AH147: =C100 -> 0.07 | AJ147: 1 | AK147: =C101 -> 0.07 | AM147: 1 | AN147: =C102 -> 0.1 | AP147: 1 | AQ147: =C103 -> 0.07 | AS147: 1 | AT147: =C104 -> 0
AA148: =IF(AA147<=11,AA147+1,1) -> 10 | AB148: =LOOKUP(AA148,SAISON) -> Octobre | AD148: 2 | AE148: Février | AG148: =AG147+1 -> 2 | AH148: =D100 -> 0.07 | AJ148: =AJ147+1 -> 2 | AK148: =D101 -> 0.07 | AM148: =AM147+1 -> 2 | AN148: =D102 -> 0.1 | AP148: =AP147+1 -> 2 | AQ148: =D103 -> 0.07 | AS148: =AS147+1 -> 2 | AT148: =D104 -> 0
AA149: 11 | AB149: Novembre | AD149: 3 | AE149: Mars | AG149: =AG148+1 -> 3 | AH149: =E100 -> 0.05 | AJ149: 3 | AK149: =E101 -> 0.06 | AM149: =AM148+1 -> 3 | AN149: =E102 -> 0.1 | AP149: 3 | AQ149: =E103 -> 0.05 | AS149: 3 | AT149: =E104 -> 0.3 | AW149: =AA147 -> 9 | AX149: =AA148 -> 10 | AY149: =AA149 -> 11 | AZ149: =AA150 -> 12 | BA149: =AA151 -> 1 | BB149: =AA152 -> 2 | BC149: =AA153 -> 3 | BD149: =AA154 -> 4 | BE149: =AA155 -> 5 | BF149: =AA156 -> 6 | BG149: =AA157 -> 7 | BH149: =AA158 -> 8
AA150: 12 | AB150: Décembre | AD150: 4 | AE150: Avril | AG150: 4 | AH150: =F100 -> 0.06 | AJ150: 4 | AK150: =F101 -> 0.07 | AM150: 4 | AN150: =F102 -> 0.1 | AP150: 4 | AQ150: =F103 -> 0.06 | AS150: 4 | AT150: =F104 -> 0
AA151: 1 | AB151: Janvier | AD151: 5 | AE151: Mai | AG151: 5 | AH151: =G100 -> 0.05 | AJ151: 5 | AK151: =G101 -> 0.07 | AM151: 5 | AN151: =G102 -> 0.1 | AP151: 5 | AQ151: =G103 -> 0.05 | AS151: 5 | AT151: =G104 -> 0
AA152: 2 | AB152: Février | AD152: 6 | AE152: Juin | AG152: 6 | AH152: =H100 -> 0.08 | AJ152: 6 | AK152: =H101 -> 0.08 | AM152: 6 | AN152: =H102 -> 0.1 | AP152: 6 | AQ152: =H103 -> 0.08 | AS152: 6 | AT152: =H104 -> 0.4
AA153: 3 | AB153: Mars | AD153: 7 | AE153: Juillet | AG153: 7 | AH153: =I100 -> 0.07 | AJ153: 7 | AK153: =I101 -> 0.05 | AM153: 7 | AN153: =I102 -> 0 | AP153: 7 | AQ153: =I103 -> 0.07 | AS153: 7 | AT153: =I104 -> 0
AA154: 4 | AB154: Avril | AD154: 8 | AE154: Août | AG154: 8 | AH154: =J100 -> 0.05 | AJ154: 8 | AK154: =J101 -> 0.04 | AM154: 8 | AN154: =J102 -> 0 | AP154: 8 | AQ154: =J103 -> 0.05 | AS154: 8 | AT154: =J104 -> 0
AA155: 5 | AB155: Mai | AD155: 9 | AE155: Septembre | AG155: 9 | AH155: =K100 -> 0.14 | AJ155: 9 | AK155: =K101 -> 0.09 | AM155: 9 | AN155: =K102 -> 0.1 | AP155: 9 | AQ155: =K103 -> 0.14 | AS155: 9 | AT155: =K104 -> 0.3
AA156: 6 | AB156: Juin | AD156: 10 | AE156: Octobre | AG156: 10 | AH156: =L100 -> 0.09 | AJ156: 10 | AK156: =L101 -> 0.12 | AM156: 10 | AN156: =L102 -> 0.1 | AP156: 10 | AQ156: =L103 -> 0.09 | AS156: 10 | AT156: =L104 -> 0
AA157: 7 | AB157: Juillet | AD157: 11 | AE157: Novembre | AG157: 11 | AH157: =M100 -> 0.11 | AJ157: 11 | AK157: =M101 -> 0.15 | AM157: 11 | AN157: =M102 -> 0.1 | AP157: 11 | AQ157: =M103 -> 0.11 | AS157: 11 | AT157: =M104 -> 0
AA158: 8 | AB158: Août | AD158: 12 | AE158: Décembre | AG158: 12 | AH158: =N100 -> 0.16 | AJ158: 12 | AK158: =N101 -> 0.13 | AM158: 12 | AN158: =N102 -> 0.1 | AP158: 12 | AQ158: =N103 -> 0.16 | AS158: 12 | AT158: =N104 -> 0
AG160: Ventes restaurant café | AJ160: Achats restaurant café
AG161: 1 | AH161: =C105 -> 0.08333333333 | AJ161: 1 | AK161: =C106 -> 0.08333333333
AG162: =AG161+1 -> 2 | AH162: =D105 -> 0.08333333333 | AJ162: =AJ161+1 -> 2 | AK162: =D106 -> 0.08333333333
AG163: 3 | AH163: =E105 -> 0.08333333333 | AJ163: 3 | AK163: =E106 -> 0.08333333333
AG164: 4 | AH164: =F105 -> 0.08333333333 | AJ164: 4 | AK164: =F106 -> 0.08333333333
AG165: 5 | AH165: =G105 -> 0.08333333333 | AJ165: 5 | AK165: =G106 -> 0.08333333333
AG166: 6 | AH166: =H105 -> 0.08333333333 | AJ166: 6 | AK166: =H106 -> 0.08333333333
AG167: 7 | AH167: =I105 -> 0.08333333333 | AJ167: 7 | AK167: =I106 -> 0.08333333333
AG168: 8 | AH168: =J105 -> 0.08333333333 | AJ168: 8 | AK168: =J106 -> 0.08333333333
AG169: 9 | AH169: =K105 -> 0.08333333333 | AJ169: 9 | AK169: =K106 -> 0.08333333333
AG170: 10 | AH170: =L105 -> 0.08333333333 | AJ170: 10 | AK170: =L106 -> 0.08333333333
AG171: 11 | AH171: =M105 -> 0.08333333333 | AJ171: 11 | AK171: =M106 -> 0.08333333333
AG172: 12 | AH172: =N105 -> 0.08333333333 | AJ172: 12 | AK172: =N106 -> 0.08333333333

Sheet Bilan ouverture
B2: Bilan d'ouverture | G2: Emprunts banque
B3: Actif | D3: Passif | G3: Montant | H3: =E8 -> 20000
B4: Fonds de commerce | C4: 10000 | D4: Capital | E4: 3000 | G4: Taux | H4: 0.017
B5: Mise en route SARL | C5: 1500 | D5: Apport Adelc en capital | E5: 0 | G5: Durée | H5: 7
B6: Travaux et mise aux normes | C6: 1250 | D6: Comptes courants associés | E6: 2000
B7: Construction | C7: 0 | D7: Comptes courants ADELC | E7: 5000 | G7: Emprunt Adelc
B8: Aménagement | C8: 2000 | D8: Emprunts bancaires | E8: 20000 | G8: Montant | H8: =Q88 -> 5000
B9: Mobilier | C9: 0 | D9: Emprunts taux 0 % (CNL ou PFIL) | E9: 10000 | G9: Taux | H9: 0
B10: informatique | C10: 6765 | D10: Subvention d'investissements | E10: 10000 | G10: Durée | H10: 5
B11: Caution financière/bancaire | D11: Total emprunts et apports | E11: =SUM(E4:E10) -> 50000
B12: Caution bail | C12: 1440 | G12: Emprunt à taux 0 %
B13: Stock Librairie | C13: ='Outil de simulation'!G4 -> 30000 | D13: Stock lib TC | E13: =C13*1.055 -> 31650 | G13: Montant | H13: =X88 -> 10000
B14: Stock autres produits | C14: ='Outil de simulation'!G5+'Outil de simulation'!G6+'Outil de simulation'!G7 -> 10325 | D14: Fds de commerce | E14: =C4 -> 10000 | G14: Taux | H14: 0
B15: Stock restauration café | C15: ='Outil de simulation'!G8 -> 0 | G15: Durée | H15: 5
B16: TVA | C16: =(C10+C9+C6+C8+C14+C7)*20%+C13*5.5%+C15*10% -> 5718
B17: Total investissements | C17: =SUM(C4:C16) -> 68998
B18: Fonds de roulement | C18: =E18-C17 -> 22652 | E18: =SUM(E4:E10)+SUM(E13:E17) -> 91650 | G18: Subvention d'exploitation (CNL, Plan état/Région, Drac) | H18: 20000
G21: Décomposition subvention d'investissements
H22: Montant | I22: Durée | J22: Année 1 | K22: Année 2 | L22: Année 3
G23: Subvention Investissements | H23: =E10 -> 10000 | I23: 5
G24: Reste en passif long terme | J24: =$H$23-J25 -> 8000 | K24: =J24-K25 -> 6000 | L24: =K24-L25 -> 4000
G25: Produits exceptionnels | J25: =$H$23/$I$23 -> 2000 | K25: =$H$23/$I$23 -> 2000 | L25: =$H$23/$I$23 -> 2000
D37: =24000*0.6 -> 14400
B87: Intérêts et remboursements du Kl | C87: Intérêts | D87: Capital | E87: Total | F87: K restant | H87: Emprunts | I87: montant | J87: Intérêts | K87: Durée | P87: Emprunt ADELC | Q87: Montant | R87: Intérêts | S87: Durée | W87: Emprunt taux 0 | X87: Montant | Y87: Intérêts | Z87: Durée
B88: Année 1 | C88: =I90 -> 318.9212817 | D88: =J90+Y90+R90 -> 4713.613394 | E88: =SUM(C88:D88) -> 5032.534676 | F88: =L90+Z90+S90 -> 30286.38661 | H88: =H4 -> 0.017 | I88: =H3 -> 20000 | K88: =H5 -> 7 | Q88: =E7 -> 5000 | R88: 0 | S88: =H10 -> 5 | W88: CNL ou PFIL | X88: =E9 -> 10000 | Y88: 0 | Z88: =H15 -> 5 | AC88: =E18-E13-E14 -> 50000
B89: Année 2 | C89: 272.4287106 | D89: 4760.105965 | E89: 5032.534676 | F89: 25526.28064 | I89: Intérêts | J89: K | K89: Total | L89: K restant | Q89: Intérêts | R89: K à rembourser | S89: K restant | X89: Intérêts | Y89: K à rembourser | Z89: K restant
B90: Année 3 | C90: 225.1395782 | D90: 5807.395098 | E90: 6032.534676 | F90: 19718.88554 | H90: Année 1 | I90: =IF(N90=0,0,H118) -> 318.9212817 | J90: =IF(N90=0,0,I118) -> 2713.613394 | K90: =SUM(I90:J90) -> 3032.534676 | L90: =C106-J90 -> 17286.38661 | M90: 1 | N90: =IF(M90>$K$88,0,M90) -> 1 | P90: Année 1 | S90: =Q88 -> 5000 | W90: Année 1 | X90: 0 | Y90: =IF(AB90=0,0,$X$88/$Z$88) -> 2000 | Z90: =X88-Y90 -> 8000 | AA90: 1 | AB90: =IF(AA90>$Z$88,0,AA90) -> 1
B91: Année 4 | C91: 177.040237 | D91: 5855.494439 | E91: 6032.534676 | F91: 13863.3911 | H91: Année 2 | I91: =IF(N91=0,0,H130) -> 272.4287106 | J91: =IF(N91=0,0,I130) -> 2760.105965 | K91: =SUM(I91:J91) -> 3032.534676 | L91: =L90-J91 -> 14526.28064 | M91: 2 | N91: 2 | P91: Année 2 | S91: =S90 -> 5000 | W91: Année 2 | Y91: 2000 | Z91: =Z90-Y90 -> 6000 | AA91: 2 | AB91: 2
B92: Année 5 | C92: 128.1168057 | D92: 5904.41787 | E92: 6032.534676 | F92: 7958.973233 | H92: Année 3 | I92: =IF(N92=0,0,H141) -> 225.1395782 | J92: =IF(N92=0,0,I141) -> 2807.395098 | K92: 3032.534676 | L92: 11718.88554 | M92: 3 | N92: 3 | P92: Année 3 | R92: =IF(U92=0,0,$Q$88/$S$88) -> 1000 | S92: =S91-R92 -> 4000 | T92: 1 | U92: =IF(T92>$S$88,0,T92) -> 1 | W92: Année 3 | Y92: 2000 | Z92: =Z91-Y92 -> 4000 | AA92: 3 | AB92: 3
B93: Année 6 | C93: 78.35516502 | D93: 3954.179511 | E93: 4032.534676 | F93: 4004.793722 | H93: Année 4 | I93: =IF(N93=0,0,H153) -> 177.040237 | J93: =IF(N93=0,0,I153) -> 2855.494439 | K93: 3032.534676 | L93: 8863.391103 | M93: 4 | N93: 4 | P93: Année 4 | R93: 1000 | S93: 3000 | T93: 2 | U93: 2 | W93: Année 4 | Y93: 2000 | Z93: 2000 | AA93: 4 | AB93: 4
B94: Année 7 | C94: 27.7409539 | D94: 4004.793722 | E94: 4032.534676 | F94: 0 | H94: Année 5 | I94: =IF(N94=0,0,H165) -> 128.1168057 | J94: =IF(N94=0,0,I165) -> 2904.41787 | K94: 3032.534676 | L94: 5958.973233 | M94: 5 | N94: 5 | P94: Année 5 | R94: 1000 | S94: 2000 | T94: 3 | U94: 3 | W94: Année 5 | Y94: 2000 | Z94: 0 | AA94: 5 | AB94: 5
B95: Année 8 | C95: 0 | D95: 0 | E95: 0 | F95: 0 | H95: Année 6 | I95: =IF(N95=0,0,H177) -> 78.35516502 | J95: =IF(N95=0,0,I177) -> 2954.179511 | K95: 3032.534676 | L95: 3004.793722 | M95: 6 | N95: 6 | P95: Année 6 | R95: 1000 | S95: 1000 | T95: 4 | U95: 4 | W95: Année 6 | Y95: 0 | Z95: 0 | AA95: 6 | AB95: 0
B96: Année 9 | C96: 0 | D96: 0 | E96: 0 | F96: 0 | H96: Année 7 | I96: =IF(N96=0,0,H189) -> 27.7409539 | J96: =IF(N96=0,0,I189) -> 3004.793722 | K96: 3032.534676 | L96: 0 | M96: 7 | N96: 7 | P96: Année 7 | R96: 1000 | S96: 0 | T96: 5 | U96: 5 | W96: Année 7 | Y96: 0 | Z96: 0 | AA96: 7 | AB96: 0
B97: Année 10 | C97: 0 | D97: =J99 -> 0 | E97: =SUM(C97:D97) -> 0 | F97: =L99 -> 0 | H97: Année 8 | I97: =IF(N97=0,0,H201) -> 0 | J97: =IF(N97=0,0,I201) -> 0 | K97: 0 | L97: 0 | M97: 8 | N97: 0 | P97: Année 8 | R97: 0 | S97: 0 | T97: 6 | U97: 0 | W97: Année 8 | Y97: 0 | Z97: 0 | AA97: 8 | AB97: 0
H98: Année 9 | I98: =IF(N98=0,0,H213) -> 0 | J98: =IF(N98=0,0,I213) -> 0 | K98: 0 | L98: 0 | M98: 9 | N98: 0 | P98: Année 9 | R98: 0 | S98: 0 | T98: 7 | U98: 0 | W98: Année 9 | Y98: 0 | Z98: 0 | AA98: 9 | AB98: 0
H99: Année 10 | I99: =IF(N99=0,0,H225) -> 0 | J99: =IF(N99=0,0,I225) -> 0 | K99: 0 | L99: 0 | M99: 10 | N99: 0
B103: Emprunt 5 sur 7 ans | D103: Taux | E103: Taux mensuel
B104: Années | C104: 7 | D104: 0.017 | E104: =D104/12 -> 0.001416666667 | F104: Mensuel | G104: =I104 -> -252.711223 | I104: =PMT(D104/12,C104*12,C106) -> -252.711223
E105: Intérêts | F105: K | G105: K restant
B106: Départ 1 | C106: =H3 -> 20000 | D106: =G104*-1 -> 252.711223 | E106: =C106*$E$104 -> 28.33333333 | F106: =D106-E106 -> 224.3778897 | G106: =C106-F106 -> 19775.62211
B107: 2 | C107: =G106 -> 19775.62211 | D107: =D106 -> 252.711223 | E107: 28.01546466 | F107: 224.6957583 | G107: 19550.92635
B108: 3 | C108: 19550.92635 | D108: 252.711223 | E108: 27.69714567 | F108: 225.0140773 | G108: 19325.91227
B109: 4 | C109: 19325.91227 | D109: 252.711223 | E109: 27.37837572 | F109: 225.3328473 | G109: 19100.57943
B110: 5 | C110: 19100.57943 | D110: 252.711223 | E110: 27.05915419 | F110: 225.6520688 | G110: 18874.92736
B111: 6 | C111: 18874.92736 | D111: 252.711223 | E111: 26.73948042 | F111: 225.9717426 | G111: 18648.95562 | I111: N-2
B112: 7 | C112: 18648.95562 | D112: 252.711223 | E112: 26.41935379 | F112: 226.2918692 | G112: 18422.66375
B113: 8 | C113: 18422.66375 | D113: 252.711223 | E113: 26.09877364 | F113: 226.6124494 | G113: 18196.0513
B114: 9 | C114: 18196.0513 | D114: 252.711223 | E114: 25.77773934 | F114: 226.9334837 | G114: 17969.11781
B115: 10 | C115: 17969.11781 | D115: 252.711223 | E115: 25.45625024 | F115: 227.2549728 | G115: 17741.86284
B116: 11 | C116: 17741.86284 | D116: 252.711223 | E116: 25.13430569 | F116: 227.5769173 | G116: 17514.28592
B117: 12 | C117: 17514.28592 | D117: 252.711223 | E117: 24.81190506 | F117: 227.8993179 | G117: 17286.38661 | H117: Intérêts annuels | I117: K remboursé | J117: =I118+H118 -> 3032.534676
B118: =B117+1 -> 13 | C118: 17286.38661 | D118: 252.711223 | E118: 24.48904769 | F118: 228.2221753 | G118: 17058.16443 | H118: =SUM(E106:E117) -> 318.9212817 | I118: =SUM(F106:F117) -> 2713.613394
B119: 14 | C119: 17058.16443 | D119: 252.711223 | E119: 24.16573294 | F119: 228.5454901 | G119: 16829.61894
B120: 15 | C120: 16829.61894 | D120: 252.711223 | E120: 23.84196017 | F120: 228.8692628 | G120: 16600.74968
B121: 16 | C121: 16600.74968 | D121: 252.711223 | E121: 23.51772871 | F121: 229.1934943 | G121: 16371.55618
B122: 17 | C122: 16371.55618 | D122: 252.711223 | E122: 23.19303793 | F122: 229.5181851 | G122: 16142.038
B123: 18 | C123: 16142.038 | D123: 252.711223 | E123: 22.86788716 | F123: 229.8433358 | G123: 15912.19466
B124: 19 | C124: 15912.19466 | D124: 252.711223 | E124: 22.54227577 | F124: 230.1689472 | G124: 15682.02572 | I124: N-1
B125: 20 | C125: 15682.02572 | D125: 252.711223 | E125: 22.2162031 | F125: 230.4950199 | G125: 15451.5307
B126: 21 | C126: 15451.5307 | D126: 252.711223 | E126: 21.88966848 | F126: 230.8215545 | G126: 15220.70914
B127: 22 | C127: 15220.70914 | D127: 252.711223 | E127: 21.56267128 | F127: 231.1485517 | G127: 14989.56059
B128: 23 | C128: 14989.56059 | D128: 252.711223 | E128: 21.23521083 | F128: 231.4760122 | G128: 14758.08458
B129: 24 | C129: 14758.08458 | D129: 252.711223 | E129: 20.90728648 | F129: 231.8039365 | G129: 14526.28064 | J129: =I130+H130 -> 3032.534676
B130: 25 | C130: 14526.28064 | D130: 252.711223 | E130: 20.57889757 | F130: 232.1323254 | G130: 14294.14831 | H130: =SUM(E118:E129) -> 272.4287106 | I130: =SUM(F118:F129) -> 2760.105965
B131: 26 | C131: 14294.14831 | D131: 252.711223 | E131: 20.25004345 | F131: 232.4611796 | G131: 14061.68714 | H131: en frais bancaires
B132: 27 | C132: 14061.68714 | D132: 252.711223 | E132: 19.92072344 | F132: 232.7904996 | G132: 13828.89664 | I132: en trésorerie
B133: 28 | C133: 13828.89664 | D133: 252.711223 | E133: 19.5909369 | F133: 233.1202861 | G133: 13595.77635
B134: 29 | C134: 13595.77635 | D134: 252.711223 | E134: 19.26068316 | F134: 233.4505398 | G134: 13362.32581
B135: 30 | C135: 13362.32581 | D135: 252.711223 | E135: 18.92996156 | F135: 233.7812614 | G135: 13128.54455
B136: 31 | C136: 13128.54455 | D136: 252.711223 | E136: 18.59877144 | F136: 234.1124516 | G136: 12894.4321
B137: 32 | C137: 12894.4321 | D137: 252.711223 | E137: 18.26711214 | F137: 234.4441109 | G137: 12659.98799
B138: 33 | C138: 12659.98799 | D138: 252.711223 | E138: =C138*$E$104 -> 17.93498298 | F138: =D138-E138 -> 234.77624 | G138: =C138-F138 -> 12425.21175
B139: 34 | C139: =G138 -> 12425.21175 | D139: =D138 -> 252.711223 | E139: 17.60238331 | F139: 235.1088397 | G139: 12190.10291
B140: 35 | C140: 12190.10291 | D140: 252.711223 | E140: 17.26931245 | F140: 235.4419105 | G140: 11954.661
B141: 36 | C141: 11954.661 | D141: 252.711223 | E141: 16.93576974 | F141: 235.7754533 | G141: 11718.88554 | H141: =SUM(E130:E141) -> 225.1395782 | I141: =SUM(F130:F141) -> 2807.395098 | J141: =I141+H141 -> 3032.534676
B142: 37 | C142: 11718.88554 | D142: 252.711223 | E142: 16.60175452 | F142: 236.1094685 | G142: 11482.77607
B143: 38 | C143: 11482.77607 | D143: 252.711223 | E143: 16.2672661 | F143: 236.4439569 | G143: 11246.33212
B144: 39 | C144: 11246.33212 | D144: 252.711223 | E144: 15.93230383 | F144: 236.7789192 | G144: 11009.5532
B145: 40 | C145: 11009.5532 | D145: 252.711223 | E145: 15.59686703 | F145: 237.114356 | G145: 10772.43884
B146: 41 | C146: 10772.43884 | D146: 252.711223 | E146: 15.26095503 | F146: 237.450268 | G146: 10534.98857
B147: 42 | C147: 10534.98857 | D147: 252.711223 | E147: 14.92456715 | F147: 237.7866559 | G147: 10297.20192
B148: 43 | C148: 10297.20192 | D148: 252.711223 | E148: 14.58770272 | F148: 238.1235203 | G148: 10059.0784
B149: 44 | C149: 10059.0784 | D149: 252.711223 | E149: 14.25036106 | F149: 238.4608619 | G149: 9820.617536
B150: =B149+1 -> 45 | C150: 9820.617536 | D150: 252.711223 | E150: 13.91254151 | F150: 238.7986815 | G150: 9581.818854
B151: 46 | C151: 9581.818854 | D151: 252.711223 | E151: 13.57424338 | F151: 239.1369796 | G151: 9342.681875
B152: 47 | C152: 9342.681875 | D152: 252.711223 | E152: 13.23546599 | F152: 239.475757 | G152: 9103.206118
B153: 48 | C153: 9103.206118 | D153: 252.711223 | E153: 12.89620867 | F153: 239.8150143 | G153: 8863.391103 | H153: =SUM(E142:E153) -> 177.040237 | I153: =SUM(F142:F153) -> 2855.494439 | J153: =I153+H153 -> 3032.534676
B154: 49 | C154: 8863.391103 | D154: 252.711223 | E154: 12.55647073 | F154: 240.1547523 | G154: 8623.236351
B155: 50 | C155: 8623.236351 | D155: 252.711223 | E155: 12.2162515 | F155: 240.4949715 | G155: 8382.74138
B156: 51 | C156: 8382.74138 | D156: 252.711223 | E156: 11.87555029 | F156: 240.8356727 | G156: 8141.905707
B157: 52 | C157: 8141.905707 | D157: 252.711223 | E157: 11.53436642 | F157: 241.1768566 | G157: 7900.72885
B158: 53 | C158: 7900.72885 | D158: 252.711223 | E158: 11.1926992 | F158: 241.5185238 | G158: 7659.210327
B159: 54 | C159: 7659.210327 | D159: 252.711223 | E159: 10.85054796 | F159: 241.860675 | G159: 7417.349652
B160: 55 | C160: 7417.349652 | D160: 252.711223 | E160: 10.50791201 | F160: 242.203311 | G160: 7175.146341
B161: 56 | C161: 7175.146341 | D161: 252.711223 | E161: 10.16479065 | F161: 242.5464324 | G161: 6932.599908
B162: 57 | C162: 6932.599908 | D162: 252.711223 | E162: 9.821183203 | F162: 242.8900398 | G162: 6689.709868
B163: 58 | C163: 6689.709868 | D163: 252.711223 | E163: 9.47708898 | F163: 243.234134 | G163: 6446.475734
B164: 59 | C164: 6446.475734 | D164: 252.711223 | E164: 9.13250729 | F164: 243.5787157 | G164: 6202.897019
B165: 60 | C165: 6202.897019 | D165: 252.711223 | E165: 8.787437443 | F165: 243.9237856 | G165: 5958.973233 | H165: =SUM(E154:E165) -> 128.1168057 | I165: =SUM(F154:F165) -> 2904.41787 | J165: =I165+H165 -> 3032.534676
B166: 61 | C166: 5958.973233 | D166: 252.711223 | E166: 8.441878747 | F166: 244.2693443 | G166: 5714.703889
B167: 62 | C167: 5714.703889 | D167: 252.711223 | E167: 8.095830509 | F167: 244.6153925 | G167: 5470.088496
B168: 63 | C168: 5470.088496 | D168: 252.711223 | E168: 7.749292036 | F168: 244.961931 | G168: 5225.126565
B169: 64 | C169: 5225.126565 | D169: 252.711223 | E169: 7.402262634 | F169: 245.3089604 | G169: 4979.817605
B170: 65 | C170: 4979.817605 | D170: 252.711223 | E170: =C170*$E$104 -> 7.054741607 | F170: =D170-E170 -> 245.6564814 | G170: =C170-F170 -> 4734.161124
B171: 66 | C171: =G170 -> 4734.161124 | D171: =D170 -> 252.711223 | E171: 6.706728258 | F171: 246.0044947 | G171: 4488.156629
B172: 67 | C172: 4488.156629 | D172: 252.711223 | E172: 6.358221891 | F172: 246.3530011 | G172: 4241.803628
B173: 68 | C173: 4241.803628 | D173: 252.711223 | E173: 6.009221806 | F173: 246.7020012 | G173: 3995.101627
B174: 69 | C174: 3995.101627 | D174: 252.711223 | E174: 5.659727304 | F174: 247.0514957 | G174: 3748.050131
B175: 70 | C175: 3748.050131 | D175: 252.711223 | E175: 5.309737685 | F175: 247.4014853 | G175: 3500.648646
B176: 71 | C176: 3500.648646 | D176: 252.711223 | E176: 4.959252248 | F176: 247.7519708 | G176: 3252.896675
B177: 72 | C177: 3252.896675 | D177: 252.711223 | E177: 4.608270289 | F177: 248.1029527 | G177: 3004.793722 | H177: =SUM(E166:E177) -> 78.35516502 | I177: =SUM(F166:F177) -> 2954.179511 | J177: =I177+H177 -> 3032.534676
B178: 73 | C178: 3004.793722 | D178: 252.711223 | E178: 4.256791106 | F178: 248.4544319 | G178: 2756.33929
B179: 74 | C179: 2756.33929 | D179: 252.711223 | E179: 3.904813994 | F179: 248.806409 | G179: 2507.532881
B180: 75 | C180: 2507.532881 | D180: 252.711223 | E180: 3.552338248 | F180: 249.1588848 | G180: 2258.373996
B181: 76 | C181: 2258.373996 | D181: 252.711223 | E181: 3.199363162 | F181: 249.5118598 | G181: 2008.862137
B182: =B181+1 -> 77 | C182: 2008.862137 | D182: 252.711223 | E182: 2.845888027 | F182: 249.865335 | G182: 1758.996802
B183: 78 | C183: 1758.996802 | D183: 252.711223 | E183: 2.491912136 | F183: 250.2193109 | G183: 1508.777491
B184: 79 | C184: 1508.777491 | D184: 252.711223 | E184: 2.137434779 | F184: 250.5737882 | G184: 1258.203703
B185: 80 | C185: 1258.203703 | D185: 252.711223 | E185: 1.782455245 | F185: 250.9287678 | G185: 1007.274935
B186: 81 | C186: 1007.274935 | D186: 252.711223 | E186: 1.426972824 | F186: 251.2842502 | G186: 755.9906846
B187: 82 | C187: 755.9906846 | D187: 252.711223 | E187: 1.070986803 | F187: 251.6402362 | G187: 504.3504484
B188: 83 | C188: 504.3504484 | D188: 252.711223 | E188: 0.7144964686 | F188: 251.9967265 | G188: 252.3537219
B189: 84 | C189: 252.3537219 | D189: 252.711223 | E189: 0.357501106 | F189: 252.3537219 | G189: 2.955857781e-12 | H189: =SUM(E178:E189) -> 27.7409539 | I189: =SUM(F178:F189) -> 3004.793722 | J189: =I189+H189 -> 3032.534676
B190: 85 | C190: 2.955857781e-12 | D190: 252.711223 | E190: 4.187465189e-15 | F190: 252.711223 | G190: -252.711223
B191: 86 | C191: -252.711223 | D191: 252.711223 | E191: -0.3580075659 | F191: 253.0692306 | G191: -505.7804536
B192: 87 | C192: -505.7804536 | D192: 252.711223 | E192: -0.7165223092 | F192: 253.4277453 | G192: -759.2081989
B193: 88 | C193: -759.2081989 | D193: 252.711223 | E193: -1.075544948 | F193: 253.7867679 | G193: -1012.994967
B194: 89 | C194: -1012.994967 | D194: 252.711223 | E194: -1.435076203 | F194: 254.1462992 | G194: -1267.141266
B195: 90 | C195: -1267.141266 | D195: 252.711223 | E195: -1.795116794 | F195: 254.5063398 | G195: -1521.647606
B196: 91 | C196: -1521.647606 | D196: 252.711223 | E196: -2.155667442 | F196: 254.8668904 | G196: -1776.514496
B197: 92 | C197: -1776.514496 | D197: 252.711223 | E197: -2.51672887 | F197: 255.2279519 | G197: -2031.742448
B198: 93 | C198: -2031.742448 | D198: 252.711223 | E198: -2.878301802 | F198: 255.5895248 | G198: -2287.331973
B199: 94 | C199: -2287.331973 | D199: 252.711223 | E199: -3.240386962 | F199: 255.95161 | G199: -2543.283583
B200: 95 | C200: -2543.283583 | D200: 252.711223 | E200: -3.602985076 | F200: 256.3142081 | G200: -2799.597791
B201: 96 | C201: -2799.597791 | D201: 252.711223 | E201: -3.966096871 | F201: 256.6773199 | G201: -3056.275111 | H201: =SUM(E190:E201) -> -23.74043484 | I201: =SUM(F190:F201) -> 3056.275111
B202: 97 | C202: -3056.275111 | D202: 252.711223 | E202: =C202*$E$104 -> -4.329723074 | F202: =D202-E202 -> 257.0409461 | G202: =C202-F202 -> -3313.316057
B203: 98 | C203: =G202 -> -3313.316057 | D203: =D202 -> 252.711223 | E203: -4.693864414 | F203: 257.4050874 | G203: -3570.721144
B204: 99 | C204: -3570.721144 | D204: 252.711223 | E204: -5.058521621 | F204: 257.7697446 | G204: -3828.490889
B205: 100 | C205: -3828.490889 | D205: 252.711223 | E205: -5.423695426 | F205: 258.1349184 | G205: -4086.625807
B206: 101 | C206: -4086.625807 | D206: 252.711223 | E206: -5.78938656 | F206: 258.5006096 | G206: -4345.126417
B207: 102 | C207: -4345.126417 | D207: 252.711223 | E207: -6.155595757 | F207: 258.8668188 | G207: -4603.993236
B208: 103 | C208: -4603.993236 | D208: 252.711223 | E208: -6.522323751 | F208: 259.2335468 | G208: -4863.226782
B209: 104 | C209: -4863.226782 | D209: 252.711223 | E209: -6.889571275 | F209: 259.6007943 | G209: -5122.827577
B210: 105 | C210: -5122.827577 | D210: 252.711223 | E210: -7.257339067 | F210: 259.9685621 | G210: -5382.796139
B211: 106 | C211: -5382.796139 | D211: 252.711223 | E211: -7.625627863 | F211: 260.3368509 | G211: -5643.13299
B212: 107 | C212: -5643.13299 | D212: 252.711223 | E212: -7.994438402 | F212: 260.7056614 | G212: -5903.838651
B213: 108 | C213: -5903.838651 | D213: 252.711223 | E213: -8.363771422 | F213: 261.0749944 | G213: -6164.913645 | H213: =SUM(E202:E213) -> -76.10385863 | I213: =SUM(F202:F213) -> 3108.638535
B214: =B213+1 -> 109 | C214: -6164.913645 | D214: 252.711223 | E214: -8.733627664 | F214: 261.4448507 | G214: -6426.358496
B215: 110 | C215: -6426.358496 | D215: 252.711223 | E215: -9.10400787 | F215: 261.8152309 | G215: -6688.173727
B216: 111 | C216: -6688.173727 | D216: 252.711223 | E216: -9.47491278 | F216: 262.1861358 | G216: -6950.359863
B217: 112 | C217: -6950.359863 | D217: 252.711223 | E217: -9.846343139 | F217: 262.5575661 | G217: -7212.917429
B218: 113 | C218: -7212.917429 | D218: 252.711223 | E218: -10.21829969 | F218: 262.9295227 | G218: -7475.846952
B219: 114 | C219: -7475.846952 | D219: 252.711223 | E219: -10.59078318 | F219: 263.3020062 | G219: -7739.148958
B220: 115 | C220: -7739.148958 | D220: 252.711223 | E220: -10.96379436 | F220: 263.6750174 | G220: -8002.823975
B221: 116 | C221: -8002.823975 | D221: 252.711223 | E221: -11.33733396 | F221: 264.048557 | G221: -8266.872532
B222: 117 | C222: -8266.872532 | D222: 252.711223 | E222: -11.71140275 | F222: 264.4226258 | G222: -8531.295158
B223: 118 | C223: -8531.295158 | D223: 252.711223 | E223: -12.08600147 | F223: 264.7972245 | G223: -8796.092382
B224: 119 | C224: -8796.092382 | D224: 252.711223 | E224: -12.46113088 | F224: 265.1723539 | G224: -9061.264736
B225: 120 | C225: -9061.264736 | D225: 252.711223 | E225: -12.83679171 | F225: 265.5480147 | G225: -9326.812751 | H225: =SUM(E214:E225) -> -129.3644295 | I225: =SUM(F214:F225) -> 3161.899105

Sheet Amortissements
B2: Tableau des amortissements
B3: Nature des investissements | C3: Coût d'achat HT | D3: Durée d'amortissement en années | E3: Année 1 | F3: Année 2 | G3: Année 3
B4: Mise en route SARL | C4: ='Bilan ouverture'!C5 -> 1500 | D4: 3 | E4: =$C$4/$D$4 -> 500 | F4: =$C$4/$D$4 -> 500 | G4: 500
B5: Travaux et mise aux normes | C5: ='Bilan ouverture'!C6 -> 1250 | D5: 10 | E5: =$C$5/$D$5 -> 125 | F5: =$C$5/$D$5 -> 125 | G5: =$C$5/$D$5 -> 125
B6: Construction | C6: ='Bilan ouverture'!C7 -> 0 | D6: 7 | E6: =$C$6/$D$6 -> 0 | F6: =$C$6/$D$6 -> 0 | G6: =$C$6/$D$6 -> 0
B7: Aménagement | C7: ='Bilan ouverture'!C8 -> 2000 | D7: 10 | E7: =$C$7/$D$7 -> 200 | F7: =$C$7/$D$7 -> 200 | G7: 200
B8: Mobilier | C8: ='Bilan ouverture'!C9 -> 0 | D8: 7 | E8: =$C$8/$D$8 -> 0 | F8: =$C$8/$D$8 -> 0 | G8: =$C$8/$D$8 -> 0
B9: informatique | C9: ='Bilan ouverture'!C10 -> 6765 | D9: 3 | E9: =$C$9/$D$9 -> 2255 | F9: =$C$9/$D$9 -> 2255 | G9: 2255
D10: 5 | E10: =$C$10/$D$10 -> 0 | F10: =$C$10/$D$10 -> 0 | G10: 0
D11: 5 | E11: =$C$11/$D$11 -> 0 | F11: =$C$11/$D$11 -> 0 | G11: 0
D12: 5 | E12: =$C$12/$D$12 -> 0 | F12: =$C$12/$D$12 -> 0 | G12: 0
D13: 5 | E13: =$C$13/$D$13 -> 0 | F13: =$C$13/$D$13 -> 0 | G13: 0
D14: 5 | E14: =$C$14/$D$14 -> 0 | F14: =$C$14/$D$14 -> 0 | G14: 0
D15: 5 | E15: =$C$15/$D$15 -> 0 | F15: =$C$15/$D$15 -> 0 | G15: 0
D16: 5 | E16: =$C$16/$D$16 -> 0 | F16: =$C$16/$D$16 -> 0 | G16: 0
B17: TOTAL | C17: =SUM(C4:C16) -> 11515 | E17: =SUM(E4:E16) -> 3080 | F17: =SUM(F4:F16) -> 3080 | G17: =SUM(G4:G16) -> 3080

Sheet Compte de résultats 3 ans
B2: Première année | I2: Deuxième Année | L2: Évolution % | P2: Troisième année | S2: Évolution %
B4: Ventes brutes | C4: =C6+C5 -> 161457.4899 | E4: 1 | I4: Ventes brutes | J4: =J6+J5 -> 183676.1134 | L4: =(J4-C4)/C4 -> 0.1376128385 | P4: Ventes brutes | Q4: ='Outil de simulation'!T80 -> 204225.2786 | S4: =(Q4-J4)/J4 -> 0.111877178
B5: Rabais (9+6% collectivité + 1,2% carte fidélité) | C5: ='Outil de simulation'!T23 -> 1457.489879 | E5: =C5/C4 -> 0.009027081244 | I5: Rabais (9+6% collectivité + 1,2% carte fidélité) | J5: ='Outil de simulation'!T52 -> 1676.11336 | P5: Rabais (9+6% collectivité + 1,2% carte fidélité) | Q5: ='Outil de simulation'!T81 -> 2181.5539
B6: CA prévu | C6: ='Outil de simulation'!T24 -> 160000 | D6: 1 | I6: CA prévu | J6: ='Outil de simulation'!T53 -> 182000 | K6: 1 | L6: =(J6-C6)/C6 -> 0.1375 | P6: CA prévu | Q6: =Q4-Q5 -> 202043.7247 | R6: 1 | S6: =(Q6-J6)/J6 -> 0.1101303555
B8: Achats consommés | C8: ='Outil de simulation'!T30 -> 105376.5182 | I8: Achats consommés | J8: ='Outil de simulation'!T59 -> 118586.2348 | K8: =K6-K12 -> 1 | P8: Achats consommés | Q8: =Q4-Q12 -> 129842.4311 | R8: =R6-R12 -> 1 | S8: =(Q8-J8)/J8 -> 0.09491992293
B9: Marge Brute | C9: =C6-C8 -> 54623.48178 | D9: =C9/C6 -> 0.3413967611 | E9: =C9/C4 -> 0.3383149448 | I9: Marge Brute | J9: ='Outil de simulation'!T60 -> 63413.76518 | K9: =J9/J6 -> 0.3484272812 | L9: =(J9-C9)/C9 -> 0.1609249926 | P9: Marge Brute | Q9: ='Outil de simulation'!T89 -> 72201.29361 | R9: =Q9/Q6 -> 0.357354794 | S9: =(Q9-J9)/J9 -> 0.1385744625
B10: subvention | C10: ='Bilan ouverture'!H18 -> 20000
B11: marge totale | C11: =C9+C10 -> 74623.48178
B12: Marge Commerciale | C12: =C5+C9 -> 56080.97166 | E12: =E5+E9 -> 0.3473420261 | I12: Marge Commerciale | J12: ='Outil de simulation'!T61 -> 65089.87854 | L12: =(J12-C12)/C12 -> 0.1606410627 | P12: Marge Commerciale | Q12: ='Outil de simulation'!T90 -> 74382.84751 | S12: =(Q12-J12)/J12 -> 0.1427713367
B13: Autres charges extérieures | C13: =SUM(C14:C18) -> 3000 | D13: =C13/$C$6 -> 0.01875 | I13: Autres charges | J13: =SUM(J14:J18) -> 3060 | K13: =J13/$J$6 -> 0.01681318681 | L13: =(J13-C13)/C13 -> 0.02 | P13: Autres charges | Q13: =SUM(Q14:Q18) -> 3121.2 | R13: =Q13/$Q$6 -> 0.01544814126 | S13: =(Q13-J13)/J13 -> 0.02
B14: Eau, gaz | C14: 2500 | I14: =B14 -> Eau, gaz | J14: =C14+(C14*$G$31) -> 2550 | P14: =I14 -> Eau, gaz | Q14: =J14+(J14*$N$31) -> 2601 | R14: 0.01287345105
B15: Électricité | C15: 0 | I15: =B15 -> Électricité | J15: =C15+(C15*$G$31) -> 0 | P15: =I15 -> Électricité | Q15: =J15+(J15*$N$31) -> 0 | R15: 0
B16: Produits entretien | C16: 200 | I16: =B16 -> Produits entretien | J16: =C16+(C16*$G$31) -> 204 | P16: =I16 -> Produits entretien | Q16: =J16+(J16*$N$31) -> 208.08 | R16: 0.001029876084
B17: Fournitures de bureau | C17: 300 | I17: =B17 -> Fournitures de bureau | J17: =C17+(C17*$G$31) -> 306 | P17: =I17 -> Fournitures de bureau | Q17: =J17+(J17*$N$31) -> 312.12 | R17: 0.001544814126
B18: Emballages, petit equipement | C18: 0 | I18: =B18 -> Emballages, petit equipement | J18: =C18+(C18*$G$31) -> 0 | P18: =I18 -> Emballages, petit equipement | Q18: =J18+(J18*$N$31) -> 0 | R18: 0
B19: Charges externes | C19: =SUM(C20:C53) -> 23079 | D19: =C19/$C$6 -> 0.14424375 | I19: Charges externes | J19: =SUM(J20:J53) -> 21684.78 | K19: =J19/$J$6 -> 0.1191471429 | L19: =(J19-C19)/C19 -> -0.06041076303 | P19: Charges externes | Q19: =SUM(Q20:Q53) -> 21949.4356 | R19: 0.1086370568 | S19: =(Q19-J19)/J19 -> 0.01220467074
B20: Loyer | C20: 8640 | D20: =C20/C6 -> 0.054 | I20: =B20 -> Loyer | J20: =C20 -> 8640 | P20: =I20 -> Loyer | Q20: =J20 -> 8640
B21: Charges locatives | C21: 1080 | I21: Charges locatives | J21: =C21+(C21*$G$31) -> 1101.6 | P21: =I21 -> Charges locatives | Q21: =J21+(J21*$N$31) -> 1123.632
B22: Location TPE | C22: 480 | I22: Location TPE | J22: 489.6 | P22: Location TPE | Q22: 499.392
B23: Entretien | C23: 1000 | I23: Entretien | J23: 1020 | P23: Entretien | Q23: 1040.4
B24: Maintenance | C24: 0 | I24: Maintenance | J24: 0 | P24: Maintenance | Q24: 0
B25: Assurances | C25: 325 | I25: Assurances | J25: 331.5 | P25: Assurances | Q25: 338.13
B26: Documentation, catalogues | C26: 400 | I26: Documentation, catalogues | J26: 408 | P26: Documentation, catalogues | Q26: 416.16
B27: Honoraires comptable | C27: 2000 | D27: =C27/C6 -> 0.0125 | I27: Honoraires comptable | J27: 2040 | P27: Honoraires comptable | Q27: 2085
B28: Frais d'actes (cfe, notaire) | C28: 400 | I28: Frais d'actes (cfe, notaire) | J28: =C28+(C28*$G$31) -> 408 | P28: Frais d'actes (cfe, notaire) | Q28: =J28+(J28*$N$31) -> 416.16
B29: Publicité | C29: 500 | I29: Publicité | J29: =C29+(C29*$G$31) -> 510 | P29: Publicité | Q29: =J29+(J29*$N$31) -> 520.2
B30: Transports sur achats 5,5 % | C30: =3.5%*'Outil de simulation'!G24 -> 4200 | D30: =C30/C6 -> 0.02625 | G30: Taux d'augmentation annuel des charges | I30: Transports sur achats 5,5% | J30: 3672 | K30: =J30/J6 -> 0.02017582418 | N30: Taux d'augmentation annuel des charges | P30: Transports sur achats 5,5% | Q30: 3745 | R30: =Q30/Q6 -> 0.01853559177
B31: Transports sur achats autres TVA | C31: 0 | D31: =C31/C6 -> 0 | G31: 0.02 | I31: Transports sur achats 20% | J31: 0 | K31: =J31/J6 -> 0 | N31: 0.02 | P31: Transports sur achats 20% | Q31: =J31+(J31*$N$31) -> 0 | R31: =Q31/Q6 -> 0
B32: Transport sur achats 5,5 % stock initial | C32: =3.5%*'Outil de simulation'!G4 -> 1050 | D32: =C32/C6 -> 0.0065625 | I32: =B34 -> Site internet | P32: =I32 -> Site internet | Q32: =J32+(J32*$N$31) -> 0
B33: Transport sur achats autres TVA stock initial | C33: 0 | D33: =C33/C6 -> 0 | I33: Logiciel | J33: =C35+(C35*$G$31) -> 1836 | P33: Logiciel | Q33: 1872.72
B34: Site internet | C34: 0 | I34: Cotisations | J34: 0 | P34: Cotisations | Q34: 0
B35: Logiciel | C35: 1800 | I35: Déplacements | J35: 0 | P35: Déplacements | Q35: 0
B36: Cotisations | C36: 0 | I36: Mission réception | J36: 0 | P36: Mission réception | Q36: 0
B37: Déplacements | C37: 0 | I37: Téléphone et internet | J37: 734.4 | P37: Téléphone et internet | Q37: 749.088
B38: Mission réception | C38: 0 | I38: Hébergement site Internet | J38: 24.48 | P38: Hébergement site Internet | Q38: 24.9696
B39: Téléphone et internet | C39: 720 | I39: Affranchissements | J39: 102 | P39: Affranchissements | Q39: 104.04
B40: Hébergement site Internet | C40: 24 | I40: Services bancaires | J40: 367.2 | P40: Services bancaires | Q40: 374.544
B41: Affranchissements | C41: 100 | I41: Commission Chèque Lire | J41: 0 | P41: Commission Chèque Lire | Q41: 0
B42: Services bancaires | C42: 360 | I42: SOFIA 6% facturation | J42: ='Outil de simulation'!E51*6% -> 0 | P42: SOFIA 6% facturation | Q42: ='Outil de simulation'!E80*6% -> 0
B43: Commission Chèque Lire | C43: 0 | I43: Autres | J43: =C45+(C45*$G$31) -> 0 | P43: Autres | Q43: =J43+(J43*$N$31) -> 0
B44: SOFIA 6% facturation | C44: ='Outil de simulation'!E22*6% -> 0 | I44: Autres | J44: 0 | P44: Autres | Q44: 0
B45: Autres | C45: 0 | I45: Autres | J45: 0 | P45: Autres | Q45: 0
B46: Autres | C46: 0 | I46: Autres | J46: 0 | P46: Autres | Q46: 0
B47: Autres | C47: 0 | I47: Autres | J47: 0 | P47: Autres | Q47: 0
B48: Autres | C48: 0 | I48: Autres | J48: 0 | P48: Autres | Q48: 0
B49: Autres | C49: 0 | I49: Autres | J49: 0 | P49: Autres | Q49: 0
B50: Autres | C50: 0 | I50: Autres | J50: 0 | P50: Autres | Q50: 0
B51: Autres | C51: 0 | I51: Autres | J51: 0 | P51: Autres | Q51: 0
B52: Autres | C52: 0 | I52: Autres | J52: 0 | P52: Autres | Q52: 0
B53: Autres | C53: 0 | I53: Autres | J53: 0 | P53: Autres | Q53: 0
B54: Impôts et taxes | C54: =1%*C6 -> 1600 | D54: =C54/C6 -> 0.01 | I54: Impôts et taxes | J54: =C54+(C54*$G$31) -> 1632 | K54: =J54/J6 -> 0.008967032967 | P54: Impôts et taxes | Q54: 1664.64
B55: Personnel et charges | C55: =E81 -> 21600 | D55: =C55/C6 -> 0.135 | I55: Personnel et charges | J55: =L81 -> 21816 | K55: =J55/J6 -> 0.1198681319 | L55: =(J55-C55)/C55 -> 0.01 | P55: Personnel et charges | Q55: =S81 -> 22034.16 | R55: =Q55/Q6 -> 0.1090563938 | S55: =(Q55-J55)/J55 -> 0.01
B56: Dotation aux amortissements | C56: =Amortissements!E17 -> 3080 | D56: =C56/$C$6 -> 0.01925 | I56: Dotation aux amortissements | J56: =Amortissements!F17 -> 3080 | K56: =J56/$J$6 -> 0.01692307692 | L56: =(J56-C56)/C56 -> 0 | P56: Dotation aux amortissements | Q56: =Amortissements!G17 -> 3080 | R56: =Q56/$Q$6 -> 0.015244225 | S56: =(Q56-J56)/J56 -> 0
B57: Financier intérêts des emprunts | C57: ='Bilan ouverture'!I90 -> 318.9212817 | D57: =C57/$C$6 -> 0.001993258011 | I57: Financier intérêts des emprunts | J57: ='Bilan ouverture'!I91 -> 272.4287106 | K57: =J57/$J$6 -> 0.001496861047 | L57: =(J57-C57)/C57 -> -0.145780711 | P57: Financier intérêts des emprunts | Q57: ='Bilan ouverture'!I92 -> 225.1395782 | R57: =Q57/$J$6 -> 0.001237030649 | S57: =(Q57-J57)/J57 -> -0.1735835122
B58: Produits Exceptionnels subvention investissements | C58: ='Bilan ouverture'!J25 -> 2000 | I58: =B58 -> Produits Exceptionnels subvention investissements | J58: ='Bilan ouverture'!K25 -> 2000 | P58: =I58 -> Produits Exceptionnels subvention investissements | Q58: ='Bilan ouverture'!L25 -> 2000
B59: Total charges | C59: =C13+C19+C54+C55+C56+C57 -> 52677.92128 | I59: Total charges | J59: =J13+J19+J54+J55+J56+J57 -> 51545.20871 | L59: =(J59-C59)/C59 -> -0.02150260571 | P59: Total charges | Q59: =Q13+Q19+Q54+Q55+Q56+Q57 -> 52074.57518 | S59: =(Q59-J59)/J59 -> 0.01026994518
B60: Résultat avant IS | C60: =C11-C13-C19-C55-C56-C57-C54+C58 -> 23945.5605 | I60: Résultat avant IS | J60: =J9-J13-J19-J55-J56-J57-J54+J58 -> 13868.55647 | L60: =(J60-C60)/C60 -> -0.4208297412 | P60: Résultat avant IS | Q60: =Q9-Q13-Q19-Q55-Q56-Q57-Q54+Q58 -> 22126.71843 | S60: =(Q60-J60)/J60 -> 0.5954593743
B61: IS | I61: IS | P61: IS
B62: 0.15 | C62: =IF(C60<0,0,C60*B62) -> 3591.834075 | I62: 0.15 | J62: =IF(J60<0,0,J60*I62) -> 2080.283471 | P62: 0.15 | Q62: =IF(Q60<0,0,Q60*P62) -> 3319.007765
B63: Résultat net | C63: =C60-C62 -> 20353.72642 | D63: =C63/$C$6 -> 0.1272107902 | I63: Résultat net | J63: =J60-J62 -> 11788.273 | K63: =J63/$J$6 -> 0.06477073077 | L63: =(J63-C63)/C63 -> -0.4208297412 | P63: Résultat net | Q63: =Q60-Q62 -> 18807.71067 | R63: =Q63/$J$6 -> 0.1033390696 | S63: =(Q63-J63)/J63 -> 0.5954593743
B64: Capacité d'autofinancement simplifiée | C64: =C63+C56 -> 23433.72642 | D64: =C64/$C$6 -> 0.1464607902 | I64: Capacité d'autofinancement simplifiée | J64: =J63+J56 -> 14868.273 | K64: =J64/$J$6 -> 0.0816938077 | L64: =(J64-C64)/C64 -> -0.3655181967 | P64: Capacité d'autofinancement simplifiée | Q64: =Q63+Q56 -> 21887.71067 | R64: =Q64/$J$6 -> 0.1202621465 | S64: =(Q64-J64)/J64 -> 0.4721084732
B67: PERSONNEL | C67: Salaires mensuels nets | D67: Charges | E67: Salaires annuels | I67: PERSONNEL | J67: Salaires mensuels nets | K67: Charges | L67: Salaires annuels | P67: PERSONNEL | Q67: Salaires mensuels nets | R67: Charges | S67: Salaires annuels
D68: 0.5 | E68: 12 | K68: 0.5 | L68: 12 | R68: 0.5 | S68: 12
B69: Gérant 1 | C69: 1200 | D69: =C69*$D$68 -> 600 | E69: =(C69+D69)*E$68 -> 21600 | I69: =B69 -> Gérant 1 | J69: =C69+(C69*$G$81) -> 1212 | K69: =J69*$K$68 -> 606 | L69: =(J69+K69)*L$68 -> 21816 | P69: =I69 -> Gérant 1 | Q69: =J69+(J69*$N$81) -> 1224.12 | R69: =Q69*R68 -> 612.06 | S69: =(Q69+R69)*S$68 -> 22034.16
B70: Gérant 2 | C70: 0 | D70: 0 | E70: =(C70+D70)*E$68 -> 0 | I70: Gérant 2 | J70: =C70+(C70*$G$81) -> 0 | K70: 0 | L70: 0 | P70: Gérant 2 | Q70: 0 | R70: =Q70*$R$68 -> 0 | S70: 0
B71: Libraire 1 | D71: 0 | E71: 0 | I71: Libraire 1 | J71: =C71+(C71*$G$81) -> 0 | K71: 0 | L71: 0 | P71: Libraire 1 | Q71: 0 | R71: 0 | S71: 0
B72: Libraire 2 | D72: 0 | E72: 0 | I72: Libraire 2 | J72: 0 | K72: 0 | L72: 0 | P72: Libraire 2 | Q72: 0 | R72: 0 | S72: 0
B73: Libraire 3 | D73: 0 | E73: 0 | I73: Libraire 3 | J73: 0 | K73: 0 | L73: 0 | P73: Libraire 3 | Q73: 0 | R73: 0 | S73: 0
B74: Libraire 4 | D74: 0 | E74: 0 | I74: Libraire 4 | J74: 0 | K74: 0 | L74: 0 | P74: Libraire 4 | Q74: 0 | R74: 0 | S74: 0
B75: Libraire 5 | D75: =C75*$D$68 -> 0 | E75: 0 | I75: Libraire 5 | J75: 0 | K75: 0 | L75: 0 | P75: Libraire 5 | Q75: 0 | R75: 0 | S75: 0
B76: Libraire 6 | D76: 0 | E76: 0 | I76: Libraire 6 | J76: 0 | K76: 0 | L76: 0 | P76: Libraire 6 | Q76: 0 | R76: 0 | S76: 0
B77: Libraire 7 | D77: 0 | E77: 0 | I77: Libraire 7 | J77: 0 | K77: 0 | L77: 0 | P77: Libraire 7 | Q77: 0 | R77: 0 | S77: 0
B78: Libraire 8 | D78: 0 | E78: 0 | I78: Libraire 8 | J78: 0 | K78: 0 | L78: 0 | P78: Libraire 8 | Q78: 0 | R78: 0 | S78: 0
B79: Libraire 9 | D79: 0 | E79: 0 | I79: Libraire 9 | J79: 0 | K79: 0 | L79: 0 | P79: Libraire 9 | Q79: 0 | R79: 0 | S79: 0
B80: Libraire 10 | D80: 0 | E80: 0 | G80: Taux d'augmentation annuel des salaires | I80: Libraire 10 | J80: 0 | K80: 0 | L80: 0 | N80: Taux d'augmentation annuel des salaires | P80: Libraire 10 | Q80: 0 | R80: 0 | S80: 0
B81: Total | C81: =SUM(C69:C80) -> 1200 | D81: =SUM(D69:D80) -> 600 | E81: =SUM(E69:E80) -> 21600 | G81: 0.01 | I81: Total | J81: =SUM(J69:J80) -> 1212 | K81: =SUM(K69:K80) -> 606 | L81: =SUM(L69:L80) -> 21816 | N81: 0.01 | P81: Total | Q81: =SUM(Q69:Q80) -> 1224.12 | R81: =SUM(R69:R74) -> 612.06 | S81: =SUM(S69:S74) -> 22034.16
B84: Données complémentaires | C84: Montants | D84: En jours | I84: Données complémentaires | J84: Montants | K84: En jours | P84: Données complémentaires | Q84: Montants | R84: En jours
B85: Valeur du stock moyen | C85: =('Outil de simulation'!T26+'Outil de simulation'!T28)/2 -> 43247.89479 | I85: Valeur du stock moyen | J85: =('Outil de simulation'!T55+'Outil de simulation'!T57)/2 -> 46170.78959 | P85: Valeur du stock moyen | Q85: =('Outil de simulation'!T84+'Outil de simulation'!T86)/2 -> 46170.78959
B86: Achat par jours TTC | C86: =('Outil de simulation'!G27*1.055+'Outil de simulation'!J27*1.2)/365 -> 331.0996485 | I86: Achats par jour TTC | J86: =('Outil de simulation'!G56*1.055+'Outil de simulation'!J56*1.196)/365 -> 352.9613089 | P86: Achats par jour TTC | Q86: =Q8*1.055/365 -> 375.2979857
B87: Dette fournisseurs | C87: ='Trésorerie année 1'!AA139 -> 8260.910409 | D87: =C87/C86 -> 24.94992202 | I87: Dette fournisseurs | J87: ='Trésorerie année 2'!AA119 -> 8753.082996 | K87: =J87/J86 -> 24.79898724 | P87: Dette fournisseurs | Q87: ='Trésorerie année 3'!AA114 -> 9617.146632 | R87: =Q87/Q86 -> 25.6253617
B89: Rotation | C89: =C8/C85 -> 2.436569889 | D89: =360/C89 -> 147.7486862 | I89: Rotation | J89: =J8/J85 -> 2.568425532 | K89: =365/J89 -> 142.1104079 | P89: Rotation | Q89: =Q8/Q85 -> 2.812220286 | R89: =365/Q89 -> 129.790686
B90: Besoin par le stock en J | C90: =D89-D87 -> 122.7987642 | I90: Besoin par le stock en J | J90: =K89-D87 -> 117.1604859 | P90: Besoin par le stock en J | Q90: =R89-R87 -> 104.1653243
B91: Besoin par le stock en € | C91: =C90*C86 -> 40658.62766 | I91: Besoin par le stock en € | J91: =J90*J86 -> 41353.11844 | P91: Besoin par le stock en € | Q91: =Q90*Q86 -> 39093.03638

Sheet Trésorerie année 1
B2: Formation du résultat en fonction de la saisonnalité | C2: % | D2: ='Outil de simulation'!C116 -> Septembre | E2: ='Outil de simulation'!D116 -> Octobre | F2: ='Outil de simulation'!E116 -> Novembre | G2: ='Outil de simulation'!F116 -> Décembre | H2: ='Outil de simulation'!G116 -> Janvier | I2: ='Outil de simulation'!H116 -> Février | J2: ='Outil de simulation'!I116 -> Mars | K2: ='Outil de simulation'!J116 -> Avril | L2: ='Outil de simulation'!K116 -> Mai | M2: ='Outil de simulation'!L116 -> Juin | N2: ='Outil de simulation'!M116 -> Juillet | O2: ='Outil de simulation'!N116 -> Août | P2: Total
B3: Saisonnalité des ventes | D3: ='Outil de simulation'!C117 -> 0.14 | E3: ='Outil de simulation'!D117 -> 0.09 | F3: ='Outil de simulation'!E117 -> 0.11 | G3: ='Outil de simulation'!F117 -> 0.16 | H3: ='Outil de simulation'!G117 -> 0.07 | I3: ='Outil de simulation'!H117 -> 0.07 | J3: ='Outil de simulation'!I117 -> 0.05 | K3: ='Outil de simulation'!J117 -> 0.06 | L3: ='Outil de simulation'!K117 -> 0.05 | M3: ='Outil de simulation'!L117 -> 0.08 | N3: ='Outil de simulation'!M117 -> 0.07 | O3: ='Outil de simulation'!N117 -> 0.05 | P3: =SUM(D3:O3) -> 1
B5: Ventes brutes | D5: =$P$5*D3 -> 22604.04858 | E5: =$P$5*E3 -> 14531.17409 | F5: 17760.32389 | G5: 25833.19838 | H5: 11302.02429 | I5: 11302.02429 | J5: 8072.874494 | K5: 9687.449393 | L5: 8072.874494 | M5: 12916.59919 | N5: 11302.02429 | O5: 8072.874494 | P5: ='Compte de résultats 3 ans'!C4 -> 161457.4899
B6: CA global | D6: =$P$6*D3 -> 22400 | E6: =$P$6*E3 -> 14400 | F6: 17600 | G6: 25600 | H6: 11200 | I6: 11200 | J6: 8000 | K6: 9600 | L6: 8000 | M6: 12800 | N6: 11200 | O6: 8000 | P6: ='Compte de résultats 3 ans'!C6 -> 160000
B7: Marge commerciale | C7: ='Outil de simulation'!V32 -> 0.3473420261 | D7: =D5*$C$7 -> 7851.336032 | E7: 5047.287449 | F7: 6168.906883 | G7: 8972.955466 | H7: 3925.668016 | I7: 3925.668016 | J7: 2804.048583 | K7: 3364.8583 | L7: 2804.048583 | M7: 4486.477733 | N7: 3925.668016 | O7: 2804.048583 | P7: 56080.97166
B8: Marge brute | C8: ='Compte de résultats 3 ans'!D9 -> 0.3413967611 | D8: =$P$8*D3 -> 7647.287449 | E8: =$P$8*E3 -> 4916.11336 | F8: 6008.582996 | G8: 8739.757085 | H8: 3823.643725 | I8: 3823.643725 | J8: 2731.174089 | K8: 3277.408907 | L8: 2731.174089 | M8: 4369.878543 | N8: 3823.643725 | O8: 2731.174089 | P8: =P6*C8 -> 54623.48178
B9: Subvention exploitation (CNL, plan état/région, DRAC) | D9: ='Bilan ouverture'!H18 -> 20000 | P9: =D9 -> 20000
B10: Produit exceptionnel sub investissement | D10: =$P$10/12 -> 166.6666667 | E10: =$P$10/12 -> 166.6666667 | F10: 166.6666667 | G10: 166.6666667 | H10: 166.6666667 | I10: 166.6666667 | J10: 166.6666667 | K10: 166.6666667 | L10: 166.6666667 | M10: 166.6666667 | N10: 166.6666667 | O10: 166.6666667 | P10: ='Bilan ouverture'!J25 -> 2000
B11: Fournitures consommables | D11: =$P$11*D3 -> 420 | E11: =$P$11*E3 -> 270 | F11: 330 | G11: 480 | H11: 210 | I11: 210 | J11: 150 | K11: 180 | L11: 150 | M11: 240 | N11: 210 | O11: 150 | P11: ='Compte de résultats 3 ans'!C13 -> 3000
B12: Loyer | D12: =$P$12/12 -> 720 | E12: 720 | F12: 720 | G12: 720 | H12: 720 | I12: 720 | J12: 720 | K12: 720 | L12: 720 | M12: 720 | N12: 720 | O12: 720 | P12: ='Compte de résultats 3 ans'!C20 -> 8640
B13: Charges externes | D13: =$P$13/12 -> 1203.25 | E13: 1203.25 | F13: 1203.25 | G13: 1203.25 | H13: 1203.25 | I13: 1203.25 | J13: 1203.25 | K13: 1203.25 | L13: 1203.25 | M13: 1203.25 | N13: 1203.25 | O13: 1203.25 | P13: ='Compte de résultats 3 ans'!C19-'Compte de résultats 3 ans'!C20 -> 14439
B14: Personnel (salaires et charges) | D14: =$P$14/12 -> 1800 | E14: 1800 | F14: 1800 | G14: 1800 | H14: 1800 | I14: 1800 | J14: 1800 | K14: 1800 | L14: 1800 | M14: 1800 | N14: 1800 | O14: 1800 | P14: ='Compte de résultats 3 ans'!C55 -> 21600
B15: Amortissements | D15: =$P$15/12 -> 256.6666667 | E15: 256.6666667 | F15: 256.6666667 | G15: 256.6666667 | H15: 256.6666667 | I15: 256.6666667 | J15: 256.6666667 | K15: 256.6666667 | L15: 256.6666667 | M15: 256.6666667 | N15: 256.6666667 | O15: 256.6666667 | P15: ='Compte de résultats 3 ans'!C56 -> 3080
B16: Impôts | N16: =P16 -> 1600 | P16: ='Compte de résultats 3 ans'!C54 -> 1600
B17: Financier | D17: =$P$17/12 -> 26.57677348 | E17: 26.57677348 | F17: 26.57677348 | G17: 26.57677348 | H17: 26.57677348 | I17: 26.57677348 | J17: 26.57677348 | K17: 26.57677348 | L17: 26.57677348 | M17: 26.57677348 | N17: 26.57677348 | O17: 26.57677348 | P17: ='Bilan ouverture'!I90 -> 318.9212817
B18: autres
B19: Résultat net avant IS | D19: =D8-SUM(D11:D17)+D9 -> 23220.79401 | E19: =E8-SUM(E11:E17) -> 639.6199202 | F19: =F8-SUM(F11:F17) -> 1672.089556 | G19: 4253.263645 | H19: -392.8497154 | I19: -392.8497154 | J19: -1425.319351 | K19: -909.0845333 | L19: -1425.319351 | M19: 123.3851024 | N19: -1992.849715 | O19: -1425.319351 | P19: =P8-SUM(P11:P17)+P9+P10 -> 23945.5605
B20: Résultat net avant IS cumulé | E20: =D19+E19 -> 23860.41393 | F20: =E20+F19 -> 25532.50349 | G20: =F20+G19 -> 29785.76713 | H20: 29392.91741 | I20: 29000.0677 | J20: 27574.74835 | K20: 26665.66381 | L20: 25240.34446 | M20: 25363.72957 | N20: 23370.87985 | O20: 21945.5605
B21: Capacité d'autofinancement (CAF) | P21: =P15+P19-AA146 -> 23433.72642
B23: Répartition des ventes en fonction de la saisonnalité | D23: ='Outil de simulation'!C116 -> Septembre | E23: ='Outil de simulation'!D116 -> Octobre | F23: ='Outil de simulation'!E116 -> Novembre | G23: ='Outil de simulation'!F116 -> Décembre | H23: ='Outil de simulation'!G116 -> Janvier | I23: ='Outil de simulation'!H116 -> Février | J23: ='Outil de simulation'!I116 -> Mars | K23: ='Outil de simulation'!J116 -> Avril | L23: ='Outil de simulation'!K116 -> Mai | M23: ='Outil de simulation'!L116 -> Juin | N23: ='Outil de simulation'!M116 -> Juillet | O23: ='Outil de simulation'!N116 -> Août | P23: Total
B24: Librairie
B25: Répartition du CA comptant | D25: =$P$25*D26 -> 16800 | E25: =$P$25*E26 -> 10800 | F25: =$P$25*F26 -> 13200 | G25: 19200 | H25: 8400 | I25: 8400 | J25: 6000 | K25: 7200 | L25: 6000 | M25: 9600 | N25: 8400 | O25: 6000 | P25: ='Outil de simulation'!C24 -> 120000
B26: Saisonnalité Librairie comptant | D26: ='Outil de simulation'!C117 -> 0.14 | E26: ='Outil de simulation'!D117 -> 0.09 | F26: ='Outil de simulation'!E117 -> 0.11 | G26: ='Outil de simulation'!F117 -> 0.16 | H26: ='Outil de simulation'!G117 -> 0.07 | I26: ='Outil de simulation'!H117 -> 0.07 | J26: ='Outil de simulation'!I117 -> 0.05 | K26: ='Outil de simulation'!J117 -> 0.06 | L26: ='Outil de simulation'!K117 -> 0.05 | M26: ='Outil de simulation'!L117 -> 0.08 | N26: ='Outil de simulation'!M117 -> 0.07 | O26: ='Outil de simulation'!N117 -> 0.05 | P26: =SUM(D26:O26) -> 1
B27: Répartition du CA livre à terme | D27: =$P$27*D28 -> 0 | E27: 0 | F27: 0 | G27: 0 | H27: 0 | I27: 0 | J27: 0 | K27: 0 | L27: 0 | M27: 0 | N27: 0 | O27: 0 | P27: ='Outil de simulation'!E24 -> 0
B28: Saisonnalité facturation librairie à terme | D28: ='Outil de simulation'!C119 -> 0.1 | E28: ='Outil de simulation'!D119 -> 0.1 | F28: ='Outil de simulation'!E119 -> 0.1 | G28: ='Outil de simulation'!F119 -> 0.1 | H28: ='Outil de simulation'!G119 -> 0.1 | I28: ='Outil de simulation'!H119 -> 0.1 | J28: ='Outil de simulation'!I119 -> 0.1 | K28: ='Outil de simulation'!J119 -> 0.1 | L28: ='Outil de simulation'!K119 -> 0.1 | M28: ='Outil de simulation'!L119 -> 0.1 | N28: ='Outil de simulation'!M119 -> 0 | O28: ='Outil de simulation'!N119 -> 0 | P28: =SUM(D28:O28) -> 1
B29: Total librairie (TVA 5,5 %) | D29: =D25+D27 -> 16800 | E29: =E25+E27 -> 10800 | F29: 13200 | G29: 19200 | H29: 8400 | I29: 8400 | J29: 6000 | K29: 7200 | L29: 6000 | M29: 9600 | N29: 8400 | O29: 6000 | P29: =P25+P27 -> 120000
B30: Autres produits
B31: Répartition du CA des ventes autres produits (TVA 20 %) | D31: =$P$31*D32 -> 5600 | E31: 3600 | F31: 4400 | G31: 6400 | H31: 2800 | I31: 2800 | J31: 2000 | K31: 2400 | L31: 2000 | M31: 3200 | N31: 2800 | O31: 2000 | P31: ='Outil de simulation'!P24 -> 40000
B32: Saisonnalité des ventes autres produits | D32: ='Outil de simulation'!C120 -> 0.14 | E32: ='Outil de simulation'!D120 -> 0.09 | F32: ='Outil de simulation'!E120 -> 0.11 | G32: ='Outil de simulation'!F120 -> 0.16 | H32: ='Outil de simulation'!G120 -> 0.07 | I32: ='Outil de simulation'!H120 -> 0.07 | J32: ='Outil de simulation'!I120 -> 0.05 | K32: ='Outil de simulation'!J120 -> 0.06 | L32: ='Outil de simulation'!K120 -> 0.05 | M32: ='Outil de simulation'!L120 -> 0.08 | N32: ='Outil de simulation'!M120 -> 0.07 | O32: ='Outil de simulation'!N120 -> 0.05 | P32: =SUM(D32:O32) -> 1
B33: Total CA autres produits (TVA 20 %) | D33: =D31 -> 5600 | E33: 3600 | F33: 4400 | G33: 6400 | H33: 2800 | I33: 2800 | J33: 2000 | K33: 2400 | L33: 2000 | M33: 3200 | N33: 2800 | O33: 2000 | P33: 40000
B34: Restaurant/Café
B35: Répartition des ventes restaurant café (TVA 10 %) | D35: =$P$35*D36 -> 0 | E35: =$P$35*E36 -> 0 | F35: =$P$35*F36 -> 0 | G35: =$P$35*G36 -> 0 | H35: 0 | I35: 0 | J35: 0 | K35: 0 | L35: 0 | M35: 0 | N35: 0 | O35: 0 | P35: ='Outil de simulation'!R24 -> 0
B36: Saisonnalité des ventes restaurant café | D36: ='Outil de simulation'!C122 -> 0.08333333333 | E36: ='Outil de simulation'!D122 -> 0.08333333333 | F36: ='Outil de simulation'!E122 -> 0.08333333333 | G36: ='Outil de simulation'!F122 -> 0.08333333333 | H36: ='Outil de simulation'!G122 -> 0.08333333333 | I36: ='Outil de simulation'!H122 -> 0.08333333333 | J36: ='Outil de simulation'!I122 -> 0.08333333333 | K36: ='Outil de simulation'!J122 -> 0.08333333333 | L36: ='Outil de simulation'!K122 -> 0.08333333333 | M36: ='Outil de simulation'!L122 -> 0.08333333333 | N36: ='Outil de simulation'!M122 -> 0.08333333333 | O36: ='Outil de simulation'!N122 -> 0.08333333333 | P36: =SUM(D36:O36) -> 1
B37: Total Restaurant café (TVA 10 % majoritaire) | D37: =D35 -> 0 | E37: =E35 -> 0 | F37: =F35 -> 0 | G37: 0 | H37: 0 | I37: 0 | J37: 0 | K37: 0 | L37: 0 | M37: 0 | N37: 0 | O37: 0 | P37: =SUM(D37:O37) -> 0
B39: Total CA | D39: =D29+D33+D37 -> 22400 | E39: =E29+E33+E37 -> 14400 | F39: 17600 | G39: 25600 | H39: 11200 | I39: 11200 | J39: 8000 | K39: 9600 | L39: 8000 | M39: 12800 | N39: 11200 | O39: 8000 | P39: =P29+P33+P37 -> 160000
B41: Répartition des achats en fonction de la saisonnalité | C41: Saisons | D41: ='Outil de simulation'!C116 -> Septembre | E41: ='Outil de simulation'!D116 -> Octobre | F41: ='Outil de simulation'!E116 -> Novembre | G41: ='Outil de simulation'!F116 -> Décembre | H41: ='Outil de simulation'!G116 -> Janvier | I41: ='Outil de simulation'!H116 -> Février | J41: ='Outil de simulation'!I116 -> Mars | K41: ='Outil de simulation'!J116 -> Avril | L41: ='Outil de simulation'!K116 -> Mai | M41: ='Outil de simulation'!L116 -> Juin | N41: ='Outil de simulation'!M116 -> Juillet | O41: ='Outil de simulation'!N116 -> Août | P41: Total
C42: Librairie | D42: ='Outil de simulation'!C118 -> 0.09 | E42: ='Outil de simulation'!D118 -> 0.12 | F42: ='Outil de simulation'!E118 -> 0.15 | G42: ='Outil de simulation'!F118 -> 0.13 | H42: ='Outil de simulation'!G118 -> 0.07 | I42: ='Outil de simulation'!H118 -> 0.07 | J42: ='Outil de simulation'!I118 -> 0.06 | K42: ='Outil de simulation'!J118 -> 0.07 | L42: ='Outil de simulation'!K118 -> 0.07 | M42: ='Outil de simulation'!L118 -> 0.08 | N42: ='Outil de simulation'!M118 -> 0.05 | O42: ='Outil de simulation'!N118 -> 0.04 | P42: =SUM(D42:O42) -> 1
C43: Autres produits | D43: ='Outil de simulation'!C121 -> 0.3 | E43: ='Outil de simulation'!D121 -> 0 | F43: ='Outil de simulation'!E121 -> 0 | G43: ='Outil de simulation'!F121 -> 0 | H43: ='Outil de simulation'!G121 -> 0 | I43: ='Outil de simulation'!H121 -> 0 | J43: ='Outil de simulation'!I121 -> 0.3 | K43: ='Outil de simulation'!J121 -> 0 | L43: ='Outil de simulation'!K121 -> 0 | M43: ='Outil de simulation'!L121 -> 0.4 | N43: ='Outil de simulation'!M121 -> 0 | O43: ='Outil de simulation'!N121 -> 0 | P43: =SUM(D43:O43) -> 1
C44: Restauration café | D44: ='Outil de simulation'!C123 -> 0.08333333333 | E44: ='Outil de simulation'!D123 -> 0.08333333333 | F44: ='Outil de simulation'!E123 -> 0.08333333333 | G44: ='Outil de simulation'!F123 -> 0.08333333333 | H44: ='Outil de simulation'!G123 -> 0.08333333333 | I44: ='Outil de simulation'!H123 -> 0.08333333333 | J44: ='Outil de simulation'!I123 -> 0.08333333333 | K44: ='Outil de simulation'!J123 -> 0.08333333333 | L44: ='Outil de simulation'!K123 -> 0.08333333333 | M44: ='Outil de simulation'!L123 -> 0.08333333333 | N44: ='Outil de simulation'!M123 -> 0.08333333333 | O44: ='Outil de simulation'!N123 -> 0.08333333333 | P44: =SUM(D44:O44) -> 1
B45: Coût des ventes
B46: Librairie | D46: =$P$46*D42 -> 7323.88664 | E46: =$P$46*E42 -> 9765.182186 | F46: 12206.47773 | G46: 10578.94737 | H46: 5696.356275 | I46: 5696.356275 | J46: 4882.591093 | K46: 5696.356275 | L46: 5696.356275 | M46: 6510.121457 | N46: 4068.825911 | O46: 3255.060729 | P46: ='Outil de simulation'!G30 -> 81376.51822
B47: Autres produits | D47: =$P$47*D43 -> 7200 | E47: 0 | F47: 0 | G47: 0 | H47: 0 | I47: 0 | J47: 7200 | K47: 0 | L47: 0 | M47: 9600 | N47: 0 | O47: 0 | P47: ='Outil de simulation'!P30 -> 24000
B48: Restauration café | D48: =$P$48*D44 -> 0 | E48: =$P$48*E44 -> 0 | F48: 0 | G48: 0 | H48: 0 | I48: 0 | J48: 0 | K48: 0 | L48: 0 | M48: 0 | N48: 0 | O48: 0 | P48: ='Outil de simulation'!R30 -> 0
B49: Augmentation stock
B50: Augmentation stock librairie | D50: =$P$50*D42 -> 506.3601933 | E50: =$P$50*E42 -> 675.1469244 | F50: 843.9336555 | G50: 731.4091681 | H50: 393.8357059 | I50: 393.8357059 | J50: 337.5734622 | K50: 393.8357059 | L50: 393.8357059 | M50: 450.0979496 | N50: 281.3112185 | O50: =$P$50*O42 -> 225.0489748 | P50: =('Outil de simulation'!G28-'Outil de simulation'!G26) -> 5626.22437
B51: Augmentation stock autres produits | D51: =$P$51*D43 -> 65.86956522 | E51: =$P$51*E43 -> 0 | F51: 0 | G51: 0 | H51: 0 | I51: 0 | J51: 65.86956522 | K51: 0 | L51: 0 | M51: 87.82608696 | N51: 0 | O51: 0 | P51: ='Outil de simulation'!P28-'Outil de simulation'!P26 -> 219.5652174
B52: Augmentation stock restauration café | D52: =$P$52*D44 -> 0 | E52: =$P$52*E44 -> 0 | F52: 0 | G52: 0 | H52: 0 | I52: 0 | J52: 0 | K52: 0 | L52: 0 | M52: 0 | N52: 0 | O52: 0 | P52: =('Outil de simulation'!R28-'Outil de simulation'!R26) -> 0
B53: Total des achats
B54: Total achats librairie | D54: =D46+D50 -> 7830.246833 | E54: =E46+E50 -> 10440.32911 | F54: 13050.41139 | G54: 11310.35654 | H54: 6090.191981 | I54: 6090.191981 | J54: 5220.164555 | K54: 6090.191981 | L54: 6090.191981 | M54: 6960.219407 | N54: =N46+N50 -> 4350.137129 | O54: =O46+O50 -> 3480.109704 | P54: 87002.74259
B55: Total achats autres produits | D55: =D47+D51 -> 7265.869565 | E55: =E47+E51 -> 0 | F55: 0 | G55: 0 | H55: 0 | I55: 0 | J55: 7265.869565 | K55: 0 | L55: 0 | M55: 9687.826087 | N55: 0 | O55: =O47+O51 -> 0 | P55: =P47+P51 -> 24219.56522
B56: Total achats restauration café | D56: =D48+D52 -> 0 | E56: =E48+E52 -> 0 | F56: 0 | G56: 0 | H56: 0 | I56: 0 | J56: 0 | K56: 0 | L56: 0 | M56: 0 | N56: 0 | O56: 0 | P56: =P48+P52 -> 0
B58: Total achats | D58: =SUM(D54:D57) -> 15096.1164 | E58: =SUM(E54:E57) -> 10440.32911 | F58: =SUM(F54:F57) -> 13050.41139 | G58: 11310.35654 | H58: 6090.191981 | I58: 6090.191981 | J58: 12486.03412 | K58: 6090.191981 | L58: 6090.191981 | M58: 16648.04549 | N58: 4350.137129 | O58: 3480.109704 | P58: =SUM(P54:P57) -> 111222.3078
B60: Trésorerie entrante | C60: Démarrage | D60: Notes - Ci-dessus dans le tableau "Répartition des achats en fonction de la saisonnalité", l'augmentation de stock ne peut pas être automatisée. Elle est notée ici pour l'exemple mais c'est à vous de la positionner. La somme des augmentation, quelque soit la nature des produits doit être égale à P49, P50 ou P51. Attention, ci-dessous, nous avons pris le parti de compter les facturation dans le mois de l'émission des factures. C'est un peu osé mais avec un peu de vigilance, ça passe ! La TVA à récupérer (le redu) est positionnée à 6 mois.
B61: Apports et emprunts initiaux | C61: Apports
B62: Emprunt banque | C62: ='Bilan ouverture'!E8 -> 20000
B63: Capital et comptes courants Adelc | C63: =('Bilan ouverture'!E7+'Bilan ouverture'!E5) -> 5000
B64: Emprunt taux 0 % | C64: ='Bilan ouverture'!E9 -> 10000
B65: Subventions d'investissements | C65: ='Bilan ouverture'!E10 -> 10000
B66: Capitaux propres | C66: ='Bilan ouverture'!E4 -> 3000
B67: Compte courant | C67: ='Bilan ouverture'!E6 -> 2000
B68: Total des apports et emprunts divers | C68: =SUM(C62:C67) -> 50000
B70: Répartition du CA | D70: ='Outil de simulation'!C116 -> Septembre | E70: ='Outil de simulation'!D116 -> Octobre | F70: ='Outil de simulation'!E116 -> Novembre | G70: ='Outil de simulation'!F116 -> Décembre | H70: ='Outil de simulation'!G116 -> Janvier | I70: ='Outil de simulation'!H116 -> Février | J70: ='Outil de simulation'!I116 -> Mars | K70: ='Outil de simulation'!J116 -> Avril | L70: ='Outil de simulation'!K116 -> Mai | M70: ='Outil de simulation'!L116 -> Juin | N70: ='Outil de simulation'!M116 -> Juillet | O70: ='Outil de simulation'!N116 -> Août | P70: Total
B71: CA TTC librairie | D71: =D29*1.055 -> 17724 | E71: 11394 | F71: 13926 | G71: 20256 | H71: 8862 | I71: 8862 | J71: 6330 | K71: 7596 | L71: 6330 | M71: 10128 | N71: 8862 | O71: 6330 | P71: =SUM(D71:O71) -> 126600
B72: CA TTC autres produits | D72: =D33*1.2 -> 6720 | E72: 4320 | F72: 5280 | G72: 7680 | H72: 3360 | I72: 3360 | J72: 2400 | K72: 2880 | L72: 2400 | M72: 3840 | N72: 3360 | O72: 2400 | P72: =SUM(D72:O72) -> 48000
B73: CA TTC restauration café | D73: =D37*1.1 -> 0 | E73: 0 | F73: 0 | G73: 0 | H73: 0 | I73: 0 | J73: 0 | K73: 0 | L73: 0 | M73: 0 | N73: 0 | O73: 0 | P73: =SUM(D73:O73) -> 0
B74: Total CA TTC | D74: =SUM(D71:D73) -> 24444 | E74: =SUM(E71:E73) -> 15714 | F74: 19206 | G74: 27936 | H74: 12222 | I74: 12222 | J74: 8730 | K74: 10476 | L74: 8730 | M74: 13968 | N74: 12222 | O74: 8730 | P74: 174600
B76: Subvention exploitation (CNL, plan état/région/DRAC) | D76: ='Bilan ouverture'!H18 -> 20000 | P76: =SUM(D76:O76) -> 20000
B78: Récupération TVA | I78: =I130*-1 -> 3565.611072 | N78: =N130*-1 -> 2579.665682 | P78: =SUM(D78:O78) -> 6145.276754
B80: Total des entrées d'argent dans la strcuture | D80: =C65+D74+D78+D76 -> 54444 | E80: =E74+E78 -> 15714 | F80: =F74+F78 -> 19206 | G80: 27936 | H80: 12222 | I80: 15787.61107 | J80: 8730 | K80: 10476 | L80: 8730 | M80: 13968 | N80: 14801.66568 | O80: 8730 | P80: =P74+P78+P76 -> 200745.2768
B82: Trésorerie sortante | D82: Notes - Le paiement du stock n'est pas automatique. Il dépend des conditions particulières d'un stock de reprise (crédit-vendeur, paiement en intégralité dès le premier mois, à 3 mois, etc.) ou des conditions propres à un stock d'implantation. C'est donc à vous de l'échelonner ci-dessous dans les cases rouges. Attention, les cases C89, C90 et C91 doivent être égales aux cases P89, P90 et P91.
B83: Financement implantation | C83: Démarrage
B84: Fonds de commerce | C84: ='Bilan ouverture'!C4 -> 10000
B85: ='Bilan ouverture'!$B$5 -> Mise en route SARL | C85: ='Bilan ouverture'!$C$5 -> 1500
B86: ='Bilan ouverture'!$B$6 -> Travaux et mise aux normes | C86: ='Bilan ouverture'!C6*1.2 -> 1500
B87: ='Bilan ouverture'!$B$7 -> Construction | C87: ='Bilan ouverture'!C7*1.2 -> 0
B88: ='Bilan ouverture'!$B$8 -> Aménagement | C88: ='Bilan ouverture'!C8*1.2 -> 2400
B89: ='Bilan ouverture'!$B$9 -> Mobilier | C89: ='Bilan ouverture'!$C$9*1.2 -> 0
B90: ='Bilan ouverture'!$B$10 -> informatique | C90: ='Bilan ouverture'!C10*1.2 -> 8118
B91: ='Bilan ouverture'!B11 -> Caution financière/bancaire | C91: ='Bilan ouverture'!C11 -> 0
B92: ='Bilan ouverture'!B12 -> Caution bail | C92: ='Bilan ouverture'!C12 -> 1440
B93: Total financement implantation | C93: =SUM(C84:C92) -> 24958
D94: =D41 -> Septembre | E94: Octobre | F94: Novembre | G94: Décembre | H94: Janvier | I94: Février | J94: Mars | K94: Avril | L94: Mai | M94: Juin | N94: Juillet | O94: Août | P94: Total
B95: Stock Librairie TTC à payer | C95: ='Bilan ouverture'!C13*1.055 -> 31650 | D95: =$C$95/6 -> 5275 | E95: =$C$95/6 -> 5275 | F95: 5275 | G95: 5275 | H95: 5275 | I95: 5275 | P95: =SUM(D95:O95) -> 31650
B96: Stock autres produits TTC à payer | C96: ='Bilan ouverture'!C14*1.2 -> 12390 | D96: =$C$96/3 -> 4130 | E96: =$C$96/3 -> 4130 | F96: 4130 | P96: =SUM(D96:O96) -> 12390
B97: Stock restauration café TTC à payer | C97: ='Bilan ouverture'!C15*1.1 -> 0 | D97: =C97 -> 0 | P97: =SUM(D97:O97) -> 0
B99: Achats librairie TTC | F99: =D46*1.055 -> 7726.700405 | G99: 10302.26721 | H99: 12877.83401 | I99: 11160.78947 | J99: 6009.65587 | K99: 6009.65587 | L99: 5151.133603 | M99: 6009.65587 | N99: 6009.65587 | O99: 6868.178138 | P99: =SUM(D99:O99) -> 78125.52632
B100: Achats autres produits TTC | E100: =D47*1.2 -> 8640 | F100: 0 | G100: 0 | H100: 0 | I100: 0 | J100: 0 | K100: 8640 | L100: 0 | M100: 0 | N100: 11520 | O100: 0 | P100: =SUM(D100:O100) -> 28800
B101: Achats restauration café TTC | D101: =D48*1.1 -> 0 | E101: 0 | F101: 0 | G101: 0 | H101: 0 | I101: 0 | J101: 0 | K101: 0 | L101: 0 | M101: 0 | N101: 0 | O101: 0 | P101: =SUM(D101:O101) -> 0
B103: Augmentation stock librairie TTC | C103: échéancé | F103: =D50*1.055 -> 534.2100039 | G103: 712.2800052 | H103: 890.3500065 | I103: 771.6366723 | J103: 415.4966697 | K103: 415.4966697 | L103: 356.1400026 | M103: 415.4966697 | N103: 415.4966697 | O103: 474.8533368 | P103: =SUM(D103:O103) -> 5401.456706
B104: Augmentation stock autres produits TTC | C104: échéancé | E104: =D51*1.2 -> 79.04347826 | F104: 0 | G104: 0 | H104: 0 | I104: 0 | J104: 0 | K104: 79.04347826 | L104: 0 | M104: 0 | N104: 105.3913043 | O104: 0 | P104: =SUM(D104:O104) -> 263.4782609
B105: Augmentation stock restauration café TTC | D105: =D52*1.1 -> 0 | E105: 0 | F105: 0 | G105: 0 | H105: 0 | I105: 0 | J105: 0 | K105: 0 | L105: 0 | M105: 0 | N105: 0 | O105: 0 | P105: =SUM(D105:O105) -> 0
B107: Fournitures consommables TTC | D107: =D11*1.2 -> 504 | E107: 324 | F107: 396 | G107: 576 | H107: 252 | I107: 252 | J107: 180 | K107: 216 | L107: 180 | M107: 288 | N107: 252 | O107: 180 | P107: =SUM(D107:O107) -> 3600
B108: Loyer TTC | D108: =D12*1.2 -> 864 | E108: 864 | F108: 864 | G108: 864 | H108: 864 | I108: 864 | J108: 864 | K108: 864 | L108: 864 | M108: 864 | N108: 864 | O108: 864 | P108: 10368
B109: Services extérieurs TTC | D109: =D13*1.2 -> 1443.9 | E109: 1443.9 | F109: 1443.9 | G109: 1443.9 | H109: 1443.9 | I109: 1443.9 | J109: 1443.9 | K109: 1443.9 | L109: 1443.9 | M109: 1443.9 | N109: 1443.9 | O109: 1443.9 | P109: 17326.8
B110: Personnel | D110: =D14 -> 1800 | E110: 1800 | F110: 1800 | G110: 1800 | H110: 1800 | I110: 1800 | J110: 1800 | K110: 1800 | L110: 1800 | M110: 1800 | N110: 1800 | O110: 1800 | P110: 21600
B111: Financier TTC | D111: =D17*1.2 -> 31.89212817 | E111: 31.89212817 | F111: 31.89212817 | G111: 31.89212817 | H111: 31.89212817 | I111: 31.89212817 | J111: 31.89212817 | K111: 31.89212817 | L111: 31.89212817 | M111: 31.89212817 | N111: 31.89212817 | O111: 31.89212817 | P111: 382.7055381
B112: Impôts | N112: =N16 -> 1600 | P112: 1600
B113: Remboursement emprunts taux 0 % | D113: =$P$113/12 -> 166.6666667 | E113: 166.6666667 | F113: 166.6666667 | G113: 166.6666667 | H113: 166.6666667 | I113: 166.6666667 | J113: 166.6666667 | K113: 166.6666667 | L113: 166.6666667 | M113: 166.6666667 | N113: 166.6666667 | O113: 166.6666667 | P113: ='Bilan ouverture'!Y90 -> 2000
B114: Remboursement emprunts | D114: =$P$114/12 -> 226.1344495 | E114: 226.1344495 | F114: 226.1344495 | G114: 226.1344495 | H114: 226.1344495 | I114: 226.1344495 | J114: 226.1344495 | K114: 226.1344495 | L114: 226.1344495 | M114: 226.1344495 | N114: 226.1344495 | O114: 226.1344495 | P114: ='Bilan ouverture'!J90 -> 2713.613394
B115: IS | C115: ='Compte de résultats 3 ans'!B62 -> 0.15 | G115: =IF($AA$146<0,0,$AA$146/4) -> 897.9585187 | J115: =IF($AA$146<0,0,$AA$146/4) -> 897.9585187 | M115: =IF($AA$146<0,0,$AA$146/4) -> 897.9585187 | P115: =SUM(D115:O115) -> 2693.875556
B117: Total sorties | C117: =C93 -> 24958 | D117: =SUM(D95:D116) -> 14441.59324 | E117: =SUM(E95:E115) -> 22980.63672 | F117: 22594.50365 | G117: =SUM(G95:G115) -> 22296.09897 | H117: 23827.77726 | I117: 21992.01939 | J117: 12035.7043 | K117: 19892.78926 | L117: 10219.86685 | M117: 12143.7043 | N117: 24435.13709 | O117: 12055.62472 | P117: 218915.4558
B119: Tableau de répartition de la TVA | C119: Démarrage | D119: =D23 -> Septembre | E119: Octobre | F119: Novembre | G119: Décembre | H119: Janvier | I119: Février | J119: Mars | K119: Avril | L119: Mai | M119: Juin | N119: Juillet | O119: Août | P119: Total
B121: TVA à payer | D121: =(D29*5.5%)+(D33*20%)+(D37*10%) -> 2044 | E121: 1314 | F121: 1606 | G121: 2336 | H121: 1022 | I121: 1022 | J121: 730 | K121: 876 | L121: 730 | M121: 1168 | N121: 1022 | O121: 730 | P121: =SUM(D121:O121) -> 14600
B123: TVA à récupérer
B124: Sur stocks | C124: =(C95-(C95/1.055))+(C96-(C96/1.2))+(C97-(C97/1.1)) -> 3715
B125: Sur achats de marchandses et augmentation du stock | D125: =D54*5.5%+D55*20%+D56*10% -> 1883.837489 | E125: 574.2181011 | F125: 717.7726264 | G125: 622.0696095 | H125: 334.960559 | I125: 334.960559 | J125: 1740.282964 | K125: 334.960559 | L125: 334.960559 | M125: 2320.377285 | N125: 239.2575421 | O125: 191.4060337 | P125: =SUM(D125:O125) -> 9629.063886
B126: Sur investissements et frais généraux | C126: =(C87+C88+C89+C90+C86)-(C87+C88+C89+C90+C86)/1.2 -> 2003 | D126: =((D107+D109+D111+D108)-(D107+D109+D111+D108)/1.2) -> 473.9653547 | E126: =((E107+E109+E111+E108)-(E107+E109+E111+E108)/1.2) -> 443.9653547 | F126: 455.9653547 | G126: 485.9653547 | H126: 431.9653547 | I126: 431.9653547 | J126: 419.9653547 | K126: 425.9653547 | L126: 419.9653547 | M126: 437.9653547 | N126: 431.9653547 | O126: 419.9653547 | P126: =SUM(C126:O126) -> 7282.584256
B127: Total TVA à récupérer | C127: =SUM(C124:C126) -> 5718 | D127: =SUM(D125:D126) -> 2357.802844 | E127: =SUM(E125:E126) -> 1018.183456 | F127: 1173.737981 | G127: 1108.034964 | H127: 766.9259137 | I127: 766.9259137 | J127: 2160.248318 | K127: 760.9259137 | L127: 754.9259137 | M127: 2758.342639 | N127: 671.2228968 | O127: 611.3713884 | P127: =SUM(C127:O127) -> 20626.64814
B129: Solde TVA | C129: =C120-C127 -> -5718 | D129: =D121-D127 -> -313.8028436 | E129: =E121-E127 -> 295.8165442 | F129: 432.2620189 | G129: 1227.965036 | H129: 255.0740863 | I129: 255.0740863 | J129: -1430.248318 | K129: 115.0740863 | L129: -24.92591366 | M129: -1590.342639 | N129: 350.7771032 | O129: 118.6286116
B130: Cumul | D130: =C129+D129 -> -6031.802844 | E130: =D130+E129 -> -5735.986299 | F130: =E130+F129 -> -5303.72428 | G130: =F130+G129 -> -4075.759245 | H130: =G130+H129 -> -3820.685158 | I130: =H130+I129 -> -3565.611072 | K130: =J129+K129 -> -1315.174232 | L130: =K130+L129 -> -1340.100146 | M130: =L130+M129 -> -2930.442785 | N130: =M130+N129 -> -2579.665682 | O130: =O129 -> 118.6286116 | P130: =P121-P127 -> -6026.648142
R131: Bilan année 1 | S131: Actif | V131: Passif
S132: Brut | T132: Amortissements | U132: Net | W132: Net
B133: Suivi mensuel de la trésorerie | C133: Solde investissements | D133: =D94 -> Septembre | E133: Octobre | F133: Novembre | G133: Décembre | H133: Janvier | I133: Février | J133: Mars | K133: Avril | L133: Mai | M133: Juin | N133: Juillet | O133: Août | R133: Fonds de commerce | S133: ='Bilan ouverture'!C4 -> 10000 | U133: =S133 -> 10000 | V133: Capital | W133: ='Bilan ouverture'!E4+'Bilan ouverture'!E5 -> 3000
B134: Solde de trésorie | C134: =C68-C117-C65 -> 15042 | D134: =D80-D117 -> 40002.40676 | E134: =E80-E117 -> -7266.636723 | F134: -3388.503653 | G134: 5639.901025 | H134: -11605.77726 | I134: -6204.408318 | J134: -3305.704303 | K134: -9416.789263 | L134: -1489.86685 | M134: 1824.295697 | N134: -9633.471407 | O134: -3325.624719 | R134: Frais d'établissement | S134: ='Bilan ouverture'!C5 -> 1500 | T134: =Amortissements!E4 -> 500 | U134: =S134-T134 -> 1000 | V134: Report à nouveau | Z134: Dettes fournisseurs à reporter au bilan | AA134: N+1
B135: Cumul de la trésorerie | D135: =C134+D134 -> 55044.40676 | E135: =D135+E134 -> 47777.77003 | F135: 44389.26638 | G135: 50029.16741 | H135: 38423.39015 | I135: 32218.98183 | J135: 28913.27752 | K135: 19496.48826 | L135: 18006.62141 | M135: 19830.91711 | N135: 10197.4457 | O135: 6871.820982 | R135: Travaux et mises aux normes | S135: ='Bilan ouverture'!C6 -> 1250 | T135: =Amortissements!E5 -> 125 | U135: =S135-T135 -> 1125 | V135: Résultat net | W135: =P19-AA146 -> 20353.72642 | Z135: Dettes achats librairie | AA135: =(P46*1.055)-P99 -> 7726.700405
R136: Construction | S136: ='Bilan ouverture'!C7 -> 0 | T136: =Amortissements!E6 -> 0 | U136: 0 | V136: Subventions d'investissements | W136: ='Bilan ouverture'!J24 -> 8000 | Z136: Dettes augmentation stock librairie | AA136: =(P50*1.055)-P103 -> 534.2100039
R137: Aménagement | S137: ='Bilan ouverture'!C8 -> 2000 | T137: =Amortissements!E7 -> 200 | U137: 1800 | V137: Emprunts bancaires | W137: ='Bilan ouverture'!$L$90 -> 17286.38661 | Z137: Dettes autres produits | AA137: =(P47*1.2)-P100 -> 0
R138: Mobilier | S138: ='Bilan ouverture'!C9 -> 0 | T138: =Amortissements!E8 -> 0 | U138: 0 | V138: Emprunts taux 0 % | W138: ='Bilan ouverture'!Z90 -> 8000 | Z138: Dettes augmentation stock autres produits | AA138: =(P51*1.2)-P104 -> 0
R139: Informatique | S139: ='Bilan ouverture'!C10 -> 6765 | T139: =Amortissements!E9 -> 2255 | U139: 4510 | V139: Comptes courants associés | W139: ='Bilan ouverture'!E6 -> 2000 | Z139: Total Dettes fou | AA139: =SUM(AA135:AA138) -> 8260.910409
R140: Caution financière | S140: ='Bilan ouverture'!C11 -> 0 | U140: =S140 -> 0 | V140: Comptes courant Adelc | W140: ='Bilan ouverture'!$S$90 -> 5000
R141: Caution bail | S141: ='Bilan ouverture'!C12 -> 1440 | U141: 1440 | Z141: Échelonnement des dettes | AA141: 1er mois N+1 | AB141: 2ème mois N+1
B142: Suivi et évolution du stock | C142: =C119 -> Démarrage | D142: Septembre | E142: Octobre | F142: Novembre | G142: Décembre | H142: Janvier | I142: Février | J142: Mars | K142: Avril | L142: Mai | M142: Juin | N142: Juillet | O142: Août | R142: Stock librairie | S142: ='Outil de simulation'!G28 -> 35626.22437 | U142: 35626.22437 | V142: Fournisseurs | W142: =AA139 -> 8260.910409 | Z142: Dettes librairie | AA142: =N46*1.055 -> 4292.611336 | AB142: =O46*1.055 -> 3434.089069
B143: ventes | D143: =D5-(D5*$C$7) -> 14752.71255 | E143: 9483.88664 | F143: 11591.417 | G143: 16860.24291 | H143: 7376.356275 | I143: 7376.356275 | J143: 5268.825911 | K143: 6322.591093 | L143: 5268.825911 | M143: 8430.121457 | N143: 7376.356275 | O143: 5268.825911 | R143: Stock autres produits | S143: ='Outil de simulation'!P28 -> 10544.56522 | U143: 10544.56522 | Z143: Dettes achats stocks | AA143: =N50*1.055 -> 296.7833355 | AB143: =O50*1.055 -> 237.4266684
B144: Achats | D144: =D58 -> 15096.1164 | E144: 10440.32911 | F144: 13050.41139 | G144: 11310.35654 | H144: 6090.191981 | I144: 6090.191981 | J144: 12486.03412 | K144: 6090.191981 | L144: 6090.191981 | M144: 16648.04549 | N144: 4350.137129 | O144: 3480.109704 | R144: Stock restauration café | S144: ='Outil de simulation'!R28 -> 0 | U144: 0 | V144: TVA à payer | W144: =IF(O130>0,O130,0) -> 118.6286116 | Z144: Dettes autres produits | AA144: =O47*1.2 -> 0
B145: Évolution du stock | C145: =(C95/1.055)+(C96/1.2)+(C97/1.1) -> 40325 | D145: =C145-D143+D144 -> 40668.40385 | E145: =D145-E143+E144 -> 41624.84632 | F145: =E145-F143+F144 -> 43083.8407 | G145: 37533.95432 | H145: 36247.79003 | I145: 34961.62574 | J145: 42178.83395 | K145: 41946.43483 | L145: 42767.8009 | M145: 50985.72494 | N145: 47959.50579 | O145: 46170.78959 | R145: TVA à récupérer | S145: =IF(O130<0,O130*-1,0) -> 0 | U145: =S145 -> 0 | V145: IS solde | W145: =AA147 -> 897.9585187 | Z145: Dettes achats stocks autres produits | AA145: =O51*1.2 -> 0
B146: Coût des ventes | C146: ='Outil de simulation'!T30 -> 105376.5182 | D146: Notes - La rotation calculée ici à partir de la saisonnalité du stock est bien plus précise que la rotation calculée à partir du stock moyen. | R146: Disponibilités | S146: =IF(O135>0,O135,"") -> 6871.820982 | U146: 6871.820982 | V146: Découvert | W146: =IF(O135<0,O135*-1,"") ->  | Z146: Calcul de l'IS | AA146: =IF(P19<0,0,P19*C115) -> 3591.834075
B147: Stock Moyen | C147: =SUM(C145:O145)/13 -> 42034.96546 | R147: TOTAL | S147: =SUM(S133:S146) -> 75997.61057 | T147: =SUM(T133:T145) -> 3080 | U147: =SUM(U133:U146) -> 72917.61057 | W147: =SUM(W133:W146) -> 72917.61057 | Z147: Dettes IS au bilan | AA147: =M115 -> 897.9585187
B148: Rotation | C148: =C146/C147 -> 2.506877716
B149: Rotation en J | C149: =365/C148 -> 145.5994433 | R149: Écart | V149: Écart | W149: =W147-U147 -> 0

Sheet Trésorerie année 2
B2: Formation du résultat en fonction de la saisonnalité | C2: % | D2: ='Outil de simulation'!C116 -> Septembre | E2: ='Outil de simulation'!D116 -> Octobre | F2: ='Outil de simulation'!E116 -> Novembre | G2: ='Outil de simulation'!F116 -> Décembre | H2: ='Outil de simulation'!G116 -> Janvier | I2: ='Outil de simulation'!H116 -> Février | J2: ='Outil de simulation'!I116 -> Mars | K2: ='Outil de simulation'!J116 -> Avril | L2: ='Outil de simulation'!K116 -> Mai | M2: ='Outil de simulation'!L116 -> Juin | N2: ='Outil de simulation'!M116 -> Juillet | O2: ='Outil de simulation'!N116 -> Août | P2: Total
B3: Saisonnalité des ventes | D3: ='Outil de simulation'!C117 -> 0.14 | E3: ='Outil de simulation'!D117 -> 0.09 | F3: ='Outil de simulation'!E117 -> 0.11 | G3: ='Outil de simulation'!F117 -> 0.16 | H3: ='Outil de simulation'!G117 -> 0.07 | I3: ='Outil de simulation'!H117 -> 0.07 | J3: ='Outil de simulation'!I117 -> 0.05 | K3: ='Outil de simulation'!J117 -> 0.06 | L3: ='Outil de simulation'!K117 -> 0.05 | M3: ='Outil de simulation'!L117 -> 0.08 | N3: ='Outil de simulation'!M117 -> 0.07 | O3: ='Outil de simulation'!N117 -> 0.05 | P3: =SUM(D3:O3) -> 1
B5: Ventes brutes | D5: =$P$5*D3 -> 25714.65587 | E5: 16530.8502 | F5: 20204.37247 | G5: 29388.17814 | H5: 12857.32794 | I5: 12857.32794 | J5: 9183.805668 | K5: 11020.5668 | L5: 9183.805668 | M5: 14694.08907 | N5: 12857.32794 | O5: 9183.805668 | P5: ='Outil de simulation'!T51 -> 183676.1134
B6: CA global | D6: =$P$6*D3 -> 25480 | E6: 16380 | F6: 20020 | G6: 29120 | H6: 12740 | I6: 12740 | J6: 9100 | K6: 10920 | L6: 9100 | M6: 14560 | N6: 12740 | O6: 9100 | P6: ='Outil de simulation'!T53 -> 182000
B7: Marge commerciale | C7: ='Outil de simulation'!V61 -> 0.3543731264 | D7: =D5*$C$7 -> 9112.582996 | E7: 5858.089069 | F7: 7159.88664 | G7: 10414.38057 | H7: 4556.291498 | I7: 4556.291498 | J7: 3254.493927 | K7: 3905.392713 | L7: 3254.493927 | M7: 5207.190283 | N7: 4556.291498 | O7: 3254.493927 | P7: ='Outil de simulation'!T61 -> 65089.87854
B8: Marge brute | D8: =$P$8*D3 -> 8877.927126 | E8: =$P$8*E3 -> 5707.238866 | F8: 6975.51417 | G8: 10146.20243 | H8: =$P$8*H3 -> 4438.963563 | I8: 4438.963563 | J8: 3170.688259 | K8: 3804.825911 | L8: 3170.688259 | M8: 5073.101215 | N8: 4438.963563 | O8: 3170.688259 | P8: ='Outil de simulation'!T60 -> 63413.76518
B9: Produits exceptionnels sub investissements | D9: =$P$9/12 -> 166.6666667 | E9: =$P$9/12 -> 166.6666667 | F9: 166.6666667 | G9: 166.6666667 | H9: 166.6666667 | I9: 166.6666667 | J9: 166.6666667 | K9: 166.6666667 | L9: 166.6666667 | M9: 166.6666667 | N9: 166.6666667 | O9: 166.6666667 | P9: ='Bilan ouverture'!K25 -> 2000
B10: Fournitures consommables | D10: =$P$10*D3 -> 428.4 | E10: =$P$10*E3 -> 275.4 | F10: 336.6 | G10: 489.6 | H10: 214.2 | I10: 214.2 | J10: 153 | K10: 183.6 | L10: 153 | M10: 244.8 | N10: 214.2 | O10: 153 | P10: ='Compte de résultats 3 ans'!J13 -> 3060
B11: Loyer | D11: =$P$11/12 -> 720 | E11: 720 | F11: 720 | G11: 720 | H11: 720 | I11: 720 | J11: 720 | K11: 720 | L11: 720 | M11: 720 | N11: 720 | O11: 720 | P11: ='Compte de résultats 3 ans'!J20 -> 8640
B12: Charges externes | D12: =$P$12/12 -> 1087.065 | E12: 1087.065 | F12: 1087.065 | G12: 1087.065 | H12: 1087.065 | I12: 1087.065 | J12: 1087.065 | K12: 1087.065 | L12: 1087.065 | M12: 1087.065 | N12: 1087.065 | O12: 1087.065 | P12: ='Compte de résultats 3 ans'!J19-'Compte de résultats 3 ans'!J20 -> 13044.78
B13: Personnel (salaires et charges) | D13: =$P$13/12 -> 1818 | E13: 1818 | F13: 1818 | G13: 1818 | H13: 1818 | I13: 1818 | J13: 1818 | K13: 1818 | L13: 1818 | M13: 1818 | N13: 1818 | O13: 1818 | P13: ='Compte de résultats 3 ans'!J55 -> 21816
B14: Amortissements | D14: =$P$14/12 -> 256.6666667 | E14: 256.6666667 | F14: 256.6666667 | G14: 256.6666667 | H14: 256.6666667 | I14: 256.6666667 | J14: 256.6666667 | K14: 256.6666667 | L14: 256.6666667 | M14: 256.6666667 | N14: 256.6666667 | O14: 256.6666667 | P14: ='Compte de résultats 3 ans'!J56 -> 3080
B15: Impôts | N15: =P15 -> 1632 | P15: ='Compte de résultats 3 ans'!J54 -> 1632
B16: Financier | D16: =$P$16/12 -> 22.70239255 | E16: 22.70239255 | F16: 22.70239255 | G16: 22.70239255 | H16: 22.70239255 | I16: 22.70239255 | J16: 22.70239255 | K16: 22.70239255 | L16: 22.70239255 | M16: 22.70239255 | N16: 22.70239255 | O16: 22.70239255 | P16: ='Compte de résultats 3 ans'!J57 -> 272.4287106
B18: Résultat net avant IS | D18: =D8+D9-SUM(D10:D16) -> 4711.759733 | E18: =E8+E9-SUM(E10:E16) -> 1694.071474 | F18: =F8+F9-SUM(F10:F16) -> 2901.146777 | G18: 5918.835037 | H18: 486.9961702 | I18: 486.9961702 | J18: -720.0791334 | K18: -116.5414816 | L18: -720.0791334 | M18: 1090.533822 | N18: -1145.00383 | O18: =O8-SUM(O10:O16) -> -886.7458001 | P18: =P8-SUM(P10:P16)+P9 -> 13868.55647
B19: Résultat net avant IS cumulés | E19: =D18+E18 -> 6405.831207 | F19: =E19+F18 -> 9306.977984 | G19: 15225.81302 | H19: 15712.80919 | I19: 16199.80536 | J19: 15479.72623 | K19: 15363.18475 | L19: 14643.10561 | M19: 15733.63943 | N19: 14588.63561 | O19: 13701.8898
B20: CAF | P20: =P14+P18-Z122 -> 14868.273
B22: Répartition des ventes en fonction de la saisonnalité | D22: ='Outil de simulation'!C116 -> Septembre | E22: ='Outil de simulation'!D116 -> Octobre | F22: ='Outil de simulation'!E116 -> Novembre | G22: ='Outil de simulation'!F116 -> Décembre | H22: ='Outil de simulation'!G116 -> Janvier | I22: ='Outil de simulation'!H116 -> Février | J22: ='Outil de simulation'!I116 -> Mars | K22: ='Outil de simulation'!J116 -> Avril | L22: ='Outil de simulation'!K116 -> Mai | M22: ='Outil de simulation'!L116 -> Juin | N22: ='Outil de simulation'!M116 -> Juillet | O22: ='Outil de simulation'!N116 -> Août | P22: Total
B23: Librairie
B24: Répartition du CA comptant | D24: =$P$24*D25 -> 19320 | E24: 12420 | F24: 15180 | G24: 22080 | H24: 9660 | I24: 9660 | J24: 6900 | K24: 8280 | L24: 6900 | M24: 11040 | N24: 9660 | O24: 6900 | P24: ='Outil de simulation'!C53 -> 138000
B25: Saisonnalité Librairie comptant | D25: ='Outil de simulation'!C117 -> 0.14 | E25: ='Outil de simulation'!D117 -> 0.09 | F25: ='Outil de simulation'!E117 -> 0.11 | G25: ='Outil de simulation'!F117 -> 0.16 | H25: ='Outil de simulation'!G117 -> 0.07 | I25: ='Outil de simulation'!H117 -> 0.07 | J25: ='Outil de simulation'!I117 -> 0.05 | K25: ='Outil de simulation'!J117 -> 0.06 | L25: ='Outil de simulation'!K117 -> 0.05 | M25: ='Outil de simulation'!L117 -> 0.08 | N25: ='Outil de simulation'!M117 -> 0.07 | O25: ='Outil de simulation'!N117 -> 0.05 | P25: =SUM(D25:O25) -> 1
B26: Répartition du CA livre à terme | D26: =$P$26*D27 -> 0 | E26: 0 | F26: 0 | G26: 0 | H26: 0 | I26: 0 | J26: 0 | K26: 0 | L26: 0 | M26: 0 | N26: 0 | O26: 0 | P26: ='Outil de simulation'!E53 -> 0
B27: Saisonnalité facturation librairie à terme | D27: ='Outil de simulation'!C119 -> 0.1 | E27: ='Outil de simulation'!D119 -> 0.1 | F27: ='Outil de simulation'!E119 -> 0.1 | G27: ='Outil de simulation'!F119 -> 0.1 | H27: ='Outil de simulation'!G119 -> 0.1 | I27: ='Outil de simulation'!H119 -> 0.1 | J27: ='Outil de simulation'!I119 -> 0.1 | K27: ='Outil de simulation'!J119 -> 0.1 | L27: ='Outil de simulation'!K119 -> 0.1 | M27: ='Outil de simulation'!L119 -> 0.1 | N27: ='Outil de simulation'!M119 -> 0 | O27: ='Outil de simulation'!N119 -> 0 | P27: =SUM(D27:O27) -> 1
B28: Total librairie (TVA 5,5 %) | D28: =D24+D26 -> 19320 | E28: =E24+E26 -> 12420 | F28: 15180 | G28: 22080 | H28: 9660 | I28: 9660 | J28: 6900 | K28: 8280 | L28: 6900 | M28: 11040 | N28: 9660 | O28: =O24+O26 -> 6900 | P28: =P24+P26 -> 138000
B29: Autres produits
B30: Répartition du CA des ventes autres produits (TVA 20 %) | D30: =$P$30*D31 -> 6160 | E30: 3960 | F30: 4840 | G30: 7040 | H30: 3080 | I30: 3080 | J30: 2200 | K30: 2640 | L30: 2200 | M30: 3520 | N30: 3080 | O30: 2200 | P30: ='Outil de simulation'!P53 -> 44000
B31: Saisonnalité des ventes autres produits | D31: ='Outil de simulation'!C120 -> 0.14 | E31: ='Outil de simulation'!D120 -> 0.09 | F31: ='Outil de simulation'!E120 -> 0.11 | G31: ='Outil de simulation'!F120 -> 0.16 | H31: ='Outil de simulation'!G120 -> 0.07 | I31: ='Outil de simulation'!H120 -> 0.07 | J31: ='Outil de simulation'!I120 -> 0.05 | K31: ='Outil de simulation'!J120 -> 0.06 | L31: ='Outil de simulation'!K120 -> 0.05 | M31: ='Outil de simulation'!L120 -> 0.08 | N31: ='Outil de simulation'!M120 -> 0.07 | O31: ='Outil de simulation'!N120 -> 0.05
B32: Total CA autres produits (TVA 20 %) | D32: =D30 -> 6160 | E32: =E30 -> 3960 | F32: 4840 | G32: 7040 | H32: 3080 | I32: 3080 | J32: 2200 | K32: 2640 | L32: 2200 | M32: 3520 | N32: 3080 | O32: 2200 | P32: =P30 -> 44000
B33: Restaurant/Café
B34: Répartition des ventes restaurant café (TVA 10 %) | D34: =$P$34*D35 -> 0 | E34: =$P$34*E35 -> 0 | F34: 0 | G34: 0 | H34: 0 | I34: 0 | J34: 0 | K34: 0 | L34: 0 | M34: 0 | N34: 0 | O34: 0 | P34: ='Outil de simulation'!R53 -> 0
B35: Saisonnalité des ventes restaurant café | D35: ='Outil de simulation'!C122 -> 0.08333333333 | E35: ='Outil de simulation'!D122 -> 0.08333333333 | F35: ='Outil de simulation'!E122 -> 0.08333333333 | G35: ='Outil de simulation'!F122 -> 0.08333333333 | H35: ='Outil de simulation'!G122 -> 0.08333333333 | I35: ='Outil de simulation'!H122 -> 0.08333333333 | J35: ='Outil de simulation'!I122 -> 0.08333333333 | K35: ='Outil de simulation'!J122 -> 0.08333333333 | L35: ='Outil de simulation'!K122 -> 0.08333333333 | M35: ='Outil de simulation'!L122 -> 0.08333333333 | N35: ='Outil de simulation'!M122 -> 0.08333333333 | O35: ='Outil de simulation'!N122 -> 0.08333333333 | P35: =SUM(D35:O35) -> 1
B36: Total Restaurant café (TVA 10 % majoritaire) | D36: =D34 -> 0 | E36: =E34 -> 0 | F36: 0 | G36: 0 | H36: 0 | I36: 0 | J36: 0 | K36: 0 | L36: 0 | M36: 0 | N36: 0 | O36: 0 | P36: =SUM(D36:O36) -> 0
B38: Total CA | D38: =D28+D32+D36 -> 25480 | E38: =E28+E32+E36 -> 16380 | F38: 20020 | G38: 29120 | H38: 12740 | I38: 12740 | J38: 9100 | K38: 10920 | L38: 9100 | M38: 14560 | N38: 12740 | O38: 9100 | P38: =P28+P32+P36 -> 182000
B40: Répartition des achats en fonction de la saisonnalité | C40: Saisons | D40: ='Outil de simulation'!C116 -> Septembre | E40: ='Outil de simulation'!D116 -> Octobre | F40: ='Outil de simulation'!E116 -> Novembre | G40: ='Outil de simulation'!F116 -> Décembre | H40: ='Outil de simulation'!G116 -> Janvier | I40: ='Outil de simulation'!H116 -> Février | J40: ='Outil de simulation'!I116 -> Mars | K40: ='Outil de simulation'!J116 -> Avril | L40: ='Outil de simulation'!K116 -> Mai | M40: ='Outil de simulation'!L116 -> Juin | N40: ='Outil de simulation'!M116 -> Juillet | O40: ='Outil de simulation'!N116 -> Août | P40: Total
C41: Librairie | D41: ='Outil de simulation'!C118 -> 0.09 | E41: ='Outil de simulation'!D118 -> 0.12 | F41: ='Outil de simulation'!E118 -> 0.15 | G41: ='Outil de simulation'!F118 -> 0.13 | H41: ='Outil de simulation'!G118 -> 0.07 | I41: ='Outil de simulation'!H118 -> 0.07 | J41: ='Outil de simulation'!I118 -> 0.06 | K41: ='Outil de simulation'!J118 -> 0.07 | L41: ='Outil de simulation'!K118 -> 0.07 | M41: ='Outil de simulation'!L118 -> 0.08 | N41: ='Outil de simulation'!M118 -> 0.05 | O41: ='Outil de simulation'!N118 -> 0.04 | P41: =SUM(D41:O41) -> 1
C42: Autres produits | D42: ='Outil de simulation'!C121 -> 0.3 | E42: ='Outil de simulation'!D121 -> 0 | F42: ='Outil de simulation'!E121 -> 0 | G42: ='Outil de simulation'!F121 -> 0 | H42: ='Outil de simulation'!G121 -> 0 | I42: ='Outil de simulation'!H121 -> 0 | J42: ='Outil de simulation'!I121 -> 0.3 | K42: ='Outil de simulation'!J121 -> 0 | L42: ='Outil de simulation'!K121 -> 0 | M42: ='Outil de simulation'!L121 -> 0.4 | N42: ='Outil de simulation'!M121 -> 0 | O42: ='Outil de simulation'!N121 -> 0 | P42: =SUM(D42:O42) -> 1
C43: Restauration café | D43: ='Outil de simulation'!C123 -> 0.08333333333 | E43: ='Outil de simulation'!D123 -> 0.08333333333 | F43: ='Outil de simulation'!E123 -> 0.08333333333 | G43: ='Outil de simulation'!F123 -> 0.08333333333 | H43: ='Outil de simulation'!G123 -> 0.08333333333 | I43: ='Outil de simulation'!H123 -> 0.08333333333 | J43: ='Outil de simulation'!I123 -> 0.08333333333 | K43: ='Outil de simulation'!J123 -> 0.08333333333 | L43: ='Outil de simulation'!K123 -> 0.08333333333 | M43: ='Outil de simulation'!L123 -> 0.08333333333 | N43: ='Outil de simulation'!M123 -> 0.08333333333 | O43: ='Outil de simulation'!N123 -> 0.08333333333 | P43: =SUM(D43:O43) -> 1
B44: Coût des ventes
B45: Librairie | D45: =$P$45*D41 -> 8296.761134 | E45: 11062.34818 | F45: 13827.93522 | G45: 11984.21053 | H45: 6453.036437 | I45: 6453.036437 | J45: 5531.174089 | K45: 6453.036437 | L45: 6453.036437 | M45: 7374.898785 | N45: 4609.311741 | O45: 3687.449393 | P45: ='Outil de simulation'!G59 -> 92186.23482
B46: Autres produits | D46: =$P$46*D42 -> 7920 | E46: 0 | F46: 0 | G46: =$P$46*G42 -> 0 | H46: 0 | I46: 0 | J46: 7920 | K46: 0 | L46: 0 | M46: 10560 | N46: 0 | O46: 0 | P46: ='Outil de simulation'!P59 -> 26400
B47: Restauration café | D47: =$P$47*D43 -> 0 | E47: =$P$47*E43 -> 0 | F47: 0 | G47: 0 | H47: 0 | I47: 0 | J47: 0 | K47: 0 | L47: 0 | M47: 0 | N47: 0 | O47: 0 | P47: ='Outil de simulation'!R59 -> 0
B48: Augmentation stock
B49: Augmentation stock librairie | D49: =$P$49/12 -> 0 | E49: =$P$49/12 -> 0 | F49: 0 | G49: 0 | H49: 0 | I49: 0 | J49: 0 | K49: 0 | L49: 0 | M49: 0 | N49: 0 | O49: 0 | P49: ='Outil de simulation'!G57-'Outil de simulation'!G55 -> 0
B50: Augmentation stock autres produits | D50: =$P$50/12 -> 0 | E50: =$P$50/12 -> 0 | F50: 0 | G50: 0 | H50: 0 | I50: 0 | J50: 0 | K50: 0 | L50: 0 | M50: 0 | N50: 0 | O50: 0 | P50: ='Outil de simulation'!P57-'Outil de simulation'!P55 -> 0
B51: Augmentation stock restauration café | D51: =$P$51/12 -> 0 | E51: =$P$51/12 -> 0 | F51: 0 | G51: 0 | H51: 0 | I51: 0 | J51: 0 | K51: 0 | L51: 0 | M51: 0 | N51: 0 | O51: 0 | P51: ='Outil de simulation'!R57-'Outil de simulation'!R55 -> 0
B52: Total des achats
B53: Total achats librairie | D53: =D45+D49 -> 8296.761134 | E53: 11062.34818 | F53: 13827.93522 | G53: 11984.21053 | H53: 6453.036437 | I53: 6453.036437 | J53: 5531.174089 | K53: 6453.036437 | L53: 6453.036437 | M53: 7374.898785 | N53: 4609.311741 | O53: 3687.449393 | P53: 92186.23482
B54: Total achats autres produits | D54: =D46+D50 -> 7920 | E54: 0 | F54: 0 | G54: 0 | H54: 0 | I54: 0 | J54: 7920 | K54: 0 | L54: 0 | M54: 10560 | N54: 0 | O54: 0 | P54: 26400
B55: Total achats restauration café | D55: =D47+D51 -> 0 | E55: =E47+E51 -> 0 | F55: 0 | G55: 0 | H55: 0 | I55: 0 | J55: 0 | K55: 0 | L55: 0 | M55: 0 | N55: 0 | O55: 0 | P55: =P47+P51 -> 0
B57: Total achats | D57: =SUM(D53:D55) -> 16216.76113 | E57: =SUM(E53:E55) -> 11062.34818 | F57: 13827.93522 | G57: 11984.21053 | H57: 6453.036437 | I57: 6453.036437 | J57: 13451.17409 | K57: 6453.036437 | L57: 6453.036437 | M57: 17934.89879 | N57: 4609.311741 | O57: 3687.449393 | P57: =SUM(P53:P55) -> 118586.2348
B59: Trésorerie entrante | D59: =D40 -> Septembre | E59: Octobre | F59: Novembre | G59: Décembre | H59: Janvier | I59: Février | J59: Mars | K59: Avril | L59: Mai | M59: Juin | N59: Juillet | O59: Août | P59: Total
B60: Répartition du CA
B61: CA TTC librairie | D61: =D28*1.055 -> 20382.6 | E61: =E28*1.055 -> 13103.1 | F61: 16014.9 | G61: 23294.4 | H61: 10191.3 | I61: 10191.3 | J61: 7279.5 | K61: 8735.4 | L61: 7279.5 | M61: 11647.2 | N61: 10191.3 | O61: 7279.5 | P61: =SUM(D61:O61) -> 145590
B62: CA TTC autres produits | D62: =D32*1.2 -> 7392 | E62: 4752 | F62: 5808 | G62: 8448 | H62: 3696 | I62: 3696 | J62: 2640 | K62: 3168 | L62: 2640 | M62: 4224 | N62: 3696 | O62: 2640 | P62: 52800
B63: CA TTC restauration café | D63: =D36*1.1 -> 0 | E63: 0 | F63: 0 | G63: 0 | H63: 0 | I63: 0 | J63: 0 | K63: 0 | L63: 0 | M63: 0 | N63: 0 | O63: 0 | P63: 0
B64: Total CA TTC | D64: =D61+D62+D63 -> 27774.6 | E64: =E61+E62+E63 -> 17855.1 | F64: 21822.9 | G64: 31742.4 | H64: 13887.3 | I64: 13887.3 | J64: 9919.5 | K64: 11903.4 | L64: 9919.5 | M64: 15871.2 | N64: 13887.3 | O64: 9919.5 | P64: 198390
B66: TVA à récupérer N-1 | D66: ='Trésorerie année 1'!U145 -> 0 | P66: =SUM(D66:O66) -> 0
B68: Récupération TVA | D68: =IF(D112>0,D112,0) -> 78.72672925 | E68: =IF(E112>0,E112,0) -> 0 | F68: 0 | G68: 0 | H68: 0 | I68: 0 | J68: 1465.268053 | K68: 0 | L68: 0 | M68: 1621.332912 | N68: 0 | O68: 0 | P68: 3165.327694
B70: Total des entrées d'argent dans la strcuture | D70: =D64+D66+D68 -> 27853.32673 | E70: =E64+E68 -> 17855.1 | F70: 21822.9 | G70: 31742.4 | H70: 13887.3 | I70: 13887.3 | J70: 11384.76805 | K70: 11903.4 | L70: 9919.5 | M70: 17492.53291 | N70: 13887.3 | O70: 9919.5 | P70: =P64+P68+P66 -> 201555.3277
B72: Trésorerie sortante | D72: =D59 -> Septembre | E72: =E59 -> Octobre | F72: Novembre | G72: Décembre | H72: Janvier | I72: Février | J72: Mars | K72: Avril | L72: Mai | M72: Juin | N72: Juillet | O72: Août | P72: Total
B73: Stock Librairie TTC à payer | C73: ='Trésorerie année 1'!C95-'Trésorerie année 1'!P95 -> 0 | D73: =C73/12 -> 0 | E73: =D73/12 -> 0 | F73: 0 | G73: 0 | H73: 0 | I73: 0 | J73: 0 | K73: 0 | L73: 0 | M73: 0 | N73: 0 | O73: 0 | P73: =SUM(D73:O73) -> 0
B74: Stock autres produits TTC à payer | C74: ='Trésorerie année 1'!C96-'Trésorerie année 1'!P96 -> 0 | D74: =C74/12 -> 0 | E74: =D74/12 -> 0 | F74: 0 | G74: 0 | H74: 0 | I74: 0 | J74: 0 | K74: 0 | L74: 0 | M74: 0 | N74: 0 | O74: 0 | P74: =SUM(D74:O74) -> 0
B75: Stock restauration café TTC à payer | C75: ='Trésorerie année 1'!C97-'Trésorerie année 1'!P97 -> 0 | D75: =C75/12 -> 0 | E75: =D75/12 -> 0 | F75: 0 | G75: 0 | H75: 0 | I75: 0 | J75: 0 | K75: 0 | L75: 0 | M75: 0 | N75: 0 | O75: 0 | P75: =SUM(D75:O75) -> 0
B77: Achats librairie TTC (en bleu report de la dette N-1) | D77: ='Trésorerie année 1'!AA142 -> 4292.611336 | E77: ='Trésorerie année 1'!AB142 -> 3434.089069 | F77: =D45*1.055 -> 8753.082996 | G77: 11670.77733 | H77: 14588.47166 | I77: 12643.34211 | J77: 6807.953441 | K77: 6807.953441 | L77: 5835.388664 | M77: 6807.953441 | N77: 6807.953441 | O77: 7780.518219 | P77: =SUM(D77:O77) -> 96230.09514
B78: Achats autres produits TTC (en bleu report de la dette N-1) | D78: ='Trésorerie année 1'!AA144 -> 0 | E78: =D46*1.2 -> 9504 | F78: 0 | G78: 0 | H78: 0 | I78: 0 | J78: 0 | K78: 9504 | L78: 0 | M78: 0 | N78: 12672 | O78: 0 | P78: 31680
B79: Achats restauration café TTC | D79: =D47*1.1 -> 0 | E79: 0 | F79: 0 | G79: 0 | H79: 0 | I79: 0 | J79: 0 | K79: 0 | L79: 0 | M79: 0 | N79: 0 | O79: 0 | P79: 0
B81: Augmentation stock librairie TTC | C81: échéancé | D81: ='Trésorerie année 1'!AA143 -> 296.7833355 | E81: ='Trésorerie année 1'!AB143 -> 237.4266684 | F81: =D49*1.055 -> 0 | G81: 0 | H81: 0 | I81: 0 | J81: 0 | K81: 0 | L81: 0 | M81: 0 | N81: 0 | O81: 0 | P81: =SUM(D81:O81) -> 534.2100039
B82: Augmentation stock autres produits TTC | C82: échéancé | D82: ='Trésorerie année 1'!AA145 -> 0 | E82: =D50*1.2 -> 0 | F82: 0 | G82: 0 | H82: 0 | I82: 0 | J82: 0 | K82: 0 | L82: 0 | M82: 0 | N82: 0 | O82: 0 | P82: =SUM(D82:O82) -> 0
B83: Augmentation stock restauration café TTC | D83: =D51*1.1 -> 0 | E83: 0 | F83: 0 | G83: 0 | H83: 0 | I83: 0 | J83: 0 | K83: 0 | L83: 0 | M83: 0 | N83: 0 | O83: 0 | P83: =SUM(D83:O83) -> 0
B85: Fournitures consommables TTC | D85: =D10*1.2 -> 514.08 | E85: 330.48 | F85: 403.92 | G85: 587.52 | H85: 257.04 | I85: 257.04 | J85: 183.6 | K85: 220.32 | L85: 183.6 | M85: 293.76 | N85: 257.04 | O85: 183.6 | P85: =SUM(D85:O85) -> 3672
B86: Loyer TTC | D86: =D11*1.2 -> 864 | E86: 864 | F86: 864 | G86: 864 | H86: 864 | I86: 864 | J86: 864 | K86: 864 | L86: 864 | M86: 864 | N86: 864 | O86: 864 | P86: =SUM(D86:O86) -> 10368
B87: Services extérieurs TTC | D87: =D12*1.2 -> 1304.478 | E87: 1304.478 | F87: 1304.478 | G87: 1304.478 | H87: 1304.478 | I87: 1304.478 | J87: 1304.478 | K87: 1304.478 | L87: 1304.478 | M87: 1304.478 | N87: 1304.478 | O87: 1304.478 | P87: =SUM(D87:O87) -> 15653.736
B88: Personnel | D88: =D13 -> 1818 | E88: 1818 | F88: 1818 | G88: 1818 | H88: 1818 | I88: 1818 | J88: 1818 | K88: 1818 | L88: 1818 | M88: 1818 | N88: 1818 | O88: 1818 | P88: =SUM(D88:O88) -> 21816
B89: Financier TTC | D89: =D16*1.2 -> 27.24287106 | E89: 27.24287106 | F89: 27.24287106 | G89: 27.24287106 | H89: 27.24287106 | I89: 27.24287106 | J89: 27.24287106 | K89: 27.24287106 | L89: 27.24287106 | M89: 27.24287106 | N89: 27.24287106 | O89: 27.24287106 | P89: =SUM(D89:O89) -> 326.9144527
B90: Impôts | N90: =P90 -> 1632 | P90: =P15 -> 1632
B91: Remboursement emprunts taux 0 % | D91: =$P$91/12 -> 166.6666667 | E91: 166.6666667 | F91: 166.6666667 | G91: 166.6666667 | H91: 166.6666667 | I91: 166.6666667 | J91: 166.6666667 | K91: 166.6666667 | L91: 166.6666667 | M91: 166.6666667 | N91: 166.6666667 | O91: 166.6666667 | P91: ='Bilan ouverture'!Y91 -> 2000
B92: Remboursement emprunts | D92: =$P$92/12 -> 230.0088305 | E92: 230.0088305 | F92: 230.0088305 | G92: 230.0088305 | H92: 230.0088305 | I92: 230.0088305 | J92: 230.0088305 | K92: 230.0088305 | L92: 230.0088305 | M92: 230.0088305 | N92: 230.0088305 | O92: 230.0088305 | P92: ='Bilan ouverture'!J91 -> 2760.105965
B93: IS | C93: ='Compte de résultats 3 ans'!I62 -> 0.15 | D93: ='Trésorerie année 1'!W145 -> 897.9585187 | G93: =$Z$122/4 -> 520.0708677 | K93: =$Z$122/4 -> 520.0708677 | O93: =$Z$122/4 -> 520.0708677 | P93: =SUM(D93:O93) -> 2458.171122
B94: Solde TVA redue | D94: =IF(D112<0,D112*-1,0) -> 0 | E94: =IF(E112<0,E112*-1,0) -> 445.6373717 | F94: =IF(F112<0,F112*-1,0) -> 609.0900842 | G94: 1499.394943 | H94: 383.5895174 | I94: 383.5895174 | J94: 0 | K94: 225.8095174 | L94: 68.02951744 | M94: 0 | N94: 484.9943757 | O94: 220.1368049 | P94: =SUM(D94:O94) -> 4320.271649
P95: =SUM(D95:O95) -> 0
B96: Total sorties | D96: =SUM(D73:D95) -> 10411.82956 | E96: =SUM(E73:E95) -> 18362.02948 | F96: =SUM(F73:F95) -> 14176.48945 | G96: 18688.15951 | H96: 19639.49755 | I96: 17694.36799 | J96: 11401.94981 | K96: 21688.55019 | L96: 10497.41455 | M96: =SUM(M73:M95) -> 11512.10981 | N96: 26264.38419 | O96: =SUM(O73:O95) -> 13114.72226 | P96: =SUM(D96:O96) -> 193451.5043
B99: Suivi mensuel de trésorerie | C99: Solde N-1 | D99: =D72 -> Septembre | E99: Octobre | F99: Novembre | G99: Décembre | H99: Janvier | I99: Février | J99: Mars | K99: Avril | L99: Mai | M99: Juin | N99: Juillet | O99: Août
B100: Solde de trésorerie | C100: ='Trésorerie année 1'!S146 -> 6871.820982 | D100: =D70-D96 -> 17441.49717 | E100: =E70-E96 -> -506.9294771 | F100: 7646.410552 | G100: 13054.24049 | H100: -5752.197546 | I100: -3807.067991 | J100: -17.18175606 | K100: -9785.150195 | L100: -577.9145496 | M100: 5980.423102 | N100: -12377.08419 | O100: -3195.222259
B101: Cumum de la trésorerie | D101: =C100+D100 -> 24313.31815 | E101: =D101+E100 -> 23806.38868 | F101: =E101+F100 -> 31452.79923 | G101: =F101+G100 -> 44507.03972 | H101: =G101+H100 -> 38754.84218 | I101: 34947.77418 | J101: 34930.59243 | K101: 25145.44223 | L101: 24567.52768 | M101: 30547.95079 | N101: 18170.8666 | O101: =N101+O100 -> 14975.64434
B104: Tableau de répartition de la TVA | D104: =D22 -> Septembre | E104: Octobre | F104: Novembre | G104: Décembre | H104: Janvier | I104: Février | J104: Mars | K104: Avril | L104: Mai | M104: Juin | N104: Juillet | O104: Août | P104: Total
B105: TVA à payer | D105: =(D28*5.5%)+(D32*20%)+(D36*10%)+C106 -> 2413.228612 | E105: =(E28*5.5%)+(E32*20%)+(E36*10%) -> 1475.1 | F105: 1802.9 | G105: 2622.4 | H105: 1147.3 | I105: 1147.3 | J105: 819.5 | K105: 983.4 | L105: 819.5 | M105: 1311.2 | N105: 1147.3 | O105: 819.5 | P105: =SUM(D105:O105) -> 16508.62861
B106: Solde N-1 | C106: =IF('Trésorerie année 1'!W144>0,'Trésorerie année 1'!W144,0) -> 118.6286116
B107: TVA à récupérer | R107: Bilan année 2 | S107: Actif | V107: Passif
B108: Solde N-1 | C108: =IF('Trésorerie année 1'!S145>0,'Trésorerie année 1'!S145,0) -> 0 | S108: Brut | T108: Amortissements | U108: Net | W108: Net
B109: Sur achats de marchandses et augmentation du stock | D109: =D53*5.5%+D54*20%+D55*10% -> 2040.321862 | E109: =E53*5.5%+E54*20%+E55*10% -> 608.4291498 | F109: 760.5364372 | G109: 659.1315789 | H109: 354.917004 | I109: 354.917004 | J109: 1888.214575 | K109: 354.917004 | L109: 354.917004 | M109: 2517.619433 | N109: 253.5121457 | O109: 202.8097166 | P109: =SUM(D109:O109) -> 10350.24291 | R109: Fonds de commerce | S109: ='Bilan ouverture'!C4 -> 10000 | U109: =S109 -> 10000 | V109: Capital | W109: ='Trésorerie année 1'!W133 -> 3000
B110: Sur frais généraux | D110: =((D85+D87+D89+D86)-(D85+D87+D89+D86)/1.2) -> 451.6334785 | E110: =((E85+E87+E89+E86)-(E85+E87+E89+E86)/1.2) -> 421.0334785 | F110: 433.2734785 | G110: 463.8734785 | H110: 408.7934785 | I110: 408.7934785 | J110: 396.5534785 | K110: 402.6734785 | L110: 396.5534785 | M110: 414.9134785 | N110: 408.7934785 | O110: 396.5534785 | P110: =SUM(C110:O110) -> 5003.441742 | R110: Frais d'établissement SARL | S110: ='Trésorerie année 1'!S134 -> 1500 | T110: =Amortissements!E4+Amortissements!F4 -> 1000 | U110: =S110-T110 -> 500 | V110: Report à nouveau | W110: ='Trésorerie année 1'!W135 -> 20353.72642
B111: Total TVA à récupérer | D111: =SUM(D107:D110) -> 2491.955341 | E111: =SUM(E106:E110) -> 1029.462628 | F111: 1193.809916 | G111: 1123.005057 | H111: 763.7104826 | I111: 763.7104826 | J111: 2284.768053 | K111: 757.5904826 | L111: 751.4704826 | M111: 2932.532912 | N111: 662.3056243 | O111: 599.3631951 | P111: =SUM(C111:O111) -> 15353.68466 | R111: Travaux et mises aux normes | S111: ='Trésorerie année 1'!S135 -> 1250 | T111: =Amortissements!E5+Amortissements!F5 -> 250 | U111: 1000 | V111: Résultat net | W111: =P18-Z122 -> 11788.273
B112: Solde TVA | C112: =C108 -> 0 | D112: =D111-D105 -> 78.72672925 | E112: =E111-E105 -> -445.6373717 | F112: =F111-F105 -> -609.0900842 | G112: -1499.394943 | H112: -383.5895174 | I112: -383.5895174 | J112: 1465.268053 | K112: -225.8095174 | L112: -68.02951744 | M112: 1621.332912 | N112: -484.9943757 | O112: -220.1368049 | P112: =P105-P111-C112 -> 1154.943955 | R112: Construction | S112: ='Trésorerie année 1'!S136 -> 0 | T112: =Amortissements!E6+Amortissements!F6 -> 0 | U112: 0 | V112: Subventions d'investissements | W112: ='Bilan ouverture'!K24 -> 6000
R113: Aménagement | S113: ='Trésorerie année 1'!S137 -> 2000 | T113: =Amortissements!E7+Amortissements!F7 -> 400 | U113: 1600 | V113: Emprunts bancaires | W113: ='Bilan ouverture'!L91 -> 14526.28064
B114: Cumul | R114: Mobilier | S114: ='Trésorerie année 1'!S138 -> 0 | T114: =Amortissements!E8+Amortissements!F8 -> 0 | U114: 0 | V114: Emprunts taux 0 % | W114: ='Bilan ouverture'!Z91 -> 6000 | Y114: Dettes fournisseurs à reporter au bilan | Z114: N+1 | AA114: 2ème mois N+1
B115: Suivi et évolution du stock | D115: =D104 -> Septembre | E115: Octobre | F115: Novembre | G115: Décembre | H115: Janvier | I115: Février | J115: Mars | K115: Avril | L115: Mai | M115: Juin | N115: Juillet | O115: Août | R115: Informatique | S115: ='Trésorerie année 1'!S139 -> 6765 | T115: =Amortissements!E9+Amortissements!F9 -> 4510 | U115: 2255 | V115: Comptes courants associés | W115: ='Bilan ouverture'!E6 -> 2000 | Y115: Dettes achats librairie | Z115: =N45*1.055 -> 4862.823887 | AA115: =O45*1.055 -> 3890.259109
B116: ventes | D116: =D5-(D5*$C$7) -> 16602.07287 | E116: 10672.76113 | F116: 13044.48583 | G116: 18973.79757 | H116: 8301.036437 | I116: 8301.036437 | J116: 5929.311741 | K116: 7115.174089 | L116: 5929.311741 | M116: 9486.898785 | N116: 8301.036437 | O116: 5929.311741 | R116: Caution financière | S116: ='Bilan ouverture'!C11 -> 0 | U116: =S116 -> 0 | V116: Comptes courant Adelc | W116: ='Bilan ouverture'!S91 -> 5000 | Y116: Dettes augmentation stock librairie | Z116: =N49*1.055 -> 0 | AA116: =O49*1.055 -> 0
B117: Achats | D117: =D57 -> 16216.76113 | E117: 11062.34818 | F117: 13827.93522 | G117: 11984.21053 | H117: 6453.036437 | I117: 6453.036437 | J117: 13451.17409 | K117: 6453.036437 | L117: 6453.036437 | M117: 17934.89879 | N117: 4609.311741 | O117: 3687.449393 | R117: Caution bail | S117: ='Bilan ouverture'!C12 -> 1440 | U117: =S117 -> 1440 | Y117: Dettes autres produits | Z117: =O46*1.2 -> 0
B118: Évolution du stock | C118: ='Trésorerie année 1'!O145 -> 46170.78959 | D118: =C118-D116+D117 -> 45785.47785 | E118: =D118-E116+E117 -> 46175.06489 | F118: 46958.51428 | G118: =F118-G116+G117 -> 39968.92724 | H118: =G118-H116+H117 -> 38120.92724 | I118: 36272.92724 | J118: 43794.78959 | K118: 43132.65194 | L118: 43656.37663 | M118: 52104.37663 | N118: 48412.65194 | O118: 46170.78959 | R118: Stock librairie | S118: ='Outil de simulation'!G57 -> 35626.22437 | U118: =S118 -> 35626.22437 | V118: Fournisseurs | W118: =AA119 -> 8753.082996 | Y118: Dettes augmentation stock autres produits | Z118: =O50*1.2 -> 0
R119: Stock autres produits | S119: ='Outil de simulation'!P57 -> 10544.56522 | U119: =S119 -> 10544.56522 | Y119: Total Dettes fou | AA119: =Z115+AA115+AA117+AA116+Z116+Z117+Z118 -> 8753.082996
B120: Cycle de financement | R120: Stock restauration café | S120: ='Outil de simulation'!R57 -> 0 | U120: =S120 -> 0 | V120: TVA diverses
B121: Stock Moyen | C121: =SUM(C118:O118)/13 -> 44363.40497 | R121: TVA diverses | V121: IS solde | W121: =Z123 -> 520.0708677 | Y121: IS à reporter au bilan | Z121: 1er mois N+1
B122: Coût des ventes | C122: ='Outil de simulation'!T59 -> 118586.2348 | R122: Disponibilités | S122: =IF(O101>0,O101,"") -> 14975.64434 | U122: =S122 -> 14975.64434 | V122: Découvert | W122: =IF(O101<0,O101*-1,"") ->  | Y122: Calcul de l'IS | Z122: ='Compte de résultats 3 ans'!J62 -> 2080.283471
B123: Rotation | C123: =C122/C121 -> 2.673064317 | R123: Total | S123: =SUM(S109:S122) -> 84101.43393 | T123: =SUM(T109:T122) -> 6160 | U123: =SUM(U109:U122) -> 77941.43393 | V123: Total | W123: =SUM(W109:W122) -> 77941.43393 | Y123: Dettes IS au bilan | Z123: =Z122/4 -> 520.0708677
B124: Rotation en J | C124: =365/C123 -> 136.5474065
R125: Écart | V125: Écart | W125: =W123-U123 -> 0

Sheet Trésorerie année 3
B2: Formation du résultat en fonction de la saisonnalité | D2: ='Outil de simulation'!C116 -> Septembre | E2: ='Outil de simulation'!D116 -> Octobre | F2: ='Outil de simulation'!E116 -> Novembre | G2: ='Outil de simulation'!F116 -> Décembre | H2: ='Outil de simulation'!G116 -> Janvier | I2: ='Outil de simulation'!H116 -> Février | J2: ='Outil de simulation'!I116 -> Mars | K2: ='Outil de simulation'!J116 -> Avril | L2: ='Outil de simulation'!K116 -> Mai | M2: ='Outil de simulation'!L116 -> Juin | N2: ='Outil de simulation'!M116 -> Juillet | O2: ='Outil de simulation'!N116 -> Août | P2: Total
B3: Saisonnalité des ventes | D3: ='Outil de simulation'!C117 -> 0.14 | E3: ='Outil de simulation'!D117 -> 0.09 | F3: ='Outil de simulation'!E117 -> 0.11 | G3: ='Outil de simulation'!F117 -> 0.16 | H3: ='Outil de simulation'!G117 -> 0.07 | I3: ='Outil de simulation'!H117 -> 0.07 | J3: ='Outil de simulation'!I117 -> 0.05 | K3: ='Outil de simulation'!J117 -> 0.06 | L3: ='Outil de simulation'!K117 -> 0.05 | M3: ='Outil de simulation'!L117 -> 0.08 | N3: ='Outil de simulation'!M117 -> 0.07 | O3: ='Outil de simulation'!N117 -> 0.05 | P3: =SUM(D3:O3) -> 1
B5: Ventes brutes | C5: ='Outil de simulation'!U89 -> 0.357354794 | D5: =$P$5*D3 -> 28591.539 | E5: 18380.27507 | F5: 22464.78065 | G5: 32676.04458 | H5: 14295.7695 | I5: 14295.7695 | J5: 10211.26393 | K5: 12253.51672 | L5: 10211.26393 | M5: 16338.02229 | N5: 14295.7695 | O5: 10211.26393 | P5: ='Outil de simulation'!T80 -> 204225.2786
B6: CA global | D6: =$P$6*D3 -> 28286.12146 | E6: 18183.93522 | F6: 22224.80972 | G6: 32326.99595 | H6: 14143.06073 | I6: 14143.06073 | J6: 10102.18623 | K6: 12122.62348 | L6: 10102.18623 | M6: 16163.49798 | N6: 14143.06073 | O6: 10102.18623 | P6: ='Outil de simulation'!T82 -> 202043.7247
B7: Marge commerciale | C7: ='Outil de simulation'!V90 -> 0.3642195913 | D7: =D5*$C$7 -> 10413.59865 | E7: 6694.456276 | F7: 8182.113226 | G7: 11901.2556 | H7: 5206.799326 | I7: 5206.799326 | J7: 3719.142375 | K7: 4462.970851 | L7: 3719.142375 | M7: 5950.627801 | N7: 5206.799326 | O7: 3719.142375 | P7: ='Outil de simulation'!T90 -> 74382.84751
B8: Marge brute | C8: ='Outil de simulation'!U89 -> 0.357354794 | D8: =$P$8*D3 -> 10108.18111 | E8: 6498.116425 | F8: 7942.142297 | G8: 11552.20698 | H8: 5054.090553 | I8: 5054.090553 | J8: 3610.06468 | K8: 4332.077617 | L8: 3610.06468 | M8: 5776.103489 | N8: 5054.090553 | O8: 3610.06468 | P8: ='Outil de simulation'!T89 -> 72201.29361
B9: Produits exceptionnels sub investissements | D9: =$P$9/12 -> 166.6666667 | E9: =$P$9/12 -> 166.6666667 | F9: 166.6666667 | G9: 166.6666667 | H9: 166.6666667 | I9: 166.6666667 | J9: 166.6666667 | K9: 166.6666667 | L9: 166.6666667 | M9: 166.6666667 | N9: 166.6666667 | O9: 166.6666667 | P9: 2000
B10: Fournitures consommables | D10: =$P$10*D3 -> 436.968 | E10: 280.908 | F10: 343.332 | G10: 499.392 | H10: 218.484 | I10: 218.484 | J10: 156.06 | K10: 187.272 | L10: 156.06 | M10: 249.696 | N10: 218.484 | O10: 156.06 | P10: ='Compte de résultats 3 ans'!Q13 -> 3121.2
B11: Loyer | D11: =$P$11/12 -> 720 | E11: 720 | F11: 720 | G11: 720 | H11: 720 | I11: 720 | J11: 720 | K11: 720 | L11: 720 | M11: 720 | N11: 720 | O11: 720 | P11: ='Compte de résultats 3 ans'!Q20 -> 8640
B12: Charges externes | D12: =$P$12/12 -> 1109.119633 | E12: 1109.119633 | F12: 1109.119633 | G12: 1109.119633 | H12: 1109.119633 | I12: 1109.119633 | J12: 1109.119633 | K12: 1109.119633 | L12: 1109.119633 | M12: 1109.119633 | N12: 1109.119633 | O12: 1109.119633 | P12: ='Compte de résultats 3 ans'!Q19-'Compte de résultats 3 ans'!Q20 -> 13309.4356
B13: Personnel (salaires et charges) | D13: =$P$13/12 -> 1836.18 | E13: 1836.18 | F13: 1836.18 | G13: 1836.18 | H13: 1836.18 | I13: 1836.18 | J13: 1836.18 | K13: 1836.18 | L13: 1836.18 | M13: 1836.18 | N13: 1836.18 | O13: 1836.18 | P13: ='Compte de résultats 3 ans'!Q55 -> 22034.16
B14: Amortissements | D14: =$P$14/12 -> 256.6666667 | E14: 256.6666667 | F14: 256.6666667 | G14: 256.6666667 | H14: 256.6666667 | I14: 256.6666667 | J14: 256.6666667 | K14: 256.6666667 | L14: 256.6666667 | M14: 256.6666667 | N14: 256.6666667 | O14: 256.6666667 | P14: ='Compte de résultats 3 ans'!Q56 -> 3080
B15: Impôts | N15: =P15 -> 1664.64 | P15: ='Compte de résultats 3 ans'!Q54 -> 1664.64
B16: Financier | D16: =$P$16/12 -> 18.76163151 | E16: 18.76163151 | F16: 18.76163151 | G16: 18.76163151 | H16: 18.76163151 | I16: 18.76163151 | J16: 18.76163151 | K16: 18.76163151 | L16: 18.76163151 | M16: 18.76163151 | N16: 18.76163151 | O16: 18.76163151 | P16: ='Compte de résultats 3 ans'!Q57 -> 225.1395782
B18: Résultat net avant IS | D18: =D8+D9-SUM(D10:D16) -> 5897.15184 | E18: =E8+E9-SUM(E10:E16) -> 2443.14716 | F18: 3824.749032 | G18: 7278.753713 | H18: 1061.545288 | I18: 1061.545288 | J18: -320.0565844 | K18: 370.7443517 | L18: -320.0565844 | M18: 1752.346224 | N18: -603.0947123 | O18: -320.0565844 | P18: =P8+P9-SUM(P10:P17) -> 22126.71843
B19: Résultat net avant IS cumulés | E19: =D18+E18 -> 8340.299 | F19: =E19+F18 -> 12165.04803 | G19: 19443.80174 | H19: 20505.34703 | I19: 21566.89232 | J19: 21246.83574 | K19: 21617.58009 | L19: 21297.5235 | M19: 23049.86973 | N19: 22446.77501 | O19: 22126.71843
B20: CAF | P20: =P14+P18-Z117 -> 21887.71067
B22: Répartition des ventes en fonction de la saisonnalité | D22: ='Outil de simulation'!C116 -> Septembre | E22: ='Outil de simulation'!D116 -> Octobre | F22: ='Outil de simulation'!E116 -> Novembre | G22: ='Outil de simulation'!F116 -> Décembre | H22: ='Outil de simulation'!G116 -> Janvier | I22: ='Outil de simulation'!H116 -> Février | J22: ='Outil de simulation'!I116 -> Mars | K22: ='Outil de simulation'!J116 -> Avril | L22: ='Outil de simulation'!K116 -> Mai | M22: ='Outil de simulation'!L116 -> Juin | N22: ='Outil de simulation'!M116 -> Juillet | O22: ='Outil de simulation'!N116 -> Août | P22: Total
B23: Librairie
B24: Répartition du CA comptant | D24: =$P$24*D25 -> 21510.12146 | E24: 13827.93522 | F24: 16900.80972 | G24: 24582.99595 | H24: 10755.06073 | I24: 10755.06073 | J24: 7682.186235 | K24: 9218.623482 | L24: 7682.186235 | M24: 12291.49798 | N24: 10755.06073 | O24: 7682.186235 | P24: ='Outil de simulation'!C82 -> 153643.7247
B25: Saisonnalité Librairie comptant | D25: ='Outil de simulation'!C117 -> 0.14 | E25: ='Outil de simulation'!D117 -> 0.09 | F25: ='Outil de simulation'!E117 -> 0.11 | G25: ='Outil de simulation'!F117 -> 0.16 | H25: ='Outil de simulation'!G117 -> 0.07 | I25: ='Outil de simulation'!H117 -> 0.07 | J25: ='Outil de simulation'!I117 -> 0.05 | K25: ='Outil de simulation'!J117 -> 0.06 | L25: ='Outil de simulation'!K117 -> 0.05 | M25: ='Outil de simulation'!L117 -> 0.08 | N25: ='Outil de simulation'!M117 -> 0.07 | O25: ='Outil de simulation'!N117 -> 0.05
B26: Répartition du CA livre à terme | D26: =$P$26*D27 -> 0 | E26: 0 | F26: 0 | G26: 0 | H26: 0 | I26: 0 | J26: 0 | K26: 0 | L26: 0 | M26: 0 | N26: 0 | O26: 0 | P26: ='Outil de simulation'!E82 -> 0
B27: Saisonnalité facturation librairie à terme | D27: ='Outil de simulation'!C119 -> 0.1 | E27: ='Outil de simulation'!D119 -> 0.1 | F27: ='Outil de simulation'!E119 -> 0.1 | G27: ='Outil de simulation'!F119 -> 0.1 | H27: ='Outil de simulation'!G119 -> 0.1 | I27: ='Outil de simulation'!H119 -> 0.1 | J27: ='Outil de simulation'!I119 -> 0.1 | K27: ='Outil de simulation'!J119 -> 0.1 | L27: ='Outil de simulation'!K119 -> 0.1 | M27: ='Outil de simulation'!L119 -> 0.1 | N27: ='Outil de simulation'!M119 -> 0 | O27: ='Outil de simulation'!N119 -> 0
B28: Total librairie (TVA 5,5 %) | D28: =D24+D26 -> 21510.12146 | E28: 13827.93522 | F28: 16900.80972 | G28: 24582.99595 | H28: 10755.06073 | I28: 10755.06073 | J28: 7682.186235 | K28: 9218.623482 | L28: 7682.186235 | M28: 12291.49798 | N28: 10755.06073 | O28: 7682.186235 | P28: 153643.7247
B29: Autres produits
B30: Répartition du CA des ventes autres produits (TVA 20 %) | D30: =$P$30*D31 -> 6776 | E30: 4356 | F30: 5324 | G30: 7744 | H30: 3388 | I30: 3388 | J30: 2420 | K30: 2904 | L30: 2420 | M30: 3872 | N30: 3388 | O30: 2420 | P30: ='Outil de simulation'!P82 -> 48400
B31: Saisonnalité des ventes autres produits | D31: ='Outil de simulation'!C120 -> 0.14 | E31: ='Outil de simulation'!D120 -> 0.09 | F31: ='Outil de simulation'!E120 -> 0.11 | G31: ='Outil de simulation'!F120 -> 0.16 | H31: ='Outil de simulation'!G120 -> 0.07 | I31: ='Outil de simulation'!H120 -> 0.07 | J31: ='Outil de simulation'!I120 -> 0.05 | K31: ='Outil de simulation'!J120 -> 0.06 | L31: ='Outil de simulation'!K120 -> 0.05 | M31: ='Outil de simulation'!L120 -> 0.08 | N31: ='Outil de simulation'!M120 -> 0.07 | O31: ='Outil de simulation'!N120 -> 0.05
B32: Total CA autres produits (TVA 20 %) | D32: =D30 -> 6776 | E32: =E30 -> 4356 | F32: 5324 | G32: 7744 | H32: 3388 | I32: 3388 | J32: 2420 | K32: 2904 | L32: 2420 | M32: 3872 | N32: 3388 | O32: 2420 | P32: 48400
B33: Restaurant/Café
B34: Répartition des ventes restaurant café (TVA 10 %) | D34: =$P$34*D35 -> 0 | E34: =$P$34*E35 -> 0 | F34: 0 | G34: 0 | H34: 0 | I34: 0 | J34: 0 | K34: 0 | L34: 0 | M34: 0 | N34: 0 | O34: 0 | P34: ='Outil de simulation'!R82 -> 0
B35: Saisonnalité des ventes restaurant café | D35: ='Outil de simulation'!C122 -> 0.08333333333 | E35: ='Outil de simulation'!D122 -> 0.08333333333 | F35: ='Outil de simulation'!E122 -> 0.08333333333 | G35: ='Outil de simulation'!F122 -> 0.08333333333 | H35: ='Outil de simulation'!G122 -> 0.08333333333 | I35: ='Outil de simulation'!H122 -> 0.08333333333 | J35: ='Outil de simulation'!I122 -> 0.08333333333 | K35: ='Outil de simulation'!J122 -> 0.08333333333 | L35: ='Outil de simulation'!K122 -> 0.08333333333 | M35: ='Outil de simulation'!L122 -> 0.08333333333 | N35: ='Outil de simulation'!M122 -> 0.08333333333 | O35: ='Outil de simulation'!N122 -> 0.08333333333 | P35: =SUM(D35:O35) -> 1
B36: Total Restaurant café (TVA 10 % majoritaire) | D36: =D34 -> 0 | E36: =E34 -> 0 | F36: 0 | G36: 0 | H36: 0 | I36: 0 | J36: 0 | K36: 0 | L36: 0 | M36: 0 | N36: 0 | O36: 0 | P36: =P34 -> 0
B38: Total CA | D38: =D28+D32+D36 -> 28286.12146 | E38: =E28+E32+E36 -> 18183.93522 | F38: 22224.80972 | G38: 32326.99595 | H38: 14143.06073 | I38: 14143.06073 | J38: 10102.18623 | K38: 12122.62348 | L38: 10102.18623 | M38: 16163.49798 | N38: 14143.06073 | O38: 10102.18623 | P38: =P28+P32+P36 -> 202043.7247
B40: Répartition des achats en fonction de la saisonnalité | C40: Saisons | D40: ='Outil de simulation'!C116 -> Septembre | E40: ='Outil de simulation'!D116 -> Octobre | F40: ='Outil de simulation'!E116 -> Novembre | G40: ='Outil de simulation'!F116 -> Décembre | H40: ='Outil de simulation'!G116 -> Janvier | I40: ='Outil de simulation'!H116 -> Février | J40: ='Outil de simulation'!I116 -> Mars | K40: ='Outil de simulation'!J116 -> Avril | L40: ='Outil de simulation'!K116 -> Mai | M40: ='Outil de simulation'!L116 -> Juin | N40: ='Outil de simulation'!M116 -> Juillet | O40: ='Outil de simulation'!N116 -> Août | P40: Total
C41: Librairie | D41: ='Outil de simulation'!C118 -> 0.09 | E41: ='Outil de simulation'!D118 -> 0.12 | F41: ='Outil de simulation'!E118 -> 0.15 | G41: ='Outil de simulation'!F118 -> 0.13 | H41: ='Outil de simulation'!G118 -> 0.07 | I41: ='Outil de simulation'!H118 -> 0.07 | J41: ='Outil de simulation'!I118 -> 0.06 | K41: ='Outil de simulation'!J118 -> 0.07 | L41: ='Outil de simulation'!K118 -> 0.07 | M41: ='Outil de simulation'!L118 -> 0.08 | N41: ='Outil de simulation'!M118 -> 0.05 | O41: ='Outil de simulation'!N118 -> 0.04 | P41: =SUM(D41:O41) -> 1
C42: Autres produits | D42: ='Outil de simulation'!C121 -> 0.3 | E42: ='Outil de simulation'!D121 -> 0 | F42: ='Outil de simulation'!E121 -> 0 | G42: ='Outil de simulation'!F121 -> 0 | H42: ='Outil de simulation'!G121 -> 0 | I42: ='Outil de simulation'!H121 -> 0 | J42: ='Outil de simulation'!I121 -> 0.3 | K42: ='Outil de simulation'!J121 -> 0 | L42: ='Outil de simulation'!K121 -> 0 | M42: ='Outil de simulation'!L121 -> 0.4 | N42: ='Outil de simulation'!M121 -> 0 | O42: ='Outil de simulation'!N121 -> 0 | P42: =SUM(D42:O42) -> 1
C43: Restauration café | D43: ='Outil de simulation'!C123 -> 0.08333333333 | E43: ='Outil de simulation'!D123 -> 0.08333333333 | F43: ='Outil de simulation'!E123 -> 0.08333333333 | G43: ='Outil de simulation'!F123 -> 0.08333333333 | H43: ='Outil de simulation'!G123 -> 0.08333333333 | I43: ='Outil de simulation'!H123 -> 0.08333333333 | J43: ='Outil de simulation'!I123 -> 0.08333333333 | K43: ='Outil de simulation'!J123 -> 0.08333333333 | L43: ='Outil de simulation'!K123 -> 0.08333333333 | M43: ='Outil de simulation'!L123 -> 0.08333333333 | N43: ='Outil de simulation'!M123 -> 0.08333333333 | O43: ='Outil de simulation'!N123 -> 0.08333333333 | P43: =SUM(D43:O43) -> 1
B44: Coût des ventes
B45: Librairie | D45: =$P$45*D41 -> 9115.778798 | E45: 12154.37173 | F45: 15192.96466 | G45: 13167.23604 | H45: 7090.050176 | I45: 7090.050176 | J45: 6077.185865 | K45: 7090.050176 | L45: 7090.050176 | M45: 8102.914487 | N45: 5064.321554 | O45: 4051.457244 | P45: ='Outil de simulation'!G88 -> 101286.4311
B46: Autres produits | D46: =$P$46*D42 -> 8566.8 | E46: 0 | F46: 0 | G46: 0 | H46: 0 | I46: 0 | J46: 8566.8 | K46: 0 | L46: 0 | M46: 11422.4 | N46: 0 | O46: 0 | P46: ='Outil de simulation'!P88 -> 28556
B47: Restauration café | D47: =D43*$P$47 -> 0 | E47: =E43*$P$47 -> 0 | F47: 0 | G47: 0 | H47: 0 | I47: 0 | J47: 0 | K47: 0 | L47: 0 | M47: 0 | N47: 0 | O47: 0 | P47: ='Outil de simulation'!R88 -> 0
B48: Augmentation stock
B49: Augmentation stock librairie | D49: =$P$49/12 -> 0 | E49: =$P$49/12 -> 0 | F49: 0 | G49: 0 | H49: 0 | I49: 0 | J49: 0 | K49: 0 | L49: 0 | M49: 0 | N49: 0 | O49: 0 | P49: ='Outil de simulation'!G86-'Outil de simulation'!G84 -> 0
B50: Augmentation stock autres produits | D50: =$P$50/12 -> 0 | E50: =$P$50/12 -> 0 | F50: 0 | G50: 0 | H50: 0 | I50: 0 | J50: 0 | K50: 0 | L50: 0 | M50: 0 | N50: 0 | O50: 0 | P50: ='Outil de simulation'!P86-'Outil de simulation'!P84 -> 0
B51: Augmentation stock restauration café | D51: =$P$51/12 -> 0 | E51: =$P$51/12 -> 0 | F51: 0 | G51: 0 | H51: 0 | I51: 0 | J51: 0 | K51: 0 | L51: 0 | M51: 0 | N51: 0 | O51: 0 | P51: ='Outil de simulation'!R86-'Outil de simulation'!R84 -> 0
B52: Total des achats
B53: Total achats librairie | D53: =D45+D49 -> 9115.778798 | E53: 12154.37173 | F53: 15192.96466 | G53: 13167.23604 | H53: 7090.050176 | I53: 7090.050176 | J53: 6077.185865 | K53: 7090.050176 | L53: 7090.050176 | M53: 8102.914487 | N53: 5064.321554 | O53: 4051.457244 | P53: 101286.4311
B54: Total achats autres produits | D54: =D46+D50 -> 8566.8 | E54: 0 | F54: 0 | G54: 0 | H54: 0 | I54: 0 | J54: 8566.8 | K54: 0 | L54: 0 | M54: 11422.4 | N54: 0 | O54: 0 | P54: 28556
B55: Total achats restauration café | D55: =D47+D51 -> 0 | E55: =E47+E51 -> 0 | F55: 0 | G55: 0 | H55: 0 | I55: 0 | J55: 0 | K55: 0 | L55: 0 | M55: 0 | N55: 0 | O55: 0 | P55: 0
B57: Total achats | D57: =SUM(D53:D55) -> 17682.5788 | E57: 12154.37173 | F57: 15192.96466 | G57: 13167.23604 | H57: 7090.050176 | I57: 7090.050176 | J57: 14643.98587 | K57: 7090.050176 | L57: 7090.050176 | M57: 19525.31449 | N57: 5064.321554 | O57: 4051.457244 | P57: 129842.4311
B59: Trésorerie entrante | D59: =D40 -> Septembre | E59: =E40 -> Octobre | F59: Novembre | G59: Décembre | H59: Janvier | I59: Février | J59: Mars | K59: Avril | L59: Mai | M59: Juin | N59: Juillet | O59: Août | P59: Total
B60: Répartition du CA
B61: CA TTC librairie | D61: =D28*1.055 -> 22693.17814 | E61: 14588.47166 | F61: 17830.35425 | G61: 25935.06073 | H61: 11346.58907 | I61: 11346.58907 | J61: 8104.706478 | K61: 9725.647773 | L61: 8104.706478 | M61: 12967.53036 | N61: 11346.58907 | O61: 8104.706478 | P61: =SUM(D61:O61) -> 162094.1296
B62: CA TTC autres produits | D62: =D32*1.2 -> 8131.2 | E62: 5227.2 | F62: 6388.8 | G62: 9292.8 | H62: 4065.6 | I62: 4065.6 | J62: 2904 | K62: 3484.8 | L62: 2904 | M62: 4646.4 | N62: 4065.6 | O62: 2904 | P62: =SUM(D62:O62) -> 58080
B63: CA TTC restauration café | D63: =D36*1.1 -> 0 | E63: 0 | F63: 0 | G63: 0 | H63: 0 | I63: 0 | J63: 0 | K63: 0 | L63: 0 | M63: 0 | N63: 0 | O63: 0 | P63: =SUM(D63:O63) -> 0
B64: Total CA TTC | D64: =D61+D62+D63 -> 30824.37814 | E64: =E61+E62+E63 -> 19815.67166 | F64: 24219.15425 | G64: 35227.86073 | H64: 15412.18907 | I64: 15412.18907 | J64: 11008.70648 | K64: 13210.44777 | L64: 11008.70648 | M64: 17613.93036 | N64: 15412.18907 | O64: 11008.70648 | P64: =P61+P62+P63 -> 220174.1296
B66: Récupération TVA | D66: =IF(D108<0,D108*-1,0) -> 133.4410067 | E66: =IF(E108<0,E108*-1,0) -> 0 | F66: 0 | G66: 0 | H66: 0 | I66: 0 | J66: 1541.873233 | K66: 0 | L66: =IF(L108<0,L108*-1,0) -> 0 | M66: 1699.223361 | N66: 0 | O66: 0 | P66: =SUM(D66:O66) -> 3374.5376
B68: Total des entrées d'argent dans la strcuture | D68: =D64+D66 -> 30957.81914 | E68: =E64+E66 -> 19815.67166 | F68: 24219.15425 | G68: 35227.86073 | H68: 15412.18907 | I68: 15412.18907 | J68: 12550.57971 | K68: 13210.44777 | L68: 11008.70648 | M68: 19313.15373 | N68: 15412.18907 | O68: 11008.70648 | P68: 223548.6672
B70: Trésorerie sortante | D70: =D59 -> Septembre | E70: Octobre | F70: Novembre | G70: Décembre | H70: Janvier | I70: Février | J70: Mars | K70: Avril | L70: Mai | M70: Juin | N70: Juillet | O70: Août | P70: Total
B72: Achats librairie TTC (en bleu report de la dette N-1) | D72: ='Trésorerie année 2'!Z115 -> 4862.823887 | E72: ='Trésorerie année 2'!AA115 -> 3890.259109 | F72: =D45*1.055 -> 9617.146632 | G72: 12822.86218 | H72: 16028.57772 | I72: 13891.43402 | J72: 7480.002936 | K72: 7480.002936 | L72: 6411.431088 | M72: 7480.002936 | N72: 7480.002936 | O72: 8548.574784 | P72: =SUM(C72:O72) -> 105993.1212
B73: Achats autres produits TTC (en bleu report de la dette N-1) | D73: ='Trésorerie année 2'!Z117 -> 0 | E73: =D54*1.2 -> 10280.16 | F73: 0 | G73: 0 | H73: 0 | I73: 0 | J73: 0 | K73: 10280.16 | L73: 0 | M73: 0 | N73: 13706.88 | O73: 0 | P73: =SUM(C73:O73) -> 34267.2
B74: Achats restauration café TTC | D74: =D55*1.1 -> 0 | E74: 0 | F74: 0 | G74: 0 | H74: 0 | I74: 0 | J74: 0 | K74: 0 | L74: 0 | M74: 0 | N74: 0 | O74: 0 | P74: =SUM(C74:O74) -> 0
B76: Augmentation stock librairie TTC | C76: échéancé | D76: ='Trésorerie année 2'!Z116 -> 0 | E76: ='Trésorerie année 2'!AA116 -> 0 | F76: =D49*1.055 -> 0 | G76: 0 | H76: 0 | I76: 0 | J76: 0 | K76: 0 | L76: 0 | M76: 0 | N76: 0 | O76: 0 | P76: =SUM(C76:O76) -> 0
B77: Augmentation stock autres produits TTC | C77: échéancé | D77: ='Trésorerie année 2'!Z118 -> 0 | E77: =D50*1.2 -> 0 | F77: 0 | G77: 0 | H77: 0 | I77: 0 | J77: 0 | K77: 0 | L77: 0 | M77: 0 | N77: 0 | O77: 0 | P77: =SUM(C77:O77) -> 0
B78: Augmentation stock restauration café TTC | D78: =D51*1.1 -> 0 | E78: 0 | F78: 0 | G78: 0 | H78: 0 | I78: 0 | J78: 0 | K78: 0 | L78: 0 | M78: 0 | N78: 0 | O78: 0 | P78: =SUM(C78:O78) -> 0
B80: Fournitures consommables TTC | D80: =D10*1.2 -> 524.3616 | E80: 337.0896 | F80: 411.9984 | G80: 599.2704 | H80: 262.1808 | I80: 262.1808 | J80: 187.272 | K80: 224.7264 | L80: 187.272 | M80: 299.6352 | N80: 262.1808 | O80: 187.272 | P80: 3745.44
B81: Loyer TTC | D81: =D11*1.2 -> 864 | E81: 864 | F81: 864 | G81: 864 | H81: 864 | I81: 864 | J81: 864 | K81: 864 | L81: 864 | M81: 864 | N81: 864 | O81: 864 | P81: 10368
B82: Services extérieurs TTC | D82: =D12*1.2 -> 1330.94356 | E82: 1330.94356 | F82: 1330.94356 | G82: 1330.94356 | H82: 1330.94356 | I82: 1330.94356 | J82: 1330.94356 | K82: 1330.94356 | L82: 1330.94356 | M82: 1330.94356 | N82: 1330.94356 | O82: 1330.94356 | P82: 15971.32272
B83: Personnel | D83: =D13 -> 1836.18 | E83: 1836.18 | F83: 1836.18 | G83: 1836.18 | H83: 1836.18 | I83: 1836.18 | J83: 1836.18 | K83: 1836.18 | L83: 1836.18 | M83: 1836.18 | N83: 1836.18 | O83: 1836.18 | P83: 22034.16
B84: Financier TTC | D84: =D16*1.2 -> 22.51395782 | E84: 22.51395782 | F84: 22.51395782 | G84: 22.51395782 | H84: 22.51395782 | I84: 22.51395782 | J84: 22.51395782 | K84: 22.51395782 | L84: 22.51395782 | M84: 22.51395782 | N84: 22.51395782 | O84: 22.51395782 | P84: =SUM(D84:O84) -> 270.1674938
B85: Impôts | N85: =P85 -> 1664.64 | P85: =P15 -> 1664.64
B86: Remboursements emprunts ADELC | D86: =$P$86/12 -> 83.33333333 | E86: 83.33333333 | F86: 83.33333333 | G86: 83.33333333 | H86: 83.33333333 | I86: 83.33333333 | J86: 83.33333333 | K86: 83.33333333 | L86: 83.33333333 | M86: 83.33333333 | N86: 83.33333333 | O86: 83.33333333 | P86: ='Bilan ouverture'!R92 -> 1000
B87: Remboursement emprunts taux 0 % | D87: =$P$87/12 -> 166.6666667 | E87: 166.6666667 | F87: 166.6666667 | G87: 166.6666667 | H87: 166.6666667 | I87: 166.6666667 | J87: 166.6666667 | K87: 166.6666667 | L87: 166.6666667 | M87: 166.6666667 | N87: 166.6666667 | O87: 166.6666667 | P87: ='Bilan ouverture'!Y92 -> 2000
B88: Remboursement emprunts | D88: =$P$88/12 -> 233.9495915 | E88: 233.9495915 | F88: 233.9495915 | G88: 233.9495915 | H88: 233.9495915 | I88: 233.9495915 | J88: 233.9495915 | K88: 233.9495915 | L88: 233.9495915 | M88: 233.9495915 | N88: 233.9495915 | O88: 233.9495915 | P88: ='Bilan ouverture'!J92 -> 2807.395098
B89: IS | C89: ='Compte de résultats 3 ans'!P62 -> 0.15 | D89: ='Trésorerie année 2'!Z123 -> 520.0708677 | G89: =$Z$117/4 -> 829.7519411 | J89: =$Z$117/4 -> 829.7519411 | M89: =$Z$117/4 -> 829.7519411 | P89: =SUM(D89:O89) -> 3009.326691
B90: Solde TVA redue | D90: =IF(D108>0,D108,0) -> 0 | E90: 537.4881391 | F90: 720.488825 | G90: 1707.212142 | H90: 465.9025274 | I90: 465.9025274 | J90: 0 | K90: 290.8408788 | L90: 115.7792303 | M90: 0 | N90: 577.3176016 | O90: 282.9018416 | P90: =SUM(D90:O90) -> 5163.833713
B92: Total sorties | D92: =SUM(D71:D90) -> 10444.84346 | E92: =SUM(E71:E90) -> 19582.58396 | F92: 15287.22097 | G92: 20496.68377 | H92: 21294.24816 | I92: 19157.10446 | J92: =SUM(J71:J90) -> 13034.61399 | K92: 22813.31732 | L92: 11252.06943 | M92: 13146.97719 | N92: 28228.60845 | O92: 13556.33573 | P92: =SUM(D92:O92) -> 208294.6069
B94: Suivi mensuel de trésorerie | C94: Solde N-1 | D94: =D70 -> Septembre | E94: Octobre | F94: Novembre | G94: Décembre | H94: Janvier | I94: Février | J94: Mars | K94: Avril | L94: Mai | M94: Juin | N94: Juillet | O94: Août
B95: Solde de trésorerie | C95: ='Trésorerie année 2'!O101 -> 14975.64434 | D95: =D68-D92 -> 20512.97568 | E95: 233.0877022 | F95: 8931.933285 | G95: 14731.17696 | H95: -5882.059088 | I95: -3744.915392 | J95: -484.0342759 | K95: -9602.869551 | L95: -243.3629497 | M95: 6166.176539 | N95: -12816.41938 | O95: -2547.629257
B96: Cumum de la trésorerie | D96: =C95+D95 -> 35488.62002 | E96: =D96+E95 -> 35721.70773 | F96: 44653.64101 | G96: 59384.81797 | H96: 53502.75888 | I96: 49757.84349 | J96: 49273.80922 | K96: 39670.93966 | L96: 39427.57672 | M96: 45593.75325 | N96: 32777.33388 | O96: =N96+O95 -> 30229.70462
B99: Tableau de répartition de la TVA | D99: =D94 -> Septembre | E99: =E94 -> Octobre | F99: Novembre | G99: Décembre | H99: Janvier | I99: Février | J99: Mars | K99: Avril | L99: Mai | M99: Juin | N99: Juillet | O99: Août | P99: =P70 -> Total
B100: TVA à payer | D100: =(D28*5.5%)+(D32*20%)+(D36*10%) -> 2538.25668 | E100: =(E28*5.5%)+(E32*20%)+(E36*10%) -> 1631.736437 | F100: 1994.344534 | G100: 2900.864777 | H100: 1269.12834 | I100: 1269.12834 | J100: 906.5202429 | K100: 1087.824291 | L100: 906.5202429 | M100: 1450.432389 | N100: 1269.12834 | O100: 906.5202429 | P100: =SUM(D100:O100) -> 18130.40486
B101: Solde N-1 | D101: ='Trésorerie année 2'!W120 -> 0
B102: TVA à récupérer | R102: Bilan année 3 | S102: Actif | V102: Passif
B103: Solde N-1 | D103: ='Trésorerie année 2'!U121 -> 0 | S103: Brut | T103: Amortissements | U103: Net | W103: Net
B104: Sur achats de marchandses et augmentation du stock | D104: =D53*5.5%+D54*20%+D55*10% -> 2214.727834 | E104: =E53*5.5%+E54*20%+E55*10% -> 668.4904452 | F104: 835.6130565 | G104: 724.1979823 | H104: 389.9527597 | I104: 389.9527597 | J104: 2047.605223 | K104: 389.9527597 | L104: 389.9527597 | M104: 2730.140297 | N104: 278.5376855 | O104: 222.8301484 | P104: =SUM(D104:O104) -> 11281.95371 | R104: Fonds de commerce | S104: ='Trésorerie année 2'!S109 -> 10000 | U104: =S104 -> 10000 | V104: Capital | W104: ='Trésorerie année 2'!W109 -> 3000
B105: Sur frais généraux | D105: =((D80+D82+D84+D81)-(D80+D82+D84+D81)/1.2) -> 456.969853 | E105: =((E80+E82+E84+E81)-(E80+E82+E84+E81)/1.2) -> 425.757853 | F105: 438.242653 | G105: 469.454653 | H105: 413.273053 | I105: 413.273053 | J105: 400.788253 | K105: 407.030653 | L105: 400.788253 | M105: 419.515453 | N105: 413.273053 | O105: 400.788253 | P105: =SUM(C105:O105) -> 5059.155036 | R105: Frais d'établissement SARL | S105: ='Trésorerie année 2'!S110 -> 1500 | T105: =Amortissements!F4+Amortissements!G4+Amortissements!E4 -> 1500 | U105: =S105-T105 -> 0 | V105: Report à nouveau | W105: ='Trésorerie année 2'!W110+'Trésorerie année 2'!W111 -> 32141.99943
B106: Total TVA à récupérer | D106: =SUM(D103:D105) -> 2671.697687 | E106: =SUM(E103:E105) -> 1094.248298 | F106: 1273.855709 | G106: 1193.652635 | H106: 803.2258127 | I106: 803.2258127 | J106: 2448.393476 | K106: 796.9834127 | L106: 790.7410127 | M106: 3149.65575 | N106: 691.8107385 | O106: 623.6184014 | P106: 16341.10875 | R106: Travaux et mises aux normes | S106: ='Trésorerie année 2'!S111 -> 1250 | T106: =Amortissements!E5+Amortissements!F5+Amortissements!G5 -> 375 | U106: 875 | V106: Résultat net | W106: =P18-Z117 -> 18807.71067
R107: Construction | S107: ='Trésorerie année 2'!S112 -> 0 | T107: =Amortissements!E6+Amortissements!F6+Amortissements!G6 -> 0 | U107: 0 | V107: Subventions d'investissements | W107: ='Bilan ouverture'!L24 -> 4000
B108: Solde TVA | D108: =(D100+D101)-D106 -> -133.4410067 | E108: =(E100+E101)-E106 -> 537.4881391 | F108: 720.488825 | G108: 1707.212142 | H108: 465.9025274 | I108: 465.9025274 | J108: -1541.873233 | K108: 290.8408788 | L108: 115.7792303 | M108: -1699.223361 | N108: 577.3176016 | O108: =(O100+O101)-O106 -> 282.9018416 | P108: =(P100+P101)-P106 -> 1789.296113 | R108: Aménagement | S108: ='Trésorerie année 2'!S113 -> 2000 | T108: =Amortissements!E7+Amortissements!F7+Amortissements!G7 -> 600 | U108: 1400 | V108: Emprunts bancaires | W108: ='Bilan ouverture'!L92 -> 11718.88554
R109: Mobilier | S109: ='Trésorerie année 2'!S114 -> 0 | T109: =Amortissements!E8+Amortissements!F8+Amortissements!G8 -> 0 | U109: 0 | V109: Emprunts taux 0 % | W109: ='Bilan ouverture'!Z92 -> 4000 | Y109: Dettes fournisseurs à reporter au bilan | Z109: N+1 | AA109: 2ème mois N+1
R110: Informatique | S110: ='Trésorerie année 2'!S115 -> 6765 | T110: =Amortissements!E9+Amortissements!F9+Amortissements!G9 -> 6765 | U110: 0 | V110: Comptes courants associés | W110: ='Bilan ouverture'!E6 -> 2000 | Y110: Dettes achats librairie | Z110: =N45*1.055 -> 5342.85924 | AA110: =O45*1.055 -> 4274.287392
B111: Suivi et évolution du stock | D111: =D99 -> Septembre | E111: Octobre | F111: Novembre | G111: Décembre | H111: Janvier | I111: Février | J111: Mars | K111: Avril | L111: Mai | M111: Juin | N111: Juillet | O111: Août | R111: Caution financière | V111: Comptes courant Adelc | W111: ='Bilan ouverture'!S92 -> 4000 | Y111: Dettes augmentation stock librairie | Z111: =N49*1.055 -> 0 | AA111: =O49*1.055 -> 0
B112: ventes | D112: =D5-(D5*$C$7) -> 18177.94035 | E112: 11685.8188 | F112: 14282.66742 | G112: 20774.78897 | H112: 9088.970176 | I112: 9088.970176 | J112: 6492.121554 | K112: 7790.545865 | L112: 6492.121554 | M112: 10387.39449 | N112: 9088.970176 | O112: 6492.121554 | R112: Caution bail | S112: ='Bilan ouverture'!C12 -> 1440 | U112: =S112 -> 1440 | Y112: Dettes autres produits | Z112: =O46*1.2 -> 0
B113: Achats | D113: =D57 -> 17682.5788 | E113: 12154.37173 | F113: 15192.96466 | G113: 13167.23604 | H113: 7090.050176 | I113: 7090.050176 | J113: 14643.98587 | K113: 7090.050176 | L113: 7090.050176 | M113: 19525.31449 | N113: 5064.321554 | O113: 4051.457244 | R113: Stock librairie | S113: ='Outil de simulation'!G86 -> 35626.22437 | U113: =S113 -> 35626.22437 | V113: Fournisseurs | W113: =AA114 -> 9617.146632 | Y113: Dettes augmentation stock autres produits | Z113: =O50*1.2 -> 0
B114: Évolution du stock | C114: ='Trésorerie année 2'!O118 -> 46170.78959 | D114: =C114-D112+D113 -> 45675.42803 | E114: 46143.98097 | F114: 47054.27821 | G114: 39446.72528 | H114: 37447.80528 | I114: 35448.88528 | J114: 43600.74959 | K114: 42900.2539 | L114: 43498.18252 | M114: 52636.10252 | N114: 48611.4539 | O114: 46170.78959 | R114: Stock autres produits | S114: ='Outil de simulation'!P86 -> 10544.56522 | U114: =S114 -> 10544.56522 | Y114: Total Dettes fou | AA114: =Z110+Z111+Z112+AA110+AA111+AA112+Z113 -> 9617.146632
R115: Stock restauration café | S115: ='Outil de simulation'!R86 -> 0 | U115: =S115-T115 -> 0 | V115: TVA diverses
B116: Cycle de financement | R116: TVA diverses | V116: IS solde | W116: =Z118 -> 829.7519411 | Y116: IS à reporter au bilan | Z116: 1er mois N+1
B117: Stock Moyen | C117: =SUM(C114:O114)/13 -> 44215.80189 | R117: Disponibilités | S117: =U117 -> 30229.70462 | U117: =IF(O96>0,O96,"") -> 30229.70462 | V117: Découvert | Y117: Calcul de l'IS | Z117: ='Compte de résultats 3 ans'!Q62 -> 3319.007765
B118: Coût des ventes | C118: ='Outil de simulation'!T88 -> 129842.4311 | R118: Total | S118: =SUM(S104:S117) -> 99355.49421 | T118: =SUM(T104:T117) -> 9240 | U118: =SUM(U104:U117) -> 90115.49421 | V118: Total | W118: =SUM(W104:W117) -> 90115.49421 | Y118: Dettes IS au bilan | Z118: =Z117/4 -> 829.7519411
B119: Rotation | C119: =C118/C117 -> 2.936561716
B120: Rotation en J | C120: =365/C119 -> 124.2950209 | R120: Écart | V120: Écart | W120: =W118-U118 -> 0

Sheet Bilan sur 3 ans
B2: Bilan année 1 | C2: Actif | F2: Passif
C3: Brut | D3: Amortissements | E3: Net | G3: Net
B4: Fonds de commerce | C4: ='Trésorerie année 1'!S133 -> 10000 | E4: =C4 -> 10000 | F4: Capital | G4: ='Trésorerie année 1'!W133 -> 3000
B5: Frais d'établissement SARL | C5: ='Trésorerie année 1'!S134 -> 1500 | D5: ='Trésorerie année 1'!T134 -> 500 | E5: =C5-D5 -> 1000 | F5: Report à nouveau | G5: ='Trésorerie année 1'!W134 -> 0
B6: Travaux et mises aux normes | C6: ='Trésorerie année 1'!S135 -> 1250 | D6: ='Trésorerie année 1'!T135 -> 125 | E6: 1125 | F6: Résultat net | G6: ='Trésorerie année 1'!W135 -> 20353.72642
B7: Construction | C7: ='Trésorerie année 1'!S136 -> 0 | D7: ='Trésorerie année 1'!T136 -> 0 | E7: 0 | F7: Subventions d'investissements | G7: ='Trésorerie année 1'!W136 -> 8000
B8: Aménagement | C8: ='Trésorerie année 1'!S137 -> 2000 | D8: ='Trésorerie année 1'!T137 -> 200 | E8: 1800 | F8: Emprunts bancaires | G8: ='Trésorerie année 1'!W137 -> 17286.38661
B9: Mobilier | C9: ='Trésorerie année 1'!S138 -> 0 | D9: ='Trésorerie année 1'!T138 -> 0 | E9: 0 | F9: Emprunts taux 0 % | G9: ='Trésorerie année 1'!W138 -> 8000
B10: Informatique | C10: ='Trésorerie année 1'!S139 -> 6765 | D10: ='Trésorerie année 1'!T139 -> 2255 | E10: 4510 | F10: Comptes courants associés | G10: ='Trésorerie année 1'!W139 -> 2000
B11: Caution financière | C11: ='Trésorerie année 1'!S140 -> 0 | E11: =C11 -> 0 | F11: Comptes courant Adelc | G11: ='Trésorerie année 1'!W140 -> 5000
B12: Caution bail | C12: ='Trésorerie année 1'!S141 -> 1440 | E12: 1440
B13: Stock librairie | C13: ='Trésorerie année 1'!S142 -> 35626.22437 | E13: 35626.22437 | F13: Fournisseurs | G13: ='Trésorerie année 1'!W142 -> 8260.910409
B14: Stock autres produits | C14: ='Trésorerie année 1'!S143 -> 10544.56522 | E14: 10544.56522
B15: Stock restauration café | C15: ='Trésorerie année 1'!S144 -> 0 | E15: 0 | F15: TVA à payer | G15: ='Trésorerie année 1'!W144 -> 118.6286116
B16: TVA diverses | C16: ='Trésorerie année 1'!S145 -> 0 | E16: =C16 -> 0 | F16: IS solde | G16: ='Trésorerie année 1'!W145 -> 897.9585187
B17: Disponibilités | C17: ='Trésorerie année 1'!S146 -> 6871.820982 | E17: 6871.820982 | F17: Découvert | G17: ='Trésorerie année 1'!W146 -> 
B18: TOTAL | C18: =SUM(C4:C17) -> 75997.61057 | D18: =SUM(D4:D16) -> 3080 | E18: =SUM(E4:E17) -> 72917.61057 | G18: =SUM(G4:G17) -> 72917.61057
B20: Écart | C20: =C17+G20 -> 6871.820982 | F20: Écart | G20: =G18-E18 -> 0
B23: Bilan année 2 | C23: Actif | F23: Passif
C24: Brut | D24: Amortissements | E24: Net | G24: Net
B25: Fonds de commerce | C25: ='Trésorerie année 2'!S109 -> 10000 | E25: =C25 -> 10000 | F25: Capital | G25: ='Trésorerie année 2'!W109 -> 3000
B26: Frais d'établissement SARL | C26: ='Trésorerie année 2'!S110 -> 1500 | D26: ='Trésorerie année 2'!T110 -> 1000 | E26: =C26-D26 -> 500 | F26: Report à nouveau | G26: ='Trésorerie année 2'!W110 -> 20353.72642
B27: Travaux et mises aux normes | C27: ='Trésorerie année 2'!S111 -> 1250 | D27: ='Trésorerie année 2'!T111 -> 250 | E27: 1000 | F27: Résultat net | G27: ='Trésorerie année 2'!W111 -> 11788.273
B28: Construction | C28: ='Trésorerie année 2'!S112 -> 0 | D28: ='Trésorerie année 2'!T112 -> 0 | E28: 0 | F28: Subventions d'investissements | G28: ='Trésorerie année 2'!W112 -> 6000
B29: Aménagement | C29: ='Trésorerie année 2'!S113 -> 2000 | D29: ='Trésorerie année 2'!T113 -> 400 | E29: 1600 | F29: Emprunts bancaires | G29: ='Trésorerie année 2'!W113 -> 14526.28064
B30: Mobilier | C30: ='Trésorerie année 2'!S114 -> 0 | D30: ='Trésorerie année 2'!T114 -> 0 | E30: 0 | F30: Emprunts taux 0 % | G30: ='Trésorerie année 2'!W114 -> 6000
B31: Informatique | C31: ='Trésorerie année 2'!S115 -> 6765 | D31: ='Trésorerie année 2'!T115 -> 4510 | E31: 2255 | F31: Comptes courants associés | G31: ='Trésorerie année 2'!W115 -> 2000
B32: Caution financière | C32: ='Trésorerie année 2'!S116 -> 0 | E32: =C32 -> 0 | F32: Comptes courant Adelc | G32: ='Trésorerie année 2'!W116 -> 5000
B33: Caution bail | C33: ='Trésorerie année 2'!S117 -> 1440 | E33: =C33 -> 1440
B34: Stock librairie | C34: ='Trésorerie année 2'!S118 -> 35626.22437 | E34: =C34 -> 35626.22437 | F34: Fournisseurs | G34: ='Trésorerie année 2'!W118 -> 8753.082996
B35: Stock autres produits | C35: ='Trésorerie année 2'!S119 -> 10544.56522 | E35: =C35 -> 10544.56522
B36: Stock restauration café | C36: ='Trésorerie année 2'!S120 -> 0 | E36: =C36 -> 0 | F36: TVA diverses | G36: ='Trésorerie année 2'!W120 -> 0
B37: TVA diverses | C37: ='Trésorerie année 2'!S121 -> 0 | F37: IS solde | G37: ='Trésorerie année 2'!W121 -> 520.0708677
B38: Disponibilités | C38: ='Trésorerie année 2'!S122 -> 14975.64434 | E38: =C38 -> 14975.64434 | F38: Découvert | G38: ='Trésorerie année 2'!W122 -> 
B39: Total | C39: =SUM(C25:C38) -> 84101.43393 | D39: =SUM(D25:D38) -> 6160 | E39: =SUM(E25:E38) -> 77941.43393 | F39: Total | G39: =SUM(G25:G38) -> 77941.43393
B41: Écart | C41: =C38+G41 -> 14975.64434 | F41: Écart | G41: =G39-E39 -> 0
B43: Bilan année 3 | C43: Actif | F43: Passif
C44: Brut | D44: Amortissements | E44: Net | G44: Net
B45: Fonds de commerce | C45: ='Trésorerie année 3'!S104 -> 10000 | E45: =C45 -> 10000 | F45: Capital | G45: ='Trésorerie année 3'!W104 -> 3000
B46: Frais d'établissement SARL | C46: ='Trésorerie année 3'!S105 -> 1500 | D46: ='Trésorerie année 3'!T105 -> 1500 | E46: =C46-D46 -> 0 | F46: Report à nouveau | G46: ='Trésorerie année 3'!W105 -> 32141.99943
B47: Travaux et mises aux normes | C47: ='Trésorerie année 3'!S106 -> 1250 | D47: ='Trésorerie année 3'!T106 -> 375 | E47: 875 | F47: Résultat net | G47: ='Trésorerie année 3'!W106 -> 18807.71067
B48: Construction | C48: ='Trésorerie année 3'!S107 -> 0 | D48: ='Trésorerie année 3'!T107 -> 0 | E48: 0 | F48: Subventions d'investissements | G48: ='Trésorerie année 3'!W107 -> 4000
B49: Aménagement | C49: ='Trésorerie année 3'!S108 -> 2000 | D49: ='Trésorerie année 3'!T108 -> 600 | E49: 1400 | F49: Emprunts bancaires | G49: ='Trésorerie année 3'!W108 -> 11718.88554
B50: Mobilier | C50: ='Trésorerie année 3'!S109 -> 0 | D50: ='Trésorerie année 3'!T109 -> 0 | E50: 0 | F50: Emprunts taux 0 % | G50: ='Trésorerie année 3'!W109 -> 4000
B51: Informatique | C51: ='Trésorerie année 3'!S110 -> 6765 | D51: ='Trésorerie année 3'!T110 -> 6765 | E51: 0 | F51: Comptes courants associés | G51: ='Trésorerie année 3'!W110 -> 2000
B52: Caution financière | C52: ='Trésorerie année 3'!S111 -> 0 | F52: Comptes courant Adelc | G52: ='Trésorerie année 3'!W111 -> 4000
B53: Caution bail | C53: ='Trésorerie année 3'!S112 -> 1440 | E53: =C53 -> 1440
B54: Stock librairie | C54: ='Trésorerie année 3'!S113 -> 35626.22437 | E54: =C54 -> 35626.22437 | F54: Fournisseurs | G54: ='Trésorerie année 3'!W113 -> 9617.146632
B55: Stock autres produits | C55: ='Trésorerie année 3'!S114 -> 10544.56522 | E55: =C55 -> 10544.56522 | F55: Sociales
B56: Stock restauration café | C56: ='Trésorerie année 3'!S115 -> 0 | E56: =C56-D56 -> 0 | F56: TVA diverses | G56: =G5 -> 0
B57: TVA diverses | C57: ='Trésorerie année 3'!S116 -> 0 | F57: IS solde | G57: ='Trésorerie année 3'!W116 -> 829.7519411
B58: Disponibilités | C58: ='Trésorerie année 3'!S117 -> 30229.70462 | E58: =C58 -> 30229.70462 | F58: Découvert | G58: ='Trésorerie année 3'!W117 -> 0
B59: Total | C59: =SUM(C45:C58) -> 99355.49421 | D59: =SUM(D45:D58) -> 9240 | E59: =SUM(E45:E58) -> 90115.49421 | F59: Total | G59: =SUM(G45:G58) -> 90115.49421
B61: Écart | C61: =C58+G61 -> 30229.70462 | F61: Écart | G61: =G59-E59 -> 0
